Body Name,Body,Service Label,Service Code,CIPFA Detailed Expenditure Type,CIPFA Detailed Expenditure Code,Date,Transaction Number,Net Amount,Supplier Name
Nottinghamshire County Council,1111/1001,Surplus or Deficit from Trading Undertak,TRADING,Employee Related,AAA,02/01/2019,10-10001,1284.32,Cash Flo Solution Ltd
Nottinghamshire County Council,1111/1001,Surplus or Deficit from Trading Undertak,TRADING,Supplies & Services,DDA,04/01/2019,10-10001,609.9,Antalis Ltd
Nottinghamshire County Council,1111/1001,Surplus or Deficit from Trading Undertak,TRADING,Supplies & Services,DAA,04/01/2019,10-10001,633.74,Brian Clegg (Educational Products)
Nottinghamshire County Council,1111/1001,Surplus or Deficit from Trading Undertak,TRADING,Supplies & Services,DAA,04/01/2019,10-10001,1580.78,Brian Clegg (Educational Products)
Nottinghamshire County Council,1111/1001,Surplus or Deficit from Trading Undertak,TRADING,Supplies & Services,DAA,04/01/2019,10-10001,1216.48,Brian Clegg (Educational Products)
Nottinghamshire County Council,1111/1001,Surplus or Deficit from Trading Undertak,TRADING,Supplies & Services,DDA,04/01/2019,10-10001,535.89,Banner Group Limited
Nottinghamshire County Council,1111/1001,Surplus or Deficit from Trading Undertak,TRADING,Supplies & Services,DAA,04/01/2019,10-10001,608.16,Bright Ideas Marketing Ltd
Nottinghamshire County Council,1111/1001,Surplus or Deficit from Trading Undertak,TRADING,Supplies & Services,DDA,04/01/2019,10-10001,"1,182.25",Hamelin Brands Ltd
Nottinghamshire County Council,1111/1001,Surplus or Deficit from Trading Undertak,TRADING,Supplies & Services,DDA,04/01/2019,10-10001,"1,013.63",Hamelin Brands Ltd
Nottinghamshire County Council,1111/1001,Surplus or Deficit from Trading Undertak,TRADING,Supplies & Services,DAA,04/01/2019,10-10001,749.81,Office Innovations
Nottinghamshire County Council,1111/1001,Surplus or Deficit from Trading Undertak,TRADING,Premises Related,BJA,04/01/2019,10-10001,606.78,Creativity International Ltd
Nottinghamshire County Council,1111/1001,Surplus or Deficit from Trading Undertak,TRADING,Supplies & Services,DAA,04/01/2019,10-10001,875.22,Hille Ltd
Nottinghamshire County Council,1111/1001,Surplus or Deficit from Trading Undertak,TRADING,Supplies & Services,DKA,04/01/2019,10-10001,604.22,Kimberly Clark European Services Lt
Nottinghamshire County Council,1111/1001,Surplus or Deficit from Trading Undertak,TRADING,Supplies & Services,DAA,04/01/2019,10-10001,568.5,Willowbrook Education Ltd
Nottinghamshire County Council,1111/1001,Surplus or Deficit from Trading Undertak,TRADING,Supplies & Services,DAA,09/01/2019,10-10001,624.2,Gopak Ltd
Nottinghamshire County Council,1111/1001,Surplus or Deficit from Trading Undertak,TRADING,Supplies & Services,DAA,09/01/2019,10-10001,"2,309.68",Gopak Ltd
Nottinghamshire County Council,1111/1001,Surplus or Deficit from Trading Undertak,TRADING,Supplies & Services,DDA,09/01/2019,10-10001,604.52,Antalis Ltd
Nottinghamshire County Council,1111/1001,Surplus or Deficit from Trading Undertak,TRADING,Supplies & Services,DDA,09/01/2019,10-10001,1847.05,Antalis Ltd
Nottinghamshire County Council,1111/1001,Surplus or Deficit from Trading Undertak,TRADING,Supplies & Services,DDA,09/01/2019,10-10001,16884,Antalis Ltd
Nottinghamshire County Council,1111/1001,Surplus or Deficit from Trading Undertak,TRADING,Premises Related,BJA,09/01/2019,10-10001,789.49,Diversey
Nottinghamshire County Council,1111/1001,Surplus or Deficit from Trading Undertak,TRADING,Premises Related,BJA,09/01/2019,10-10001,"3,028.88",Diversey
Nottinghamshire County Council,1111/1001,Surplus or Deficit from Trading Undertak,TRADING,Premises Related,BJA,09/01/2019,10-10001,3426.32,Diversey
Nottinghamshire County Council,1111/1001,Surplus or Deficit from Trading Undertak,TRADING,Premises Related,BJA,09/01/2019,10-10001,"1,676.42",Diversey
Nottinghamshire County Council,1111/1001,Surplus or Deficit from Trading Undertak,TRADING,Supplies & Services,DFA,09/01/2019,10-10001,1000.42,Royal Mail
Nottinghamshire County Council,1111/1001,Surplus or Deficit from Trading Undertak,TRADING,Premises Related,BJA,09/01/2019,10-10001,962.4,Newell Rubbermaid Uk Ltd
Nottinghamshire County Council,1111/1001,Surplus or Deficit from Trading Undertak,TRADING,Supplies & Services,DDA,09/01/2019,10-10001,"1,112.28",Polystar Plastics Ltd
Nottinghamshire County Council,1111/1001,Surplus or Deficit from Trading Undertak,TRADING,Premises Related,BJA,09/01/2019,10-10001,1519.7,Bunzl Cleaning & Hygiene Supplies
Nottinghamshire County Council,1111/1001,Surplus or Deficit from Trading Undertak,TRADING,Premises Related,BJA,09/01/2019,10-10001,"2,315.20",Bunzl Cleaning & Hygiene Supplies
Nottinghamshire County Council,1111/1001,Surplus or Deficit from Trading Undertak,TRADING,Premises Related,BJA,09/01/2019,10-10001,579.61,Bunzl Cleaning & Hygiene Supplies
Nottinghamshire County Council,1111/1001,Surplus or Deficit from Trading Undertak,TRADING,Supplies & Services,DAA,09/01/2019,10-10001,833.48,Kent County Supplies
Nottinghamshire County Council,1111/1001,Surplus or Deficit from Trading Undertak,TRADING,Supplies & Services,DAA,09/01/2019,10-10001,1384.32,Kent County Supplies
Nottinghamshire County Council,1111/1001,Surplus or Deficit from Trading Undertak,TRADING,Supplies & Services,DAA,09/01/2019,10-10001,529.34,Metalliform Holdings Ltd
Nottinghamshire County Council,1111/1001,Surplus or Deficit from Trading Undertak,TRADING,Employee Related,AAA,09/01/2019,10-10001,592.02,Cash Flo Solution Ltd
Nottinghamshire County Council,1111/1001,Surplus or Deficit from Trading Undertak,TRADING,Supplies & Services,DDA,10/01/2019,10-10001,3962.59,Banner Group Limited
Nottinghamshire County Council,1111/1001,Surplus or Deficit from Trading Undertak,TRADING,Supplies & Services,DDA,10/01/2019,10-10001,7208.97,Banner Group Limited
Nottinghamshire County Council,1111/1001,Surplus or Deficit from Trading Undertak,TRADING,Premises Related,BJA,10/01/2019,10-10001,1025.11,Freudenberg Household Products Lp
Nottinghamshire County Council,1111/1001,Surplus or Deficit from Trading Undertak,TRADING,Premises Related,BJA,10/01/2019,10-10001,1432,Bunzl Retail & Healthcare Supp Ltd
Nottinghamshire County Council,1111/1001,Surplus or Deficit from Trading Undertak,TRADING,Premises Related,BJA,14/01/2019,10-10001,1341.76,Robert Scott & Sons Ltd
Nottinghamshire County Council,1111/1001,Surplus or Deficit from Trading Undertak,TRADING,Supplies & Services,DDA,14/01/2019,10-10001,1268.8,Antalis Ltd
Nottinghamshire County Council,1111/1001,Surplus or Deficit from Trading Undertak,TRADING,Supplies & Services,DDA,14/01/2019,10-10001,501.74,Bic Uk Ltd
Nottinghamshire County Council,1111/1001,Surplus or Deficit from Trading Undertak,TRADING,Supplies & Services,DDA,14/01/2019,10-10001,509.38,Bic Uk Ltd
Nottinghamshire County Council,1111/1001,Surplus or Deficit from Trading Undertak,TRADING,Supplies & Services,DDA,14/01/2019,10-10001,569.6,Allen Glenold Ltd
Nottinghamshire County Council,1111/1001,Surplus or Deficit from Trading Undertak,TRADING,Premises Related,BJA,14/01/2019,10-10001,604.14,Diversey
Nottinghamshire County Council,1111/1001,Surplus or Deficit from Trading Undertak,TRADING,Premises Related,BJA,14/01/2019,10-10001,591.6,Henkel Ltd
Nottinghamshire County Council,1111/1001,Surplus or Deficit from Trading Undertak,TRADING,Premises Related,BJA,14/01/2019,10-10001,1868,Henkel Ltd
Nottinghamshire County Council,1111/1001,Surplus or Deficit from Trading Undertak,TRADING,Supplies & Services,DDA,14/01/2019,10-10001,607,Evans Vanodine International Ltd
Nottinghamshire County Council,1111/1001,Surplus or Deficit from Trading Undertak,TRADING,Supplies & Services,DAA,14/01/2019,10-10001,538.4,Vivid Laminating Technologies Ltd
Nottinghamshire County Council,1111/1001,Surplus or Deficit from Trading Undertak,TRADING,Supplies & Services,DAA,14/01/2019,10-10001,895.2,Monarch Education Furniture
Nottinghamshire County Council,1111/1001,Surplus or Deficit from Trading Undertak,TRADING,Supplies & Services,DAA,14/01/2019,10-10001,871,Monarch Education Furniture
Nottinghamshire County Council,1111/1001,Surplus or Deficit from Trading Undertak,TRADING,Supplies & Services,DKA,14/01/2019,10-10001,4869.66,Essity Uk Ltd
Nottinghamshire County Council,1111/1001,Surplus or Deficit from Trading Undertak,TRADING,Supplies & Services,DKA,14/01/2019,10-10001,519.8,Essity Uk Ltd
Nottinghamshire County Council,1111/1001,Surplus or Deficit from Trading Undertak,TRADING,Supplies & Services,DDA,14/01/2019,10-10001,"1,603.68",Banner Group Limited
Nottinghamshire County Council,1111/1001,Surplus or Deficit from Trading Undertak,TRADING,Supplies & Services,DDA,14/01/2019,10-10001,691.1,Banner Group Limited
Nottinghamshire County Council,1111/1001,Surplus or Deficit from Trading Undertak,TRADING,Premises Related,BJA,14/01/2019,10-10001,816.31,Freudenberg Household Products Lp
Nottinghamshire County Council,1111/1001,Surplus or Deficit from Trading Undertak,TRADING,Supplies & Services,DAA,14/01/2019,10-10001,555.2,Morleys (Bicester) Ltd
Nottinghamshire County Council,1111/1001,Surplus or Deficit from Trading Undertak,TRADING,Premises Related,BJA,14/01/2019,10-10001,3521.08,Newell Rubbermaid Uk Ltd
Nottinghamshire County Council,1111/1001,Surplus or Deficit from Trading Undertak,TRADING,Premises Related,BJA,14/01/2019,10-10001,618.24,Newell Rubbermaid Uk Ltd
Nottinghamshire County Council,1111/1001,Surplus or Deficit from Trading Undertak,TRADING,Supplies & Services,DDA,14/01/2019,10-10001,"2,550.36",Polystar Plastics Ltd
Nottinghamshire County Council,1111/1001,Surplus or Deficit from Trading Undertak,TRADING,Supplies & Services,DAA,14/01/2019,10-10001,529.5,Eastpoint
Nottinghamshire County Council,1111/1001,Surplus or Deficit from Trading Undertak,TRADING,Premises Related,BJA,14/01/2019,10-10001,600.12,Bunzl Retail & Healthcare Supp Ltd
Nottinghamshire County Council,1111/1001,Surplus or Deficit from Trading Undertak,TRADING,Premises Related,BJA,14/01/2019,10-10001,"2,347.36",Bunzl Cleaning & Hygiene Supplies
Nottinghamshire County Council,1111/1001,Surplus or Deficit from Trading Undertak,TRADING,Supplies & Services,DBA,14/01/2019,10-10001,682.83,North West Tea Service Ltd
Nottinghamshire County Council,1111/1001,Surplus or Deficit from Trading Undertak,TRADING,Premises Related,BJA,14/01/2019,10-10001,"1,128.56",Cromwell Polythene Ltd
Nottinghamshire County Council,1111/1001,Surplus or Deficit from Trading Undertak,TRADING,Supplies & Services,DKA,14/01/2019,10-10001,716.22,Kimberly Clark European Services Lt
Nottinghamshire County Council,1111/1001,Surplus or Deficit from Trading Undertak,TRADING,Supplies & Services,DAA,14/01/2019,10-10001,2234.4,Deco-Pak Ltd
Nottinghamshire County Council,1111/1001,Surplus or Deficit from Trading Undertak,TRADING,Supplies & Services,DAA,14/01/2019,10-10001,890.84,Metalliform Holdings Ltd
Nottinghamshire County Council,1111/1001,Surplus or Deficit from Trading Undertak,TRADING,Supplies & Services,DAA,14/01/2019,10-10001,527.16,Metalliform Holdings Ltd
Nottinghamshire County Council,1111/1001,Surplus or Deficit from Trading Undertak,TRADING,Employee Related,AAA,16/01/2019,10-10001,"1,139.99",Cash Flo Solution Ltd
Nottinghamshire County Council,1111/1001,Surplus or Deficit from Trading Undertak,TRADING,Premises Related,BJA,21/01/2019,10-10001,589.5,Robert Scott & Sons Ltd
Nottinghamshire County Council,1111/1001,Surplus or Deficit from Trading Undertak,TRADING,Premises Related,BJA,21/01/2019,10-10001,"2,379.22",Robert Scott & Sons Ltd
Nottinghamshire County Council,1111/1001,Surplus or Deficit from Trading Undertak,TRADING,Supplies & Services,DDA,21/01/2019,10-10001,893.2,Antalis Ltd
Nottinghamshire County Council,1111/1001,Surplus or Deficit from Trading Undertak,TRADING,Premises Related,BJA,21/01/2019,10-10001,1144.35,Diversey
Nottinghamshire County Council,1111/1001,Surplus or Deficit from Trading Undertak,TRADING,Premises Related,BJA,21/01/2019,10-10001,1802.93,Diversey
Nottinghamshire County Council,1111/1001,Surplus or Deficit from Trading Undertak,TRADING,Supplies & Services,DDA,21/01/2019,10-10001,514.16,Bostik Ltd
Nottinghamshire County Council,1111/1001,Surplus or Deficit from Trading Undertak,TRADING,Premises Related,BJA,21/01/2019,10-10001,1967.65,Scot Young Research Ltd
Nottinghamshire County Council,1111/1001,Surplus or Deficit from Trading Undertak,TRADING,Supplies & Services,DAA,21/01/2019,10-10001,776.7,Brian Clegg (Educational Products)
Nottinghamshire County Council,1111/1001,Surplus or Deficit from Trading Undertak,TRADING,Supplies & Services,DAA,21/01/2019,10-10001,745.2,Brian Clegg (Educational Products)
Nottinghamshire County Council,1111/1001,Surplus or Deficit from Trading Undertak,TRADING,Supplies & Services,DAA,21/01/2019,10-10001,745.2,Brian Clegg (Educational Products)
Nottinghamshire County Council,1111/1001,Surplus or Deficit from Trading Undertak,TRADING,Premises Related,BJA,21/01/2019,10-10001,520.4,Multex Chemicals Ltd
Nottinghamshire County Council,1111/1001,Surplus or Deficit from Trading Undertak,TRADING,Supplies & Services,DKA,21/01/2019,10-10001,7163.84,Essity Uk Ltd
Nottinghamshire County Council,1111/1001,Surplus or Deficit from Trading Undertak,TRADING,Supplies & Services,DAA,21/01/2019,10-10001,570,Dualit Ltd
Nottinghamshire County Council,1111/1001,Surplus or Deficit from Trading Undertak,TRADING,Supplies & Services,DDA,21/01/2019,10-10001,702.66,Slater Harrison & Company Ltd
Nottinghamshire County Council,1111/1001,Surplus or Deficit from Trading Undertak,TRADING,Supplies & Services,DDA,21/01/2019,10-10001,"3,254.52",Polystar Plastics Ltd
Nottinghamshire County Council,1111/1001,Surplus or Deficit from Trading Undertak,TRADING,Supplies & Services,DAA,21/01/2019,10-10001,881.1,Eastpoint
Nottinghamshire County Council,1111/1001,Surplus or Deficit from Trading Undertak,TRADING,Supplies & Services,DAA,21/01/2019,10-10001,552.8,Eastpoint
Nottinghamshire County Council,1111/1001,Surplus or Deficit from Trading Undertak,TRADING,Supplies & Services,DAA,21/01/2019,10-10001,633.5,Eastpoint
Nottinghamshire County Council,1111/1001,Surplus or Deficit from Trading Undertak,TRADING,Supplies & Services,DAA,21/01/2019,10-10001,"1,561.20",Eastpoint
Nottinghamshire County Council,1111/1001,Surplus or Deficit from Trading Undertak,TRADING,Supplies & Services,DAA,21/01/2019,10-10001,669.73,Eastpoint
Nottinghamshire County Council,1111/1001,Surplus or Deficit from Trading Undertak,TRADING,Premises Related,BJA,21/01/2019,10-10001,"1,216.66",Cromwell Polythene Ltd
Nottinghamshire County Council,1111/1001,Surplus or Deficit from Trading Undertak,TRADING,Premises Related,BAA,21/01/2019,10-10001,780,Stearn Electric Company Ltd
Nottinghamshire County Council,1111/1001,Surplus or Deficit from Trading Undertak,TRADING,Supplies & Services,DFA,21/01/2019,10-10001,621.3,Heritage Envelopes
Nottinghamshire County Council,1111/1001,Surplus or Deficit from Trading Undertak,TRADING,Supplies & Services,DAA,21/01/2019,10-10001,4079.04,Kent County Supplies
Nottinghamshire County Council,1111/1001,Surplus or Deficit from Trading Undertak,TRADING,Premises Related,BJA,21/01/2019,10-10001,502.14,Selden Research Ltd
Nottinghamshire County Council,1111/1001,Surplus or Deficit from Trading Undertak,TRADING,Supplies & Services,DAA,22/01/2019,10-10001,922.68,Gopak Ltd
Nottinghamshire County Council,1111/1001,Surplus or Deficit from Trading Undertak,TRADING,Supplies & Services,DAA,22/01/2019,10-10001,1237.65,Willowbrook Education Ltd
Nottinghamshire County Council,1111/1001,Surplus or Deficit from Trading Undertak,TRADING,Premises Related,BJA,24/01/2019,10-10001,"1,800.00",Henkel Ltd
Nottinghamshire County Council,1111/1001,Surplus or Deficit from Trading Undertak,TRADING,Supplies & Services,DAA,24/01/2019,10-10001,512.28,Vivid Laminating Technologies Ltd
Nottinghamshire County Council,1111/1001,Surplus or Deficit from Trading Undertak,TRADING,Supplies & Services,DAA,24/01/2019,10-10001,667.04,Vivid Laminating Technologies Ltd
Nottinghamshire County Council,1111/1001,Surplus or Deficit from Trading Undertak,TRADING,Employee Related,AAA,24/01/2019,10-10001,703.5,Monarch Education Furniture
Nottinghamshire County Council,1111/1001,Surplus or Deficit from Trading Undertak,TRADING,Supplies & Services,DAA,24/01/2019,10-10001,771.08,Bright Ideas Marketing Ltd
Nottinghamshire County Council,1111/1001,Surplus or Deficit from Trading Undertak,TRADING,Supplies & Services,DAA,24/01/2019,10-10001,"1,259.20",Willowbrook Education Ltd
Nottinghamshire County Council,1111/1001,Surplus or Deficit from Trading Undertak,TRADING,Supplies & Services,DCA,24/01/2019,10-10001,556.5,Jla Ltd
Nottinghamshire County Council,1111/1001,Surplus or Deficit from Trading Undertak,TRADING,Supplies & Services,DEA,24/01/2019,10-10001,572.92,Peter Smythe Transport Training Ltd
Nottinghamshire County Council,1111/1001,Surplus or Deficit from Trading Undertak,TRADING,Employee Related,AAA,25/01/2019,10-10001,1172.79,Cash Flo Solution Ltd
Nottinghamshire County Council,1111/1001,Surplus or Deficit from Trading Undertak,TRADING,Supplies & Services,DDA,28/01/2019,10-10001,1060,Antalis Ltd
Nottinghamshire County Council,1111/1001,Surplus or Deficit from Trading Undertak,TRADING,Supplies & Services,DDA,28/01/2019,10-10001,"1,060.00",Antalis Ltd
Nottinghamshire County Council,1111/1001,Surplus or Deficit from Trading Undertak,TRADING,Supplies & Services,DFA,28/01/2019,10-10001,510.88,Ccs Media Ltd
Nottinghamshire County Council,1111/1001,Surplus or Deficit from Trading Undertak,TRADING,Supplies & Services,DDA,28/01/2019,10-10001,555.52,Banner Group Limited
Nottinghamshire County Council,1111/1001,Surplus or Deficit from Trading Undertak,TRADING,Supplies & Services,DAA,28/01/2019,10-10001,695.5,Office Innovations
Nottinghamshire County Council,1111/1001,Surplus or Deficit from Trading Undertak,TRADING,Supplies & Services,DAA,28/01/2019,10-10001,990,Hille Ltd
Nottinghamshire County Council,1111/1001,Surplus or Deficit from Trading Undertak,TRADING,Supplies & Services,DAA,28/01/2019,10-10001,"1,698.30",Hille Ltd
Nottinghamshire County Council,1111/1001,Surplus or Deficit from Trading Undertak,TRADING,Employee Related,AAA,30/01/2019,10-10001,1025,Advanced Business Software & Soluti
Nottinghamshire County Council,1111/1001,Surplus or Deficit from Trading Undertak,TRADING,Employee Related,AAA,30/01/2019,10-10001,50144.95,Advanced Business Software & Soluti
Nottinghamshire County Council,1111/1001,Children and Young People,CYP,Employee Related,ABA,16/01/2019,10-17212,800,Nottinghamshire Healthcare Nhs F Tr
Nottinghamshire County Council,1111/1001,Children and Young People,CYP,Employee Related,ABA,31/01/2019,10-17476,2346.5,Orange Moon Childcare CIC
Nottinghamshire County Council,1111/1001,Children and Young People,CYP,Premises Related,BAA,07/01/2019,10-10508,73.23,ARC Property Services Partnership L
Nottinghamshire County Council,1111/1001,Children and Young People,CYP,Premises Related,BAA,07/01/2019,10-10511,"10,353.00",ARC Property Services Partnership L
Nottinghamshire County Council,1111/1001,Children and Young People,CYP,Premises Related,BAA,07/01/2019,10-10514,"14,778.21",ARC Property Services Partnership L
Nottinghamshire County Council,1111/1001,Children and Young People,CYP,Premises Related,BAA,09/01/2019,10-17003,"1,120.62",Glentworth Security Ltd
Nottinghamshire County Council,1111/1001,Children and Young People,CYP,Premises Related,BAA,18/01/2019,10-12847,"1,039.50",ARC Property Services Partnership L
Nottinghamshire County Council,1111/1001,Children and Young People,CYP,Premises Related,BAA,18/01/2019,10-12849,7990.73,ARC Property Services Partnership L
Nottinghamshire County Council,1111/1001,Children and Young People,CYP,Premises Related,BAA,24/01/2019,10-16101,99.22,ARC Property Services Partnership L
Nottinghamshire County Council,1111/1001,Children and Young People,CYP,Premises Related,BAA,24/01/2019,10-16106,8624.81,ARC Property Services Partnership L
Nottinghamshire County Council,1111/1001,Children and Young People,CYP,Premises Related,BAA,29/01/2019,10-16558,419.14,ARC Property Services Partnership L
Nottinghamshire County Council,1111/1001,Children and Young People,CYP,Premises Related,BAA,29/01/2019,10-16561,892.5,ARC Property Services Partnership L
Nottinghamshire County Council,1111/1001,Children and Young People,CYP,Premises Related,BAA,29/01/2019,10-16562,8545.62,ARC Property Services Partnership L
Nottinghamshire County Council,1111/1001,Children and Young People,CYP,Premises Related,BCA,18/01/2019,10-17091,"1,050.50",Certas Energy UK Ltd T/A Pace Fuelc
Nottinghamshire County Council,1111/1001,Children and Young People,CYP,Premises Related,BCA,23/01/2019,10-17399,651,High Park Industries Ltd
Nottinghamshire County Council,1111/1001,Children and Young People,CYP,Premises Related,BCA,25/01/2019,10-17450,1281,High Park Industries Ltd
Nottinghamshire County Council,1111/1001,Children and Young People,CYP,Premises Related,BCA,31/01/2019,10-17520,697.2,High Park Industries Ltd
Nottinghamshire County Council,1111/1001,Children and Young People,CYP,Premises Related,BDA,02/01/2019,10-10004,750,Thoresby Estate
Nottinghamshire County Council,1111/1001,Children and Young People,CYP,Premises Related,BDA,02/01/2019,10-10005,"8,294.00",Sherwood Forest Hosp Nhs Trust
Nottinghamshire County Council,1111/1001,Children and Young People,CYP,Premises Related,BDA,02/01/2019,10-10007,840,High Peak Borough Council
Nottinghamshire County Council,1111/1001,Children and Young People,CYP,Premises Related,BDA,02/01/2019,10-10008,631,Derbyshire Dales District Council
Nottinghamshire County Council,1111/1001,Children and Young People,CYP,Premises Related,BDA,02/01/2019,10-10012,575,Jillings Estates Ltd
Nottinghamshire County Council,1111/1001,Children and Young People,CYP,Premises Related,BDA,22/01/2019,10-17230,"2,972.50",The Albert Hall Nottm Ltd
Nottinghamshire County Council,1111/1001,Children and Young People,CYP,Premises Related,BDA,22/01/2019,10-17387,20705.54,Family Action (Head Office)
Nottinghamshire County Council,1111/1001,Children and Young People,CYP,Premises Related,BDA,22/01/2019,10-17392,1976.72,Family Action (Head Office)
Nottinghamshire County Council,1111/1001,Children and Young People,CYP,Premises Related,BDA,28/01/2019,10-17393,500,Compass Contract Services (U.K.) Lt
Nottinghamshire County Council,1111/1001,Children and Young People,CYP,Premises Related,BDA,29/01/2019,10-16556,6291.68,Newark & Sherwood District Council
Nottinghamshire County Council,1111/1001,Children and Young People,CYP,Premises Related,BDA,29/01/2019,10-16557,8711.55,Newark & Sherwood District Council
Nottinghamshire County Council,1111/1001,Children and Young People,CYP,Premises Related,BEA,03/01/2019,10-10048,902.46,Mansfield District Council
Nottinghamshire County Council,1111/1001,Children and Young People,CYP,Transport Related,CAA,11/01/2019,10-12184,1045.94,Via East Midlands Ltd
Nottinghamshire County Council,1111/1001,Children and Young People,CYP,Transport Related,CAA,28/01/2019,10-16373,1249,Via East Midlands Ltd
Nottinghamshire County Council,1111/1001,Children and Young People,CYP,Transport Related,CAA,28/01/2019,10-16381,929.37,Via East Midlands Ltd
Nottinghamshire County Council,1111/1001,Children and Young People,CYP,Transport Related,CCA,04/01/2019,10-10409,900,Bridges Transport Ltd
Nottinghamshire County Council,1111/1001,Children and Young People,CYP,Transport Related,CCA,09/01/2019,10-11771,1500,All Wayz Travel
Nottinghamshire County Council,1111/1001,Children and Young People,CYP,Transport Related,CCA,09/01/2019,10-11772,2041.5,All Wayz Travel
Nottinghamshire County Council,1111/1001,Children and Young People,CYP,Transport Related,CCA,09/01/2019,10-11773,1500,All Wayz Travel
Nottinghamshire County Council,1111/1001,Children and Young People,CYP,Transport Related,CCA,09/01/2019,10-11774,1820,All Wayz Travel
Nottinghamshire County Council,1111/1001,Children and Young People,CYP,Transport Related,CCA,09/01/2019,10-11828,1136.25,Bridges Transport Ltd
Nottinghamshire County Council,1111/1001,Children and Young People,CYP,Transport Related,CCA,09/01/2019,10-11831,1106.58,Bridges Transport Ltd
Nottinghamshire County Council,1111/1001,Children and Young People,CYP,Transport Related,CCA,09/01/2019,10-11833,1531.8,Bridges Transport Ltd
Nottinghamshire County Council,1111/1001,Children and Young People,CYP,Transport Related,CCA,09/01/2019,10-11834,1124.85,Bridges Transport Ltd
Nottinghamshire County Council,1111/1001,Children and Young People,CYP,Transport Related,CCA,09/01/2019,10-11835,1889.02,Bridges Transport Ltd
Nottinghamshire County Council,1111/1001,Children and Young People,CYP,Transport Related,CCA,09/01/2019,10-11836,"1,828.65",Bridges Transport Ltd
Nottinghamshire County Council,1111/1001,Children and Young People,CYP,Transport Related,CCA,09/01/2019,10-11837,818.1,Bridges Transport Ltd
Nottinghamshire County Council,1111/1001,Children and Young People,CYP,Transport Related,CCA,09/01/2019,10-11838,2333.1,Bridges Transport Ltd
Nottinghamshire County Council,1111/1001,Children and Young People,CYP,Transport Related,CCA,09/01/2019,10-11839,1113.15,Bridges Transport Ltd
Nottinghamshire County Council,1111/1001,Children and Young People,CYP,Transport Related,CCA,09/01/2019,10-11840,720,Bridges Transport Ltd
Nottinghamshire County Council,1111/1001,Children and Young People,CYP,Transport Related,CCA,09/01/2019,10-11841,835,Fozcabs Newark Taxis
Nottinghamshire County Council,1111/1001,Children and Young People,CYP,Transport Related,CCA,09/01/2019,10-11842,"1,635.00",Galaxy Cabs Ltd
Nottinghamshire County Council,1111/1001,Children and Young People,CYP,Transport Related,CCA,09/01/2019,10-11844,"2,160.00",Galaxy Cabs Ltd
Nottinghamshire County Council,1111/1001,Children and Young People,CYP,Transport Related,CCA,09/01/2019,10-11845,"1,386.00",Shelleys Taxis Ltd
Nottinghamshire County Council,1111/1001,Children and Young People,CYP,Transport Related,CCA,09/01/2019,10-11846,1484.7,Shelleys Taxis Ltd
Nottinghamshire County Council,1111/1001,Children and Young People,CYP,Transport Related,CCA,09/01/2019,10-11847,1050,Shelleys Taxis Ltd
Nottinghamshire County Council,1111/1001,Children and Young People,CYP,Transport Related,CCA,09/01/2019,10-11848,960,Shelleys Taxis Ltd
Nottinghamshire County Council,1111/1001,Children and Young People,CYP,Transport Related,CCA,09/01/2019,10-11849,675,Shelleys Taxis Ltd
Nottinghamshire County Council,1111/1001,Children and Young People,CYP,Transport Related,CCA,09/01/2019,10-11851,"1,680.00",Shelleys Taxis Ltd
Nottinghamshire County Council,1111/1001,Children and Young People,CYP,Transport Related,CCA,09/01/2019,10-11852,700,Elkingtons Park Garage
Nottinghamshire County Council,1111/1001,Children and Young People,CYP,Transport Related,CCA,09/01/2019,10-11853,"1,867.50",K & S Coaches
Nottinghamshire County Council,1111/1001,Children and Young People,CYP,Transport Related,CCA,09/01/2019,10-11854,900,D G Private Hire Ltd
Nottinghamshire County Council,1111/1001,Children and Young People,CYP,Transport Related,CCA,09/01/2019,10-11855,1500,D G Private Hire Ltd
Nottinghamshire County Council,1111/1001,Children and Young People,CYP,Transport Related,CCA,09/01/2019,10-11856,757.5,D G Private Hire Ltd
Nottinghamshire County Council,1111/1001,Children and Young People,CYP,Transport Related,CCA,09/01/2019,10-11857,900,D G Private Hire Ltd
Nottinghamshire County Council,1111/1001,Children and Young People,CYP,Transport Related,CCA,09/01/2019,10-11858,"1,650.00",K & R Cars
Nottinghamshire County Council,1111/1001,Children and Young People,CYP,Transport Related,CCA,09/01/2019,10-11859,"1,500.52",Marshalls Of Sutton On Trent Ltd
Nottinghamshire County Council,1111/1001,Children and Young People,CYP,Transport Related,CCA,09/01/2019,10-11867,"1,852.32",Marshalls Of Sutton On Trent Ltd
Nottinghamshire County Council,1111/1001,Children and Young People,CYP,Transport Related,CCA,09/01/2019,10-11869,3038.85,Marshalls Of Sutton On Trent Ltd
Nottinghamshire County Council,1111/1001,Children and Young People,CYP,Transport Related,CCA,09/01/2019,10-11876,2364.6,Nottingham Minibuses & Coaches
Nottinghamshire County Council,1111/1001,Children and Young People,CYP,Transport Related,CCA,09/01/2019,10-11877,"1,496.10",Nottingham Minibuses & Coaches
Nottinghamshire County Council,1111/1001,Children and Young People,CYP,Transport Related,CCA,09/01/2019,10-11879,2160,Kettlewell Retford Ltd
Nottinghamshire County Council,1111/1001,Children and Young People,CYP,Transport Related,CCA,09/01/2019,10-11880,"3,290.00",Kettlewell Retford Ltd
Nottinghamshire County Council,1111/1001,Children and Young People,CYP,Transport Related,CCA,09/01/2019,10-11881,2296,Kettlewell Retford Ltd
Nottinghamshire County Council,1111/1001,Children and Young People,CYP,Transport Related,CCA,09/01/2019,10-11882,2296,Kettlewell Retford Ltd
Nottinghamshire County Council,1111/1001,Children and Young People,CYP,Transport Related,CCA,09/01/2019,10-11883,2170,Kettlewell Retford Ltd
Nottinghamshire County Council,1111/1001,Children and Young People,CYP,Transport Related,CCA,09/01/2019,10-11884,"1,582.00",Kettlewell Retford Ltd
Nottinghamshire County Council,1111/1001,Children and Young People,CYP,Transport Related,CCA,09/01/2019,10-11885,2590,Kettlewell Retford Ltd
Nottinghamshire County Council,1111/1001,Children and Young People,CYP,Transport Related,CCA,09/01/2019,10-11886,3212.6,Kettlewell Retford Ltd
Nottinghamshire County Council,1111/1001,Children and Young People,CYP,Transport Related,CCA,09/01/2019,10-11888,935,Rio Cabs
Nottinghamshire County Council,1111/1001,Children and Young People,CYP,Transport Related,CCA,09/01/2019,10-11889,"4,032.15",Isle Coaches
Nottinghamshire County Council,1111/1001,Children and Young People,CYP,Transport Related,CCA,09/01/2019,10-11890,828,I Can Charity
Nottinghamshire County Council,1111/1001,Children and Young People,CYP,Transport Related,CCA,09/01/2019,10-11891,540,Bulls Taxis
Nottinghamshire County Council,1111/1001,Children and Young People,CYP,Transport Related,CCA,09/01/2019,10-11892,"1,087.50",Sean's Taxi Services
Nottinghamshire County Council,1111/1001,Children and Young People,CYP,Transport Related,CCA,09/01/2019,10-11895,"1,125.00",APC Travel
Nottinghamshire County Council,1111/1001,Children and Young People,CYP,Transport Related,CCA,09/01/2019,10-11896,2520,Unity Coaches Ltd
Nottinghamshire County Council,1111/1001,Children and Young People,CYP,Transport Related,CCA,09/01/2019,10-11987,900,Ace Of Mansfield Ltd
Nottinghamshire County Council,1111/1001,Children and Young People,CYP,Transport Related,CCA,09/01/2019,10-11993,"2,198.00",Bridges Transport Ltd
Nottinghamshire County Council,1111/1001,Children and Young People,CYP,Transport Related,CCA,09/01/2019,10-11994,2075.55,D G Private Hire Ltd
Nottinghamshire County Council,1111/1001,Children and Young People,CYP,Transport Related,CCA,09/01/2019,10-11995,"1,200.00",D G Private Hire Ltd
Nottinghamshire County Council,1111/1001,Children and Young People,CYP,Transport Related,CCA,09/01/2019,10-11996,"1,060.50",D G Private Hire Ltd
Nottinghamshire County Council,1111/1001,Children and Young People,CYP,Transport Related,CCA,09/01/2019,10-11998,308,Abacus Cars
Nottinghamshire County Council,1111/1001,Children and Young People,CYP,Transport Related,CCA,09/01/2019,10-12002,"1,235.00",Abacus Cars
Nottinghamshire County Council,1111/1001,Children and Young People,CYP,Transport Related,CCA,09/01/2019,10-12004,600,Abacus Cars
Nottinghamshire County Council,1111/1001,Children and Young People,CYP,Transport Related,CCA,09/01/2019,10-12005,1330,Abacus Cars
Nottinghamshire County Council,1111/1001,Children and Young People,CYP,Transport Related,CCA,09/01/2019,10-12006,1232,Abacus Cars
Nottinghamshire County Council,1111/1001,Children and Young People,CYP,Transport Related,CCA,09/01/2019,10-12007,1009.68,Abacus Cars
Nottinghamshire County Council,1111/1001,Children and Young People,CYP,Transport Related,CCA,09/01/2019,10-12008,1560,Abacus Cars
Nottinghamshire County Council,1111/1001,Children and Young People,CYP,Transport Related,CCA,09/01/2019,10-12009,1400,Abacus Cars
Nottinghamshire County Council,1111/1001,Children and Young People,CYP,Transport Related,CCA,09/01/2019,10-12010,1540,Abacus Cars
Nottinghamshire County Council,1111/1001,Children and Young People,CYP,Transport Related,CCA,09/01/2019,10-12011,"2,100.00",Abacus Cars
Nottinghamshire County Council,1111/1001,Children and Young People,CYP,Transport Related,CCA,09/01/2019,10-12012,900,Abacus Cars
Nottinghamshire County Council,1111/1001,Children and Young People,CYP,Transport Related,CCA,09/01/2019,10-12014,"2,461.62",Marshalls Of Sutton On Trent Ltd
Nottinghamshire County Council,1111/1001,Children and Young People,CYP,Transport Related,CCA,09/01/2019,10-12019,1571.1,Silverdale Tours Nottm Ltd
Nottinghamshire County Council,1111/1001,Children and Young People,CYP,Transport Related,CCA,09/01/2019,10-12020,4998,Kettlewell Retford Ltd
Nottinghamshire County Council,1111/1001,Children and Young People,CYP,Transport Related,CCA,09/01/2019,10-12021,654,Rio Cabs
Nottinghamshire County Council,1111/1001,Children and Young People,CYP,Transport Related,CCA,09/01/2019,10-12022,693,Rio Cabs
Nottinghamshire County Council,1111/1001,Children and Young People,CYP,Transport Related,CCA,09/01/2019,10-12024,1806,Rio Cabs
Nottinghamshire County Council,1111/1001,Children and Young People,CYP,Transport Related,CCA,09/01/2019,10-12025,840,Rio Cabs
Nottinghamshire County Council,1111/1001,Children and Young People,CYP,Transport Related,CCA,09/01/2019,10-12027,"1,888.30",Nottingham Coaches
Nottinghamshire County Council,1111/1001,Children and Young People,CYP,Transport Related,CCA,09/01/2019,10-12029,6407.5,Nottingham Coaches
Nottinghamshire County Council,1111/1001,Children and Young People,CYP,Transport Related,CCA,10/01/2019,10-12064,"1,020.00",Southside Cars
Nottinghamshire County Council,1111/1001,Children and Young People,CYP,Transport Related,CCA,10/01/2019,10-12065,"1,784.00",6 Five 2s
Nottinghamshire County Council,1111/1001,Children and Young People,CYP,Transport Related,CCA,10/01/2019,10-12066,1425,6 Five 2s
Nottinghamshire County Council,1111/1001,Children and Young People,CYP,Transport Related,CCA,10/01/2019,10-12067,975,6 Five 2s
Nottinghamshire County Council,1111/1001,Children and Young People,CYP,Transport Related,CCA,10/01/2019,10-12068,"1,780.80",6 Five 2s
Nottinghamshire County Council,1111/1001,Children and Young People,CYP,Transport Related,CCA,10/01/2019,10-12069,1540,6 Five 2s
Nottinghamshire County Council,1111/1001,Children and Young People,CYP,Transport Related,CCA,10/01/2019,10-12070,"1,248.80",6 Five 2s
Nottinghamshire County Council,1111/1001,Children and Young People,CYP,Transport Related,CCA,10/01/2019,10-12071,1316,6 Five 2s
Nottinghamshire County Council,1111/1001,Children and Young People,CYP,Transport Related,CCA,10/01/2019,10-12072,"1,800.00",6 Five 2s
Nottinghamshire County Council,1111/1001,Children and Young People,CYP,Transport Related,CCA,10/01/2019,10-12073,840,6 Five 2s
Nottinghamshire County Council,1111/1001,Children and Young People,CYP,Transport Related,CCA,10/01/2019,10-12074,"1,750.00",All Wayz Travel
Nottinghamshire County Council,1111/1001,Children and Young People,CYP,Transport Related,CCA,10/01/2019,10-12075,1453.65,Central Cars Nottm Ltd
Nottinghamshire County Council,1111/1001,Children and Young People,CYP,Transport Related,CCA,10/01/2019,10-12076,1955,Wrights Coaches T/A Little Transpor
Nottinghamshire County Council,1111/1001,Children and Young People,CYP,Transport Related,CCA,10/01/2019,10-12080,"1,440.00",Ace Of Mansfield Ltd
Nottinghamshire County Council,1111/1001,Children and Young People,CYP,Transport Related,CCA,10/01/2019,10-12081,"2,100.00",Arnold Acorn Travel
Nottinghamshire County Council,1111/1001,Children and Young People,CYP,Transport Related,CCA,10/01/2019,10-12082,600,Acorn Contracts
Nottinghamshire County Council,1111/1001,Children and Young People,CYP,Transport Related,CCA,10/01/2019,10-12083,"1,260.00",Alpha Cars
Nottinghamshire County Council,1111/1001,Children and Young People,CYP,Transport Related,CCA,10/01/2019,10-12084,"1,350.00",Alpha Cars
Nottinghamshire County Council,1111/1001,Children and Young People,CYP,Transport Related,CCA,10/01/2019,10-12085,2160,Alpha Cars
Nottinghamshire County Council,1111/1001,Children and Young People,CYP,Transport Related,CCA,10/01/2019,10-12086,1851,Alpha Cars
Nottinghamshire County Council,1111/1001,Children and Young People,CYP,Transport Related,CCA,10/01/2019,10-12087,817.74,Alpha Cars
Nottinghamshire County Council,1111/1001,Children and Young People,CYP,Transport Related,CCA,10/01/2019,10-12092,"1,914.00",Galaxy Cabs Ltd
Nottinghamshire County Council,1111/1001,Children and Young People,CYP,Transport Related,CCA,10/01/2019,10-12093,909,Galaxy Cabs Ltd
Nottinghamshire County Council,1111/1001,Children and Young People,CYP,Transport Related,CCA,10/01/2019,10-12094,834,Galaxy Cabs Ltd
Nottinghamshire County Council,1111/1001,Children and Young People,CYP,Transport Related,CCA,10/01/2019,10-12095,"1,372.00",Galaxy Cabs Ltd
Nottinghamshire County Council,1111/1001,Children and Young People,CYP,Transport Related,CCA,10/01/2019,10-12096,534.6,Galaxy Cabs Ltd
Nottinghamshire County Council,1111/1001,Children and Young People,CYP,Transport Related,CCA,10/01/2019,10-12099,2156,Horizon Travel
Nottinghamshire County Council,1111/1001,Children and Young People,CYP,Transport Related,CCA,10/01/2019,10-12100,900,Ng11 Cars
Nottinghamshire County Council,1111/1001,Children and Young People,CYP,Transport Related,CCA,10/01/2019,10-12101,"1,456.00",Shelleys Taxis Ltd
Nottinghamshire County Council,1111/1001,Children and Young People,CYP,Transport Related,CCA,10/01/2019,10-12102,989.8,Shelleys Taxis Ltd
Nottinghamshire County Council,1111/1001,Children and Young People,CYP,Transport Related,CCA,10/01/2019,10-12103,"1,456.00",Shelleys Taxis Ltd
Nottinghamshire County Council,1111/1001,Children and Young People,CYP,Transport Related,CCA,10/01/2019,10-12104,1540,Shelleys Taxis Ltd
Nottinghamshire County Council,1111/1001,Children and Young People,CYP,Transport Related,CCA,10/01/2019,10-12105,1120,Shelleys Taxis Ltd
Nottinghamshire County Council,1111/1001,Children and Young People,CYP,Transport Related,CCA,10/01/2019,10-12106,1500,Shelleys Taxis Ltd
Nottinghamshire County Council,1111/1001,Children and Young People,CYP,Transport Related,CCA,10/01/2019,10-12108,3563.34,BN Gibson Ltd
Nottinghamshire County Council,1111/1001,Children and Young People,CYP,Transport Related,CCA,10/01/2019,10-12109,"1,824.90",BN Gibson Ltd
Nottinghamshire County Council,1111/1001,Children and Young People,CYP,Transport Related,CCA,10/01/2019,10-12110,3202.65,BN Gibson Ltd
Nottinghamshire County Council,1111/1001,Children and Young People,CYP,Transport Related,CCA,10/01/2019,10-12111,3508.8,BN Gibson Ltd
Nottinghamshire County Council,1111/1001,Children and Young People,CYP,Transport Related,CCA,10/01/2019,10-12112,"2,046.90",BN Gibson Ltd
Nottinghamshire County Council,1111/1001,Children and Young People,CYP,Transport Related,CCA,10/01/2019,10-12113,1724.7,BN Gibson Ltd
Nottinghamshire County Council,1111/1001,Children and Young People,CYP,Transport Related,CCA,10/01/2019,10-12114,"1,463.40",BN Gibson Ltd
Nottinghamshire County Council,1111/1001,Children and Young People,CYP,Transport Related,CCA,10/01/2019,10-12115,"1,724.70",BN Gibson Ltd
Nottinghamshire County Council,1111/1001,Children and Young People,CYP,Transport Related,CCA,10/01/2019,10-12116,"1,951.18",BN Gibson Ltd
Nottinghamshire County Council,1111/1001,Children and Young People,CYP,Transport Related,CCA,10/01/2019,10-12117,2114.56,BN Gibson Ltd
Nottinghamshire County Council,1111/1001,Children and Young People,CYP,Transport Related,CCA,10/01/2019,10-12118,1560.86,BN Gibson Ltd
Nottinghamshire County Council,1111/1001,Children and Young People,CYP,Transport Related,CCA,10/01/2019,10-12119,1792.98,BN Gibson Ltd
Nottinghamshire County Council,1111/1001,Children and Young People,CYP,Transport Related,CCA,10/01/2019,10-12120,3680.7,BN Gibson Ltd
Nottinghamshire County Council,1111/1001,Children and Young People,CYP,Transport Related,CCA,10/01/2019,10-12121,1824.9,BN Gibson Ltd
Nottinghamshire County Council,1111/1001,Children and Young People,CYP,Transport Related,CCA,10/01/2019,10-12122,2218.95,BN Gibson Ltd
Nottinghamshire County Council,1111/1001,Children and Young People,CYP,Transport Related,CCA,10/01/2019,10-12123,"2,933.85",BN Gibson Ltd
Nottinghamshire County Council,1111/1001,Children and Young People,CYP,Transport Related,CCA,10/01/2019,10-12124,"2,426.55",BN Gibson Ltd
Nottinghamshire County Council,1111/1001,Children and Young People,CYP,Transport Related,CCA,10/01/2019,10-12125,1986,BN Gibson Ltd
Nottinghamshire County Council,1111/1001,Children and Young People,CYP,Transport Related,CCA,10/01/2019,10-12127,2655.45,BN Gibson Ltd
Nottinghamshire County Council,1111/1001,Children and Young People,CYP,Transport Related,CCA,10/01/2019,10-12128,"4,359.15",BN Gibson Ltd
Nottinghamshire County Council,1111/1001,Children and Young People,CYP,Transport Related,CCA,10/01/2019,10-12129,2449.2,BN Gibson Ltd
Nottinghamshire County Council,1111/1001,Children and Young People,CYP,Transport Related,CCA,10/01/2019,10-12130,3085.35,BN Gibson Ltd
Nottinghamshire County Council,1111/1001,Children and Young People,CYP,Transport Related,CCA,10/01/2019,10-12131,2833.8,BN Gibson Ltd
Nottinghamshire County Council,1111/1001,Children and Young People,CYP,Transport Related,CCA,10/01/2019,10-12132,2448.3,BN Gibson Ltd
Nottinghamshire County Council,1111/1001,Children and Young People,CYP,Transport Related,CCA,10/01/2019,10-12133,"1,932.45",BN Gibson Ltd
Nottinghamshire County Council,1111/1001,Children and Young People,CYP,Transport Related,CCA,10/01/2019,10-12134,"1,800.45",BN Gibson Ltd
Nottinghamshire County Council,1111/1001,Children and Young People,CYP,Transport Related,CCA,10/01/2019,10-12135,1729.05,BN Gibson Ltd
Nottinghamshire County Council,1111/1001,Children and Young People,CYP,Transport Related,CCA,10/01/2019,10-12136,1581.58,BN Gibson Ltd
Nottinghamshire County Council,1111/1001,Children and Young People,CYP,Transport Related,CCA,10/01/2019,10-12137,"2,788.50",BN Gibson Ltd
Nottinghamshire County Council,1111/1001,Children and Young People,CYP,Transport Related,CCA,10/01/2019,10-12138,1515,BN Gibson Ltd
Nottinghamshire County Council,1111/1001,Children and Young People,CYP,Transport Related,CCA,10/01/2019,10-12139,1398,BN Gibson Ltd
Nottinghamshire County Council,1111/1001,Children and Young People,CYP,Transport Related,CCA,10/01/2019,10-12140,"1,597.80",BN Gibson Ltd
Nottinghamshire County Council,1111/1001,Children and Young People,CYP,Transport Related,CCA,10/01/2019,10-12141,"1,547.85",BN Gibson Ltd
Nottinghamshire County Council,1111/1001,Children and Young People,CYP,Transport Related,CCA,10/01/2019,10-12142,"1,597.80",BN Gibson Ltd
Nottinghamshire County Council,1111/1001,Children and Young People,CYP,Transport Related,CCA,10/01/2019,10-12143,2429.55,BN Gibson Ltd
Nottinghamshire County Council,1111/1001,Children and Young People,CYP,Transport Related,CCA,10/01/2019,10-12144,1737.53,BN Gibson Ltd
Nottinghamshire County Council,1111/1001,Children and Young People,CYP,Transport Related,CCA,10/01/2019,10-12146,"1,530.75",BN Gibson Ltd
Nottinghamshire County Council,1111/1001,Children and Young People,CYP,Transport Related,CCA,10/01/2019,10-12147,1583.55,BN Gibson Ltd
Nottinghamshire County Council,1111/1001,Children and Young People,CYP,Transport Related,CCA,10/01/2019,10-12149,"1,955.94",BN Gibson Ltd
Nottinghamshire County Council,1111/1001,Children and Young People,CYP,Transport Related,CCA,10/01/2019,10-12150,2041.05,Midfield Travel
Nottinghamshire County Council,1111/1001,Children and Young People,CYP,Transport Related,CCA,10/01/2019,10-12151,"1,945.95",Midfield Travel
Nottinghamshire County Council,1111/1001,Children and Young People,CYP,Transport Related,CCA,10/01/2019,10-12156,"2,450.00",Marshalls Of Sutton On Trent Ltd
Nottinghamshire County Council,1111/1001,Children and Young People,CYP,Transport Related,CCA,10/01/2019,10-12157,1035,Meden Travel
Nottinghamshire County Council,1111/1001,Children and Young People,CYP,Transport Related,CCA,10/01/2019,10-12158,"2,602.50",Travel Wright Ltd
Nottinghamshire County Council,1111/1001,Children and Young People,CYP,Transport Related,CCA,10/01/2019,10-12159,2602.5,Travel Wright Ltd
Nottinghamshire County Council,1111/1001,Children and Young People,CYP,Transport Related,CCA,10/01/2019,10-12160,2557.31,Travel Wright Ltd
Nottinghamshire County Council,1111/1001,Children and Young People,CYP,Transport Related,CCA,10/01/2019,10-12162,3000,Dunn Motor Traction Ltd
Nottinghamshire County Council,1111/1001,Children and Young People,CYP,Transport Related,CCA,10/01/2019,10-12163,2250,Dunn Motor Traction Ltd
Nottinghamshire County Council,1111/1001,Children and Young People,CYP,Transport Related,CCA,10/01/2019,10-12164,2100,Dunn Motor Traction Ltd
Nottinghamshire County Council,1111/1001,Children and Young People,CYP,Transport Related,CCA,10/01/2019,10-12165,2250,Dunn Motor Traction Ltd
Nottinghamshire County Council,1111/1001,Children and Young People,CYP,Transport Related,CCA,10/01/2019,10-12166,2601.3,K Matthews Travel
Nottinghamshire County Council,1111/1001,Children and Young People,CYP,Transport Related,CCA,10/01/2019,10-12167,"2,448.30",K Matthews Travel
Nottinghamshire County Council,1111/1001,Children and Young People,CYP,Transport Related,CCA,10/01/2019,10-12169,"1,098.90",Rio Cabs
Nottinghamshire County Council,1111/1001,Children and Young People,CYP,Transport Related,CCA,10/01/2019,10-12170,1500,Rio Cabs
Nottinghamshire County Council,1111/1001,Children and Young People,CYP,Transport Related,CCA,10/01/2019,10-12171,1897.08,Nottingham Community Transport
Nottinghamshire County Council,1111/1001,Children and Young People,CYP,Transport Related,CCA,10/01/2019,10-12172,598,I Can Charity
Nottinghamshire County Council,1111/1001,Children and Young People,CYP,Transport Related,CCA,10/01/2019,10-12173,"1,470.00",Travel Liner
Nottinghamshire County Council,1111/1001,Children and Young People,CYP,Transport Related,CCA,10/01/2019,10-12174,"8,764.45",Nottingham Coaches
Nottinghamshire County Council,1111/1001,Children and Young People,CYP,Transport Related,CCA,10/01/2019,10-12175,1888.35,Nottingham Coaches
Nottinghamshire County Council,1111/1001,Children and Young People,CYP,Transport Related,CCA,10/01/2019,10-12176,600,Eastwood Cars (UK) Ltd
Nottinghamshire County Council,1111/1001,Children and Young People,CYP,Transport Related,CCA,10/01/2019,10-12177,"1,083.00",Nunns Taxis Ltd
Nottinghamshire County Council,1111/1001,Children and Young People,CYP,Transport Related,CCA,10/01/2019,10-12178,980,ADF Cars Ltd
Nottinghamshire County Council,1111/1001,Children and Young People,CYP,Transport Related,CCA,10/01/2019,10-12180,1200,ADF Cars Ltd
Nottinghamshire County Council,1111/1001,Children and Young People,CYP,Transport Related,CCA,10/01/2019,10-12182,"1,725.00",CT4N Ltd
Nottinghamshire County Council,1111/1001,Children and Young People,CYP,Transport Related,CCA,10/01/2019,10-12183,1650,CT4N Ltd
Nottinghamshire County Council,1111/1001,Children and Young People,CYP,Transport Related,CCA,11/01/2019,10-11775,1863.6,Arrow Specialised Transport Ltd
Nottinghamshire County Council,1111/1001,Children and Young People,CYP,Transport Related,CCA,11/01/2019,10-11776,3195,Arrow Specialised Transport Ltd
Nottinghamshire County Council,1111/1001,Children and Young People,CYP,Transport Related,CCA,11/01/2019,10-11777,"1,605.00",Arrow Specialised Transport Ltd
Nottinghamshire County Council,1111/1001,Children and Young People,CYP,Transport Related,CCA,11/01/2019,10-11778,"2,306.25",Arrow Specialised Transport Ltd
Nottinghamshire County Council,1111/1001,Children and Young People,CYP,Transport Related,CCA,11/01/2019,10-11779,2981.25,Arrow Specialised Transport Ltd
Nottinghamshire County Council,1111/1001,Children and Young People,CYP,Transport Related,CCA,11/01/2019,10-11780,1659,Arrow Specialised Transport Ltd
Nottinghamshire County Council,1111/1001,Children and Young People,CYP,Transport Related,CCA,11/01/2019,10-11781,"1,671.00",Arrow Specialised Transport Ltd
Nottinghamshire County Council,1111/1001,Children and Young People,CYP,Transport Related,CCA,11/01/2019,10-11782,"1,805.70",Arrow Specialised Transport Ltd
Nottinghamshire County Council,1111/1001,Children and Young People,CYP,Transport Related,CCA,11/01/2019,10-11783,"1,459.65",Arrow Specialised Transport Ltd
Nottinghamshire County Council,1111/1001,Children and Young People,CYP,Transport Related,CCA,11/01/2019,10-11784,"2,237.85",Arrow Specialised Transport Ltd
Nottinghamshire County Council,1111/1001,Children and Young People,CYP,Transport Related,CCA,11/01/2019,10-11785,"1,579.35",Arrow Specialised Transport Ltd
Nottinghamshire County Council,1111/1001,Children and Young People,CYP,Transport Related,CCA,11/01/2019,10-11786,"2,842.50",Arrow Specialised Transport Ltd
Nottinghamshire County Council,1111/1001,Children and Young People,CYP,Transport Related,CCA,11/01/2019,10-11787,"1,687.50",Arrow Specialised Transport Ltd
Nottinghamshire County Council,1111/1001,Children and Young People,CYP,Transport Related,CCA,11/01/2019,10-11788,1740,Arrow Specialised Transport Ltd
Nottinghamshire County Council,1111/1001,Children and Young People,CYP,Transport Related,CCA,11/01/2019,10-11789,1740,Arrow Specialised Transport Ltd
Nottinghamshire County Council,1111/1001,Children and Young People,CYP,Transport Related,CCA,11/01/2019,10-11790,"1,722.00",Arrow Specialised Transport Ltd
Nottinghamshire County Council,1111/1001,Children and Young People,CYP,Transport Related,CCA,11/01/2019,10-11791,"1,695.00",Arrow Specialised Transport Ltd
Nottinghamshire County Council,1111/1001,Children and Young People,CYP,Transport Related,CCA,11/01/2019,10-11792,2010,Arrow Specialised Transport Ltd
Nottinghamshire County Council,1111/1001,Children and Young People,CYP,Transport Related,CCA,11/01/2019,10-11793,"2,179.35",Arrow Specialised Transport Ltd
Nottinghamshire County Council,1111/1001,Children and Young People,CYP,Transport Related,CCA,11/01/2019,10-11794,"1,755.90",Arrow Specialised Transport Ltd
Nottinghamshire County Council,1111/1001,Children and Young People,CYP,Transport Related,CCA,11/01/2019,10-11795,1797,Arrow Specialised Transport Ltd
Nottinghamshire County Council,1111/1001,Children and Young People,CYP,Transport Related,CCA,11/01/2019,10-11796,"2,114.25",Arrow Specialised Transport Ltd
Nottinghamshire County Council,1111/1001,Children and Young People,CYP,Transport Related,CCA,11/01/2019,10-11798,"1,267.84",Arrow Specialised Transport Ltd
Nottinghamshire County Council,1111/1001,Children and Young People,CYP,Transport Related,CCA,11/01/2019,10-11799,"1,914.50",Arrow Specialised Transport Ltd
Nottinghamshire County Council,1111/1001,Children and Young People,CYP,Transport Related,CCA,11/01/2019,10-11800,"1,495.50",Arrow Specialised Transport Ltd
Nottinghamshire County Council,1111/1001,Children and Young People,CYP,Transport Related,CCA,11/01/2019,10-11801,4741.95,Arrow Specialised Transport Ltd
Nottinghamshire County Council,1111/1001,Children and Young People,CYP,Transport Related,CCA,11/01/2019,10-11802,2164.65,Arrow Specialised Transport Ltd
Nottinghamshire County Council,1111/1001,Children and Young People,CYP,Transport Related,CCA,11/01/2019,10-11803,1695,Arrow Specialised Transport Ltd
Nottinghamshire County Council,1111/1001,Children and Young People,CYP,Transport Related,CCA,11/01/2019,10-11804,2530.05,Arrow Specialised Transport Ltd
Nottinghamshire County Council,1111/1001,Children and Young People,CYP,Transport Related,CCA,11/01/2019,10-11805,3594.3,Arrow Specialised Transport Ltd
Nottinghamshire County Council,1111/1001,Children and Young People,CYP,Transport Related,CCA,11/01/2019,10-11806,2761.05,Arrow Specialised Transport Ltd
Nottinghamshire County Council,1111/1001,Children and Young People,CYP,Transport Related,CCA,11/01/2019,10-11807,1607.25,Arrow Specialised Transport Ltd
Nottinghamshire County Council,1111/1001,Children and Young People,CYP,Transport Related,CCA,11/01/2019,10-11808,"3,358.80",Arrow Specialised Transport Ltd
Nottinghamshire County Council,1111/1001,Children and Young People,CYP,Transport Related,CCA,11/01/2019,10-11809,"2,569.50",Arrow Specialised Transport Ltd
Nottinghamshire County Council,1111/1001,Children and Young People,CYP,Transport Related,CCA,11/01/2019,10-11810,"1,850.25",Arrow Specialised Transport Ltd
Nottinghamshire County Council,1111/1001,Children and Young People,CYP,Transport Related,CCA,11/01/2019,10-11811,1531.18,Arrow Specialised Transport Ltd
Nottinghamshire County Council,1111/1001,Children and Young People,CYP,Transport Related,CCA,11/01/2019,10-11813,2024.1,Arrow Specialised Transport Ltd
Nottinghamshire County Council,1111/1001,Children and Young People,CYP,Transport Related,CCA,11/01/2019,10-11814,2184,Arrow Specialised Transport Ltd
Nottinghamshire County Council,1111/1001,Children and Young People,CYP,Transport Related,CCA,11/01/2019,10-11815,1813,Arrow Specialised Transport Ltd
Nottinghamshire County Council,1111/1001,Children and Young People,CYP,Transport Related,CCA,11/01/2019,10-11816,2233,Arrow Specialised Transport Ltd
Nottinghamshire County Council,1111/1001,Children and Young People,CYP,Transport Related,CCA,11/01/2019,10-11817,"2,105.85",Arrow Specialised Transport Ltd
Nottinghamshire County Council,1111/1001,Children and Young People,CYP,Transport Related,CCA,11/01/2019,10-11819,"3,376.50",Arrow Specialised Transport Ltd
Nottinghamshire County Council,1111/1001,Children and Young People,CYP,Transport Related,CCA,11/01/2019,10-11820,1509.15,Arrow Specialised Transport Ltd
Nottinghamshire County Council,1111/1001,Children and Young People,CYP,Transport Related,CCA,11/01/2019,10-11821,"2,313.92",Arrow Specialised Transport Ltd
Nottinghamshire County Council,1111/1001,Children and Young People,CYP,Transport Related,CCA,11/01/2019,10-11822,"1,922.20",Arrow Specialised Transport Ltd
Nottinghamshire County Council,1111/1001,Children and Young People,CYP,Transport Related,CCA,11/01/2019,10-11823,1778.42,Arrow Specialised Transport Ltd
Nottinghamshire County Council,1111/1001,Children and Young People,CYP,Transport Related,CCA,11/01/2019,10-11824,1703.24,Arrow Specialised Transport Ltd
Nottinghamshire County Council,1111/1001,Children and Young People,CYP,Transport Related,CCA,11/01/2019,10-11825,"2,134.72",Arrow Specialised Transport Ltd
Nottinghamshire County Council,1111/1001,Children and Young People,CYP,Transport Related,CCA,11/01/2019,10-11826,3060.4,Arrow Specialised Transport Ltd
Nottinghamshire County Council,1111/1001,Children and Young People,CYP,Transport Related,CCA,11/01/2019,10-11827,"1,621.20",Arrow Specialised Transport Ltd
Nottinghamshire County Council,1111/1001,Children and Young People,CYP,Transport Related,CCA,11/01/2019,10-11988,441.25,Arrow Specialised Transport Ltd
Nottinghamshire County Council,1111/1001,Children and Young People,CYP,Transport Related,CCA,11/01/2019,10-11990,"1,605.80",Arrow Specialised Transport Ltd
Nottinghamshire County Council,1111/1001,Children and Young People,CYP,Transport Related,CCA,11/01/2019,10-11991,1883,Arrow Specialised Transport Ltd
Nottinghamshire County Council,1111/1001,Children and Young People,CYP,Transport Related,CCA,11/01/2019,10-11992,"1,610.70",Arrow Specialised Transport Ltd
Nottinghamshire County Council,1111/1001,Children and Young People,CYP,Transport Related,CCA,11/01/2019,10-12201,2394,Taxicover Uk Ltd
Nottinghamshire County Council,1111/1001,Children and Young People,CYP,Transport Related,CCA,11/01/2019,10-12202,1695,Taxicover Uk Ltd
Nottinghamshire County Council,1111/1001,Children and Young People,CYP,Transport Related,CCA,11/01/2019,10-12204,"2,212.00",Taxicover Uk Ltd
Nottinghamshire County Council,1111/1001,Children and Young People,CYP,Transport Related,CCA,11/01/2019,10-12205,"1,652.00",Taxicover Uk Ltd
Nottinghamshire County Council,1111/1001,Children and Young People,CYP,Transport Related,CCA,11/01/2019,10-12206,"2,436.00",Taxicover Uk Ltd
Nottinghamshire County Council,1111/1001,Children and Young People,CYP,Transport Related,CCA,11/01/2019,10-12207,"2,532.32",Taxicover Uk Ltd
Nottinghamshire County Council,1111/1001,Children and Young People,CYP,Transport Related,CCA,11/01/2019,10-12208,"2,253.58",Taxicover Uk Ltd
Nottinghamshire County Council,1111/1001,Children and Young People,CYP,Transport Related,CCA,11/01/2019,10-12209,2268,Taxicover Uk Ltd
Nottinghamshire County Council,1111/1001,Children and Young People,CYP,Transport Related,CCA,11/01/2019,10-12210,2772,Taxicover Uk Ltd
Nottinghamshire County Council,1111/1001,Children and Young People,CYP,Transport Related,CCA,11/01/2019,10-12211,777,Southside Cars
Nottinghamshire County Council,1111/1001,Children and Young People,CYP,Transport Related,CCA,11/01/2019,10-12212,540,Southside Cars
Nottinghamshire County Council,1111/1001,Children and Young People,CYP,Transport Related,CCA,11/01/2019,10-12213,1410,Southside Cars
Nottinghamshire County Council,1111/1001,Children and Young People,CYP,Transport Related,CCA,11/01/2019,10-12214,2025,Southside Cars
Nottinghamshire County Council,1111/1001,Children and Young People,CYP,Transport Related,CCA,11/01/2019,10-12215,540,Southside Cars
Nottinghamshire County Council,1111/1001,Children and Young People,CYP,Transport Related,CCA,11/01/2019,10-12216,"1,104.00",Southside Cars
Nottinghamshire County Council,1111/1001,Children and Young People,CYP,Transport Related,CCA,11/01/2019,10-12217,816,Southside Cars
Nottinghamshire County Council,1111/1001,Children and Young People,CYP,Transport Related,CCA,11/01/2019,10-12218,1410,Southside Cars
Nottinghamshire County Council,1111/1001,Children and Young People,CYP,Transport Related,CCA,11/01/2019,10-12220,"1,185.00",Southside Cars
Nottinghamshire County Council,1111/1001,Children and Young People,CYP,Transport Related,CCA,11/01/2019,10-12221,1350,Southside Cars
Nottinghamshire County Council,1111/1001,Children and Young People,CYP,Transport Related,CCA,11/01/2019,10-12222,"1,045.44",Southside Cars
Nottinghamshire County Council,1111/1001,Children and Young People,CYP,Transport Related,CCA,11/01/2019,10-12224,1350,Central Cars Nottm Ltd
Nottinghamshire County Council,1111/1001,Children and Young People,CYP,Transport Related,CCA,11/01/2019,10-12226,1985.1,F4Control Ltd (t/a First4care)
Nottinghamshire County Council,1111/1001,Children and Young People,CYP,Transport Related,CCA,11/01/2019,10-12227,2323.8,F4Control Ltd (t/a First4care)
Nottinghamshire County Council,1111/1001,Children and Young People,CYP,Transport Related,CCA,11/01/2019,10-12228,2700,Glenn Ryder Coaches
Nottinghamshire County Council,1111/1001,Children and Young People,CYP,Transport Related,CCA,11/01/2019,10-12231,"4,352.94",Wrights Coaches T/A Little Transpor
Nottinghamshire County Council,1111/1001,Children and Young People,CYP,Transport Related,CCA,11/01/2019,10-12232,4352.94,Wrights Coaches T/A Little Transpor
Nottinghamshire County Council,1111/1001,Children and Young People,CYP,Transport Related,CCA,11/01/2019,10-12235,3274.2,Arrow Specialised Transport Ltd
Nottinghamshire County Council,1111/1001,Children and Young People,CYP,Transport Related,CCA,11/01/2019,10-12236,600,Fozcabs Newark Taxis
Nottinghamshire County Council,1111/1001,Children and Young People,CYP,Transport Related,CCA,11/01/2019,10-12237,1050,Fozcabs Newark Taxis
Nottinghamshire County Council,1111/1001,Children and Young People,CYP,Transport Related,CCA,11/01/2019,10-12238,805,Fozcabs Newark Taxis
Nottinghamshire County Council,1111/1001,Children and Young People,CYP,Transport Related,CCA,11/01/2019,10-12241,505,Ng11 Cars
Nottinghamshire County Council,1111/1001,Children and Young People,CYP,Transport Related,CCA,11/01/2019,10-12244,"2,492.00",Vallances Coaches
Nottinghamshire County Council,1111/1001,Children and Young People,CYP,Transport Related,CCA,11/01/2019,10-12245,2436,Vallances Coaches
Nottinghamshire County Council,1111/1001,Children and Young People,CYP,Transport Related,CCA,11/01/2019,10-12247,2492,Vallances Coaches
Nottinghamshire County Council,1111/1001,Children and Young People,CYP,Transport Related,CCA,11/01/2019,10-12249,1094.94,BN Gibson Ltd
Nottinghamshire County Council,1111/1001,Children and Young People,CYP,Transport Related,CCA,11/01/2019,10-12251,1824.9,BN Gibson Ltd
Nottinghamshire County Council,1111/1001,Children and Young People,CYP,Transport Related,CCA,11/01/2019,10-12252,2894.4,BN Gibson Ltd
Nottinghamshire County Council,1111/1001,Children and Young People,CYP,Transport Related,CCA,11/01/2019,10-12253,2655.1,BN Gibson Ltd
Nottinghamshire County Council,1111/1001,Children and Young People,CYP,Transport Related,CCA,11/01/2019,10-12254,"1,807.95",BN Gibson Ltd
Nottinghamshire County Council,1111/1001,Children and Young People,CYP,Transport Related,CCA,11/01/2019,10-12255,"2,352.98",BN Gibson Ltd
Nottinghamshire County Council,1111/1001,Children and Young People,CYP,Transport Related,CCA,11/01/2019,10-12256,2054.4,BN Gibson Ltd
Nottinghamshire County Council,1111/1001,Children and Young People,CYP,Transport Related,CCA,11/01/2019,10-12258,1806.42,BN Gibson Ltd
Nottinghamshire County Council,1111/1001,Children and Young People,CYP,Transport Related,CCA,11/01/2019,10-12263,225,Abacus Cars
Nottinghamshire County Council,1111/1001,Children and Young People,CYP,Transport Related,CCA,11/01/2019,10-12266,1950,AOT Coaches
Nottinghamshire County Council,1111/1001,Children and Young People,CYP,Transport Related,CCA,11/01/2019,10-12267,8325,AOT Coaches
Nottinghamshire County Council,1111/1001,Children and Young People,CYP,Transport Related,CCA,11/01/2019,10-12268,2085,AOT Coaches
Nottinghamshire County Council,1111/1001,Children and Young People,CYP,Transport Related,CCA,11/01/2019,10-12269,2520,Jb Tours Watnall Ltd
Nottinghamshire County Council,1111/1001,Children and Young People,CYP,Transport Related,CCA,11/01/2019,10-12270,"2,385.00",Jb Tours Watnall Ltd
Nottinghamshire County Council,1111/1001,Children and Young People,CYP,Transport Related,CCA,11/01/2019,10-12271,"10,773.00",Travel Wright Ltd
Nottinghamshire County Council,1111/1001,Children and Young People,CYP,Transport Related,CCA,11/01/2019,10-12272,1148,Travel Wright Ltd
Nottinghamshire County Council,1111/1001,Children and Young People,CYP,Transport Related,CCA,11/01/2019,10-12273,756,Travel Wright Ltd
Nottinghamshire County Council,1111/1001,Children and Young People,CYP,Transport Related,CCA,11/01/2019,10-12274,"2,728.25",Travel Wright Ltd
Nottinghamshire County Council,1111/1001,Children and Young People,CYP,Transport Related,CCA,11/01/2019,10-12275,2657.2,Travel Wright Ltd
Nottinghamshire County Council,1111/1001,Children and Young People,CYP,Transport Related,CCA,11/01/2019,10-12276,2542.05,Travel Wright Ltd
Nottinghamshire County Council,1111/1001,Children and Young People,CYP,Transport Related,CCA,11/01/2019,10-12277,625.26,Travel Wright Ltd
Nottinghamshire County Council,1111/1001,Children and Young People,CYP,Transport Related,CCA,11/01/2019,10-12282,"1,917.00",Travel Wright Ltd
Nottinghamshire County Council,1111/1001,Children and Young People,CYP,Transport Related,CCA,11/01/2019,10-12283,"2,364.00",Travel Wright Ltd
Nottinghamshire County Council,1111/1001,Children and Young People,CYP,Transport Related,CCA,11/01/2019,10-12285,1378.65,P & P Taxis
Nottinghamshire County Council,1111/1001,Children and Young People,CYP,Transport Related,CCA,11/01/2019,10-12287,5316.5,Freeway Coaches Ltd
Nottinghamshire County Council,1111/1001,Children and Young People,CYP,Transport Related,CCA,11/01/2019,10-12288,"2,188.50",Freeway Coaches Ltd
Nottinghamshire County Council,1111/1001,Children and Young People,CYP,Transport Related,CCA,11/01/2019,10-12289,4466,Freeway Coaches Ltd
Nottinghamshire County Council,1111/1001,Children and Young People,CYP,Transport Related,CCA,11/01/2019,10-12290,"3,289.50",Freeway Coaches Ltd
Nottinghamshire County Council,1111/1001,Children and Young People,CYP,Transport Related,CCA,11/01/2019,10-12291,2382,Freeway Coaches Ltd
Nottinghamshire County Council,1111/1001,Children and Young People,CYP,Transport Related,CCA,11/01/2019,10-12292,"2,201.50",Freeway Coaches Ltd
Nottinghamshire County Council,1111/1001,Children and Young People,CYP,Transport Related,CCA,11/01/2019,10-12294,"3,000.00",C W Moxon Ltd
Nottinghamshire County Council,1111/1001,Children and Young People,CYP,Transport Related,CCA,11/01/2019,10-12297,1875,Trevor Bailey t/a Trevor Bailey Tra
Nottinghamshire County Council,1111/1001,Children and Young People,CYP,Transport Related,CCA,11/01/2019,10-12298,730,Eastwood Cars (UK) Ltd
Nottinghamshire County Council,1111/1001,Children and Young People,CYP,Transport Related,CCA,11/01/2019,10-12299,1080,Eastwood Cars (UK) Ltd
Nottinghamshire County Council,1111/1001,Children and Young People,CYP,Transport Related,CCA,11/01/2019,10-12300,780,Eastwood Cars (UK) Ltd
Nottinghamshire County Council,1111/1001,Children and Young People,CYP,Transport Related,CCA,11/01/2019,10-12301,585,Eastwood Cars (UK) Ltd
Nottinghamshire County Council,1111/1001,Children and Young People,CYP,Transport Related,CCA,11/01/2019,10-12303,1666,A2B Licensed Taxis
Nottinghamshire County Council,1111/1001,Children and Young People,CYP,Transport Related,CCA,11/01/2019,10-12304,2420.4,Hammonds Coaches Ltd
Nottinghamshire County Council,1111/1001,Children and Young People,CYP,Transport Related,CCA,11/01/2019,10-12306,738.6,Shiny Sky Ltd T/A A2b Cars
Nottinghamshire County Council,1111/1001,Children and Young People,CYP,Transport Related,CCA,11/01/2019,10-12307,960,Shiny Sky Ltd T/A A2b Cars
Nottinghamshire County Council,1111/1001,Children and Young People,CYP,Transport Related,CCA,11/01/2019,10-12308,"1,140.00",Shiny Sky Ltd T/A A2b Cars
Nottinghamshire County Council,1111/1001,Children and Young People,CYP,Transport Related,CCA,11/01/2019,10-12310,"1,893.75",A Travel
Nottinghamshire County Council,1111/1001,Children and Young People,CYP,Transport Related,CCA,11/01/2019,10-12311,630,Reliable Cars Ltd
Nottinghamshire County Council,1111/1001,Children and Young People,CYP,Transport Related,CCA,11/01/2019,10-12312,630,Reliable Cars Ltd
Nottinghamshire County Council,1111/1001,Children and Young People,CYP,Transport Related,CCA,11/01/2019,10-12313,600,Reliable Cars Ltd
Nottinghamshire County Council,1111/1001,Children and Young People,CYP,Transport Related,CCA,11/01/2019,10-12314,"1,104.00",Reliable Cars Ltd
Nottinghamshire County Council,1111/1001,Children and Young People,CYP,Transport Related,CCA,11/01/2019,10-12315,"1,725.00",CT4N Ltd
Nottinghamshire County Council,1111/1001,Children and Young People,CYP,Transport Related,CCA,11/01/2019,10-12317,1260,Forest Cars
Nottinghamshire County Council,1111/1001,Children and Young People,CYP,Transport Related,CCA,11/01/2019,10-12318,"1,335.00",Forest Cars
Nottinghamshire County Council,1111/1001,Children and Young People,CYP,Transport Related,CCA,11/01/2019,10-12319,"1,860.00",Forest Cars
Nottinghamshire County Council,1111/1001,Children and Young People,CYP,Transport Related,CCA,11/01/2019,10-12320,702,Forest Cars
Nottinghamshire County Council,1111/1001,Children and Young People,CYP,Transport Related,CCA,11/01/2019,10-12321,1363.5,Forest Cars
Nottinghamshire County Council,1111/1001,Children and Young People,CYP,Transport Related,CCA,11/01/2019,10-12322,"1,651.35",Forest Cars
Nottinghamshire County Council,1111/1001,Children and Young People,CYP,Transport Related,CCA,11/01/2019,10-12323,560.55,Forest Cars
Nottinghamshire County Council,1111/1001,Children and Young People,CYP,Transport Related,CCA,11/01/2019,10-12325,1110,Forest Cars
Nottinghamshire County Council,1111/1001,Children and Young People,CYP,Transport Related,CCA,11/01/2019,10-12326,890.82,Forest Cars
Nottinghamshire County Council,1111/1001,Children and Young People,CYP,Transport Related,CCA,11/01/2019,10-12327,"1,257.38",Forest Cars
Nottinghamshire County Council,1111/1001,Children and Young People,CYP,Transport Related,CCA,11/01/2019,10-12329,588,Forest Cars
Nottinghamshire County Council,1111/1001,Children and Young People,CYP,Transport Related,CCA,11/01/2019,10-12330,2028,Forest Cars
Nottinghamshire County Council,1111/1001,Children and Young People,CYP,Transport Related,CCA,11/01/2019,10-12331,936,Forest Cars
Nottinghamshire County Council,1111/1001,Children and Young People,CYP,Transport Related,CCA,11/01/2019,10-12332,"1,110.00",Forest Cars
Nottinghamshire County Council,1111/1001,Children and Young People,CYP,Transport Related,CCA,11/01/2019,10-12333,"1,894.76",Forest Cars
Nottinghamshire County Council,1111/1001,Children and Young People,CYP,Transport Related,CCA,11/01/2019,10-12334,660,Forest Cars
Nottinghamshire County Council,1111/1001,Children and Young People,CYP,Transport Related,CCA,11/01/2019,10-12336,"1,386.00",Forest Cars
Nottinghamshire County Council,1111/1001,Children and Young People,CYP,Transport Related,CCA,11/01/2019,10-12337,882,Forest Cars
Nottinghamshire County Council,1111/1001,Children and Young People,CYP,Transport Related,CCA,11/01/2019,10-12338,"1,470.00",Forest Cars
Nottinghamshire County Council,1111/1001,Children and Young People,CYP,Transport Related,CCA,11/01/2019,10-12339,1560,Forest Cars
Nottinghamshire County Council,1111/1001,Children and Young People,CYP,Transport Related,CCA,11/01/2019,10-12340,"1,176.00",Forest Cars
Nottinghamshire County Council,1111/1001,Children and Young People,CYP,Transport Related,CCA,11/01/2019,10-12341,1485,Forest Cars
Nottinghamshire County Council,1111/1001,Children and Young People,CYP,Transport Related,CCA,11/01/2019,10-12342,"2,796.00",Millennium Travel
Nottinghamshire County Council,1111/1001,Children and Young People,CYP,Transport Related,CCA,11/01/2019,10-12343,1239,AJ's Taxis
Nottinghamshire County Council,1111/1001,Children and Young People,CYP,Transport Related,CCA,14/01/2019,10-12344,2968,Taxicover Uk Ltd
Nottinghamshire County Council,1111/1001,Children and Young People,CYP,Transport Related,CCA,14/01/2019,10-12345,1269.16,Taxicover Uk Ltd
Nottinghamshire County Council,1111/1001,Children and Young People,CYP,Transport Related,CCA,14/01/2019,10-12346,1600.3,Sharpes Of Nottingham
Nottinghamshire County Council,1111/1001,Children and Young People,CYP,Transport Related,CCA,14/01/2019,10-12347,1713.3,Sharpes Of Nottingham
Nottinghamshire County Council,1111/1001,Children and Young People,CYP,Transport Related,CCA,14/01/2019,10-12348,"1,699.80",Sharpes Of Nottingham
Nottinghamshire County Council,1111/1001,Children and Young People,CYP,Transport Related,CCA,14/01/2019,10-12349,1878,Sharpes Of Nottingham
Nottinghamshire County Council,1111/1001,Children and Young People,CYP,Transport Related,CCA,14/01/2019,10-12350,2206.8,Sharpes Of Nottingham
Nottinghamshire County Council,1111/1001,Children and Young People,CYP,Transport Related,CCA,14/01/2019,10-12351,"2,066.80",Sharpes Of Nottingham
Nottinghamshire County Council,1111/1001,Children and Young People,CYP,Transport Related,CCA,14/01/2019,10-12352,"2,692.35",Sharpes Of Nottingham
Nottinghamshire County Council,1111/1001,Children and Young People,CYP,Transport Related,CCA,14/01/2019,10-12354,2556.45,Sharpes Of Nottingham
Nottinghamshire County Council,1111/1001,Children and Young People,CYP,Transport Related,CCA,14/01/2019,10-12356,"1,753.35",F4Control Ltd (t/a First4care)
Nottinghamshire County Council,1111/1001,Children and Young People,CYP,Transport Related,CCA,14/01/2019,10-12357,1772.4,F4Control Ltd (t/a First4care)
Nottinghamshire County Council,1111/1001,Children and Young People,CYP,Transport Related,CCA,14/01/2019,10-12358,1615.05,F4Control Ltd (t/a First4care)
Nottinghamshire County Council,1111/1001,Children and Young People,CYP,Transport Related,CCA,14/01/2019,10-12359,"1,797.60",F4Control Ltd (t/a First4care)
Nottinghamshire County Council,1111/1001,Children and Young People,CYP,Transport Related,CCA,14/01/2019,10-12360,"1,802.10",F4Control Ltd (t/a First4care)
Nottinghamshire County Council,1111/1001,Children and Young People,CYP,Transport Related,CCA,14/01/2019,10-12361,2213.85,F4Control Ltd (t/a First4care)
Nottinghamshire County Council,1111/1001,Children and Young People,CYP,Transport Related,CCA,14/01/2019,10-12362,"2,651.50",Glenn Ryder Coaches
Nottinghamshire County Council,1111/1001,Children and Young People,CYP,Transport Related,CCA,14/01/2019,10-12365,6112.5,Johnson Bros Tours Ltd
Nottinghamshire County Council,1111/1001,Children and Young People,CYP,Transport Related,CCA,14/01/2019,10-12366,4425,Johnson Bros Tours Ltd
Nottinghamshire County Council,1111/1001,Children and Young People,CYP,Transport Related,CCA,14/01/2019,10-12367,648,200 Cars Ltd
Nottinghamshire County Council,1111/1001,Children and Young People,CYP,Transport Related,CCA,14/01/2019,10-12371,"1,452.00",Alpha Cars
Nottinghamshire County Council,1111/1001,Children and Young People,CYP,Transport Related,CCA,14/01/2019,10-12372,1246,Alpha Cars
Nottinghamshire County Council,1111/1001,Children and Young People,CYP,Transport Related,CCA,14/01/2019,10-12373,336,Alpha Cars
Nottinghamshire County Council,1111/1001,Children and Young People,CYP,Transport Related,CCA,14/01/2019,10-12376,11278.35,Erewash Community Transport
Nottinghamshire County Council,1111/1001,Children and Young People,CYP,Transport Related,CCA,14/01/2019,10-12378,"1,908.90",Vallances Coaches
Nottinghamshire County Council,1111/1001,Children and Young People,CYP,Transport Related,CCA,14/01/2019,10-12380,"1,711.43",F4Control Ltd (t/a First4care)
Nottinghamshire County Council,1111/1001,Children and Young People,CYP,Transport Related,CCA,14/01/2019,10-12383,3544,Gem Mini Travel Ltd
Nottinghamshire County Council,1111/1001,Children and Young People,CYP,Transport Related,CCA,14/01/2019,10-12384,2618,Gem Mini Travel Ltd
Nottinghamshire County Council,1111/1001,Children and Young People,CYP,Transport Related,CCA,14/01/2019,10-12385,3021,Gem Mini Travel Ltd
Nottinghamshire County Council,1111/1001,Children and Young People,CYP,Transport Related,CCA,14/01/2019,10-12386,3481.75,Gem Mini Travel Ltd
Nottinghamshire County Council,1111/1001,Children and Young People,CYP,Transport Related,CCA,14/01/2019,10-12387,1725,Gem Mini Travel Ltd
Nottinghamshire County Council,1111/1001,Children and Young People,CYP,Transport Related,CCA,14/01/2019,10-12391,"2,577.00",Jb Tours Watnall Ltd
Nottinghamshire County Council,1111/1001,Children and Young People,CYP,Transport Related,CCA,14/01/2019,10-12392,550.1,Nunns Taxis Ltd
Nottinghamshire County Council,1111/1001,Children and Young People,CYP,Transport Related,CCA,14/01/2019,10-12393,6492.9,Silverdale Tours Nottm Ltd
Nottinghamshire County Council,1111/1001,Children and Young People,CYP,Transport Related,CCA,14/01/2019,10-12394,2376,Silverdale Tours Nottm Ltd
Nottinghamshire County Council,1111/1001,Children and Young People,CYP,Transport Related,CCA,14/01/2019,10-12395,"2,504.50",Silverdale Tours Nottm Ltd
Nottinghamshire County Council,1111/1001,Children and Young People,CYP,Transport Related,CCA,14/01/2019,10-12396,2126.1,Silverdale Tours Nottm Ltd
Nottinghamshire County Council,1111/1001,Children and Young People,CYP,Transport Related,CCA,14/01/2019,10-12397,"1,000.50",Silverdale Tours Nottm Ltd
Nottinghamshire County Council,1111/1001,Children and Young People,CYP,Transport Related,CCA,14/01/2019,10-12399,"2,250.00",Silverdale Tours Nottm Ltd
Nottinghamshire County Council,1111/1001,Children and Young People,CYP,Transport Related,CCA,14/01/2019,10-12402,"3,901.13",Stagecoach Services Ltd
Nottinghamshire County Council,1111/1001,Children and Young People,CYP,Transport Related,CCA,14/01/2019,10-12408,"2,150.25",Stagecoach Services Ltd
Nottinghamshire County Council,1111/1001,Children and Young People,CYP,Transport Related,CCA,14/01/2019,10-12412,"2,541.84",Stagecoach Services Ltd
Nottinghamshire County Council,1111/1001,Children and Young People,CYP,Transport Related,CCA,14/01/2019,10-12427,"3,735.00",Stagecoach Services Ltd
Nottinghamshire County Council,1111/1001,Children and Young People,CYP,Transport Related,CCA,14/01/2019,10-12428,3525,Stagecoach Services Ltd
Nottinghamshire County Council,1111/1001,Children and Young People,CYP,Transport Related,CCA,14/01/2019,10-12429,5396.54,Stagecoach Services Ltd
Nottinghamshire County Council,1111/1001,Children and Young People,CYP,Transport Related,CCA,14/01/2019,10-12431,4329.54,Stagecoach Services Ltd
Nottinghamshire County Council,1111/1001,Children and Young People,CYP,Transport Related,CCA,14/01/2019,10-12436,"7,200.00",Wilfreda Beehive
Nottinghamshire County Council,1111/1001,Children and Young People,CYP,Transport Related,CCA,14/01/2019,10-12439,"7,799.00",C W Moxon Ltd
Nottinghamshire County Council,1111/1001,Children and Young People,CYP,Transport Related,CCA,14/01/2019,10-12440,1265.4,Bassetlaw Action Centre
Nottinghamshire County Council,1111/1001,Children and Young People,CYP,Transport Related,CCA,14/01/2019,10-12441,530.1,Bassetlaw Action Centre
Nottinghamshire County Council,1111/1001,Children and Young People,CYP,Transport Related,CCA,14/01/2019,10-12442,742,Bassetlaw Action Centre
Nottinghamshire County Council,1111/1001,Children and Young People,CYP,Transport Related,CCA,14/01/2019,10-12444,1813,Ace Cars
Nottinghamshire County Council,1111/1001,Children and Young People,CYP,Transport Related,CCA,14/01/2019,10-12445,1726.72,Ace Cars
Nottinghamshire County Council,1111/1001,Children and Young People,CYP,Transport Related,CCA,14/01/2019,10-12447,1417.5,Ace Cars
Nottinghamshire County Council,1111/1001,Children and Young People,CYP,Transport Related,CCA,14/01/2019,10-12448,1867.5,Ace Cars
Nottinghamshire County Council,1111/1001,Children and Young People,CYP,Transport Related,CCA,14/01/2019,10-12449,"1,942.50",Ace Cars
Nottinghamshire County Council,1111/1001,Children and Young People,CYP,Transport Related,CCA,14/01/2019,10-12450,"1,417.50",Ace Cars
Nottinghamshire County Council,1111/1001,Children and Young People,CYP,Transport Related,CCA,14/01/2019,10-12451,"1,673.00",Ace Cars
Nottinghamshire County Council,1111/1001,Children and Young People,CYP,Transport Related,CCA,14/01/2019,10-12452,"2,092.50",Ace Cars
Nottinghamshire County Council,1111/1001,Children and Young People,CYP,Transport Related,CCA,14/01/2019,10-12453,1463.5,Ace Cars
Nottinghamshire County Council,1111/1001,Children and Young People,CYP,Transport Related,CCA,14/01/2019,10-12454,1944.45,Ace Cars
Nottinghamshire County Council,1111/1001,Children and Young People,CYP,Transport Related,CCA,14/01/2019,10-12456,"1,867.50",Ace Cars
Nottinghamshire County Council,1111/1001,Children and Young People,CYP,Transport Related,CCA,14/01/2019,10-12457,2242.5,Ace Cars
Nottinghamshire County Council,1111/1001,Children and Young People,CYP,Transport Related,CCA,14/01/2019,10-12458,1792.5,Ace Cars
Nottinghamshire County Council,1111/1001,Children and Young People,CYP,Transport Related,CCA,14/01/2019,10-12459,"2,542.50",Ace Cars
Nottinghamshire County Council,1111/1001,Children and Young People,CYP,Transport Related,CCA,14/01/2019,10-12460,"2,326.50",L A Travel
Nottinghamshire County Council,1111/1001,Children and Young People,CYP,Transport Related,CCA,14/01/2019,10-12462,"1,131.20",Eurocab 2000 Ltd
Nottinghamshire County Council,1111/1001,Children and Young People,CYP,Transport Related,CCA,14/01/2019,10-12464,611,Nottingham Cars Ltd
Nottinghamshire County Council,1111/1001,Children and Young People,CYP,Transport Related,CCA,14/01/2019,10-12465,297.5,Nottingham Cars Ltd
Nottinghamshire County Council,1111/1001,Children and Young People,CYP,Transport Related,CCA,14/01/2019,10-12467,720,Nottingham Cars Ltd
Nottinghamshire County Council,1111/1001,Children and Young People,CYP,Transport Related,CCA,14/01/2019,10-12468,640,Nottingham Cars Ltd
Nottinghamshire County Council,1111/1001,Children and Young People,CYP,Transport Related,CCA,14/01/2019,10-12472,"1,111.57",Nunns Taxis Ltd
Nottinghamshire County Council,1111/1001,Children and Young People,CYP,Transport Related,CCA,14/01/2019,10-12473,583.9,Nunns Taxis Ltd
Nottinghamshire County Council,1111/1001,Children and Young People,CYP,Transport Related,CCA,14/01/2019,10-12476,810,Reliable Cars Ltd
Nottinghamshire County Council,1111/1001,Children and Young People,CYP,Transport Related,CCA,14/01/2019,10-12477,990,Reliable Cars Ltd
Nottinghamshire County Council,1111/1001,Children and Young People,CYP,Transport Related,CCA,14/01/2019,10-12478,1540,Reliable Cars Ltd
Nottinghamshire County Council,1111/1001,Children and Young People,CYP,Transport Related,CCA,14/01/2019,10-12479,"1,020.00",Reliable Cars Ltd
Nottinghamshire County Council,1111/1001,Children and Young People,CYP,Transport Related,CCA,14/01/2019,10-12480,868,Reliable Cars Ltd
Nottinghamshire County Council,1111/1001,Children and Young People,CYP,Transport Related,CCA,14/01/2019,10-12481,896.88,Forest Cars
Nottinghamshire County Council,1111/1001,Children and Young People,CYP,Transport Related,CCA,14/01/2019,10-12482,"1,155.44",Forest Cars
Nottinghamshire County Council,1111/1001,Children and Young People,CYP,Transport Related,CCA,14/01/2019,10-12483,616,AJ's Taxis
Nottinghamshire County Council,1111/1001,Children and Young People,CYP,Transport Related,CCA,14/01/2019,10-12484,1783.5,SM Travel Yorkshire Ltd
Nottinghamshire County Council,1111/1001,Children and Young People,CYP,Transport Related,CCA,14/01/2019,10-12485,"1,773.00",SM Travel Yorkshire Ltd
Nottinghamshire County Council,1111/1001,Children and Young People,CYP,Transport Related,CCA,14/01/2019,10-12486,866.36,Cathedral Cars Lincoln Ltd
Nottinghamshire County Council,1111/1001,Children and Young People,CYP,Transport Related,CCA,16/01/2019,10-12640,"1,128.40",Alert Cars Ltd
Nottinghamshire County Council,1111/1001,Children and Young People,CYP,Transport Related,CCA,16/01/2019,10-12642,1435,Taxicover Uk Ltd
Nottinghamshire County Council,1111/1001,Children and Young People,CYP,Transport Related,CCA,16/01/2019,10-12644,832,Southside Cars
Nottinghamshire County Council,1111/1001,Children and Young People,CYP,Transport Related,CCA,16/01/2019,10-12645,"1,497.00",Southside Cars
Nottinghamshire County Council,1111/1001,Children and Young People,CYP,Transport Related,CCA,16/01/2019,10-12646,720,Southside Cars
Nottinghamshire County Council,1111/1001,Children and Young People,CYP,Transport Related,CCA,16/01/2019,10-12647,"2,219.00",Martins Travel
Nottinghamshire County Council,1111/1001,Children and Young People,CYP,Transport Related,CCA,16/01/2019,10-12648,"1,624.00",Arrow Specialised Transport Ltd
Nottinghamshire County Council,1111/1001,Children and Young People,CYP,Transport Related,CCA,16/01/2019,10-12649,1575,Arrow Specialised Transport Ltd
Nottinghamshire County Council,1111/1001,Children and Young People,CYP,Transport Related,CCA,16/01/2019,10-12650,1973.64,F4Control Ltd (t/a First4care)
Nottinghamshire County Council,1111/1001,Children and Young People,CYP,Transport Related,CCA,16/01/2019,10-12651,1008.23,F4Control Ltd (t/a First4care)
Nottinghamshire County Council,1111/1001,Children and Young People,CYP,Transport Related,CCA,16/01/2019,10-12653,721.4,F4Control Ltd (t/a First4care)
Nottinghamshire County Council,1111/1001,Children and Young People,CYP,Transport Related,CCA,16/01/2019,10-12655,1431.21,F4Control Ltd (t/a First4care)
Nottinghamshire County Council,1111/1001,Children and Young People,CYP,Transport Related,CCA,16/01/2019,10-12656,"1,917.05",F4Control Ltd (t/a First4care)
Nottinghamshire County Council,1111/1001,Children and Young People,CYP,Transport Related,CCA,16/01/2019,10-12658,1669.35,F4Control Ltd (t/a First4care)
Nottinghamshire County Council,1111/1001,Children and Young People,CYP,Transport Related,CCA,16/01/2019,10-12660,1827.45,F4Control Ltd (t/a First4care)
Nottinghamshire County Council,1111/1001,Children and Young People,CYP,Transport Related,CCA,16/01/2019,10-12661,1280.6,F4Control Ltd (t/a First4care)
Nottinghamshire County Council,1111/1001,Children and Young People,CYP,Transport Related,CCA,16/01/2019,10-12663,2011.2,F4Control Ltd (t/a First4care)
Nottinghamshire County Council,1111/1001,Children and Young People,CYP,Transport Related,CCA,16/01/2019,10-12664,1930.65,F4Control Ltd (t/a First4care)
Nottinghamshire County Council,1111/1001,Children and Young People,CYP,Transport Related,CCA,16/01/2019,10-12665,1971.6,F4Control Ltd (t/a First4care)
Nottinghamshire County Council,1111/1001,Children and Young People,CYP,Transport Related,CCA,16/01/2019,10-12666,1648.2,F4Control Ltd (t/a First4care)
Nottinghamshire County Council,1111/1001,Children and Young People,CYP,Transport Related,CCA,16/01/2019,10-12667,2988.45,F4Control Ltd (t/a First4care)
Nottinghamshire County Council,1111/1001,Children and Young People,CYP,Transport Related,CCA,16/01/2019,10-12668,1818.9,F4Control Ltd (t/a First4care)
Nottinghamshire County Council,1111/1001,Children and Young People,CYP,Transport Related,CCA,16/01/2019,10-12669,1564.5,F4Control Ltd (t/a First4care)
Nottinghamshire County Council,1111/1001,Children and Young People,CYP,Transport Related,CCA,16/01/2019,10-12670,"1,868.72",F4Control Ltd (t/a First4care)
Nottinghamshire County Council,1111/1001,Children and Young People,CYP,Transport Related,CCA,16/01/2019,10-12671,"3,271.65",F4Control Ltd (t/a First4care)
Nottinghamshire County Council,1111/1001,Children and Young People,CYP,Transport Related,CCA,16/01/2019,10-12672,"2,140.95",F4Control Ltd (t/a First4care)
Nottinghamshire County Council,1111/1001,Children and Young People,CYP,Transport Related,CCA,16/01/2019,10-12673,1785.42,F4Control Ltd (t/a First4care)
Nottinghamshire County Council,1111/1001,Children and Young People,CYP,Transport Related,CCA,16/01/2019,10-12674,"2,035.80",F4Control Ltd (t/a First4care)
Nottinghamshire County Council,1111/1001,Children and Young People,CYP,Transport Related,CCA,16/01/2019,10-12675,"1,785.42",F4Control Ltd (t/a First4care)
Nottinghamshire County Council,1111/1001,Children and Young People,CYP,Transport Related,CCA,16/01/2019,10-12676,"1,760.22",F4Control Ltd (t/a First4care)
Nottinghamshire County Council,1111/1001,Children and Young People,CYP,Transport Related,CCA,16/01/2019,10-12678,652.8,D G Private Hire Ltd
Nottinghamshire County Council,1111/1001,Children and Young People,CYP,Transport Related,CCA,16/01/2019,10-12679,"2,623.00",Stagecoach Services Ltd
Nottinghamshire County Council,1111/1001,Children and Young People,CYP,Transport Related,CCA,16/01/2019,10-12680,1730,Stagecoach Services Ltd
Nottinghamshire County Council,1111/1001,Children and Young People,CYP,Transport Related,CCA,16/01/2019,10-12682,"3,265.78",Stagecoach Services Ltd
Nottinghamshire County Council,1111/1001,Children and Young People,CYP,Transport Related,CCA,16/01/2019,10-12683,3660.5,Stagecoach Services Ltd
Nottinghamshire County Council,1111/1001,Children and Young People,CYP,Transport Related,CCA,16/01/2019,10-12684,2990.5,Stagecoach Services Ltd
Nottinghamshire County Council,1111/1001,Children and Young People,CYP,Transport Related,CCA,16/01/2019,10-12685,"3,940.45",Stagecoach Services Ltd
Nottinghamshire County Council,1111/1001,Children and Young People,CYP,Transport Related,CCA,16/01/2019,10-12687,"4,141.50",Stagecoach Services Ltd
Nottinghamshire County Council,1111/1001,Children and Young People,CYP,Transport Related,CCA,16/01/2019,10-12688,2925,Tiger European Uk Ltd
Nottinghamshire County Council,1111/1001,Children and Young People,CYP,Transport Related,CCA,16/01/2019,10-12690,"1,649.25",Wallis Coachways
Nottinghamshire County Council,1111/1001,Children and Young People,CYP,Transport Related,CCA,16/01/2019,10-12691,2341.2,Wallis Coachways
Nottinghamshire County Council,1111/1001,Children and Young People,CYP,Transport Related,CCA,16/01/2019,10-12693,1810.5,Ace Cars
Nottinghamshire County Council,1111/1001,Children and Young People,CYP,Transport Related,CCA,16/01/2019,10-12694,1417.5,Ace Cars
Nottinghamshire County Council,1111/1001,Children and Young People,CYP,Transport Related,CCA,16/01/2019,10-12695,1610,Ace Cars
Nottinghamshire County Council,1111/1001,Children and Young People,CYP,Transport Related,CCA,16/01/2019,10-12697,"2,632.50",Ace Cars
Nottinghamshire County Council,1111/1001,Children and Young People,CYP,Transport Related,CCA,16/01/2019,10-12698,2629.5,Ace Cars
Nottinghamshire County Council,1111/1001,Children and Young People,CYP,Transport Related,CCA,16/01/2019,10-12699,2242.5,Ace Cars
Nottinghamshire County Council,1111/1001,Children and Young People,CYP,Transport Related,CCA,16/01/2019,10-12701,1297.35,Eurocab 2000 Ltd
Nottinghamshire County Council,1111/1001,Children and Young People,CYP,Transport Related,CCA,16/01/2019,10-12702,"1,783.50",Eurocab 2000 Ltd
Nottinghamshire County Council,1111/1001,Children and Young People,CYP,Transport Related,CCA,16/01/2019,10-12703,"1,530.00",Eurocab 2000 Ltd
Nottinghamshire County Council,1111/1001,Children and Young People,CYP,Transport Related,CCA,16/01/2019,10-12704,1666.5,Shiny Sky Ltd T/A A2b Cars
Nottinghamshire County Council,1111/1001,Children and Young People,CYP,Transport Related,CCA,16/01/2019,10-12707,1226.4,ADF Cars Ltd
Nottinghamshire County Council,1111/1001,Children and Young People,CYP,Transport Related,CCA,16/01/2019,10-12708,"1,500.00",Rushcliffe Travel Ltd
Nottinghamshire County Council,1111/1001,Children and Young People,CYP,Transport Related,CCA,16/01/2019,10-12709,2331,Rushcliffe Travel Ltd
Nottinghamshire County Council,1111/1001,Children and Young People,CYP,Transport Related,CCA,16/01/2019,10-12710,2030,Rushcliffe Travel Ltd
Nottinghamshire County Council,1111/1001,Children and Young People,CYP,Transport Related,CCA,16/01/2019,10-12711,2025,Rushcliffe Travel Ltd
Nottinghamshire County Council,1111/1001,Children and Young People,CYP,Transport Related,CCA,16/01/2019,10-12712,2025,Rushcliffe Travel Ltd
Nottinghamshire County Council,1111/1001,Children and Young People,CYP,Transport Related,CCA,16/01/2019,10-12713,2242.5,Rushcliffe Travel Ltd
Nottinghamshire County Council,1111/1001,Children and Young People,CYP,Transport Related,CCA,16/01/2019,10-12714,"2,175.00",Rushcliffe Travel Ltd
Nottinghamshire County Council,1111/1001,Children and Young People,CYP,Transport Related,CCA,16/01/2019,10-12718,1668.8,SM Travel Yorkshire Ltd
Nottinghamshire County Council,1111/1001,Children and Young People,CYP,Transport Related,CCA,16/01/2019,10-12719,"1,345.40",SM Travel Yorkshire Ltd
Nottinghamshire County Council,1111/1001,Children and Young People,CYP,Transport Related,CCA,16/01/2019,10-12720,1170,SM Travel Yorkshire Ltd
Nottinghamshire County Council,1111/1001,Children and Young People,CYP,Transport Related,CCA,16/01/2019,10-12721,1073.55,SM Travel Yorkshire Ltd
Nottinghamshire County Council,1111/1001,Children and Young People,CYP,Transport Related,CCA,17/01/2019,10-12798,"2,147.76",Johnson Bros Tours Ltd
Nottinghamshire County Council,1111/1001,Children and Young People,CYP,Transport Related,CCA,17/01/2019,10-12800,912,Alpha Cars
Nottinghamshire County Council,1111/1001,Children and Young People,CYP,Transport Related,CCA,17/01/2019,10-12801,700,Fozcabs Newark Taxis
Nottinghamshire County Council,1111/1001,Children and Young People,CYP,Transport Related,CCA,17/01/2019,10-12803,"1,815.00",BN Gibson Ltd
Nottinghamshire County Council,1111/1001,Children and Young People,CYP,Transport Related,CCA,17/01/2019,10-12804,741,Skills Motor Coaches Ltd
Nottinghamshire County Council,1111/1001,Children and Young People,CYP,Transport Related,CCA,17/01/2019,10-12805,1100,Skills Motor Coaches Ltd
Nottinghamshire County Council,1111/1001,Children and Young People,CYP,Transport Related,CCA,17/01/2019,10-12806,805,Skills Motor Coaches Ltd
Nottinghamshire County Council,1111/1001,Children and Young People,CYP,Transport Related,CCA,17/01/2019,10-12808,"3,016.50",Gem Mini Travel Ltd
Nottinghamshire County Council,1111/1001,Children and Young People,CYP,Transport Related,CCA,17/01/2019,10-12809,4139.61,Gem Mini Travel Ltd
Nottinghamshire County Council,1111/1001,Children and Young People,CYP,Transport Related,CCA,17/01/2019,10-12810,"1,273.12",Silverdale Tours Nottm Ltd
Nottinghamshire County Council,1111/1001,Children and Young People,CYP,Transport Related,CCA,17/01/2019,10-12811,9120,Wilfreda Beehive
Nottinghamshire County Council,1111/1001,Children and Young People,CYP,Transport Related,CCA,17/01/2019,10-12812,1854,Freeway Coaches Ltd
Nottinghamshire County Council,1111/1001,Children and Young People,CYP,Transport Related,CCA,17/01/2019,10-12813,2651,Freeway Coaches Ltd
Nottinghamshire County Council,1111/1001,Children and Young People,CYP,Transport Related,CCA,17/01/2019,10-12814,633.84,Bassetlaw Action Centre
Nottinghamshire County Council,1111/1001,Children and Young People,CYP,Transport Related,CCA,17/01/2019,10-12815,910,Nottingham Coaches
Nottinghamshire County Council,1111/1001,Children and Young People,CYP,Transport Related,CCA,17/01/2019,10-12826,2983.8,Taxicover Uk Ltd
Nottinghamshire County Council,1111/1001,Children and Young People,CYP,Transport Related,CCA,17/01/2019,10-12827,"2,286.00",Taxicover Uk Ltd
Nottinghamshire County Council,1111/1001,Children and Young People,CYP,Transport Related,CCA,17/01/2019,10-12828,2431.35,Taxicover Uk Ltd
Nottinghamshire County Council,1111/1001,Children and Young People,CYP,Transport Related,CCA,17/01/2019,10-12829,2586,Taxicover Uk Ltd
Nottinghamshire County Council,1111/1001,Children and Young People,CYP,Transport Related,CCA,17/01/2019,10-12830,"2,815.50",Taxicover Uk Ltd
Nottinghamshire County Council,1111/1001,Children and Young People,CYP,Transport Related,CCA,17/01/2019,10-12832,"1,650.00",Abacus Cars
Nottinghamshire County Council,1111/1001,Children and Young People,CYP,Transport Related,CCA,17/01/2019,10-12835,1345.5,Ace Cars
Nottinghamshire County Council,1111/1001,Children and Young People,CYP,Transport Related,CCA,17/01/2019,10-12837,1747.5,Ace Cars
Nottinghamshire County Council,1111/1001,Children and Young People,CYP,Transport Related,CCA,17/01/2019,10-12838,"1,673.00",Ace Cars
Nottinghamshire County Council,1111/1001,Children and Young People,CYP,Transport Related,CCA,22/01/2019,10-15885,980,Shelleys Taxis Ltd
Nottinghamshire County Council,1111/1001,Children and Young People,CYP,Transport Related,CCA,22/01/2019,10-15886,"1,941.55",F4Control Ltd (t/a First4care)
Nottinghamshire County Council,1111/1001,Children and Young People,CYP,Transport Related,CCA,22/01/2019,10-15887,"1,653.30",F4Control Ltd (t/a First4care)
Nottinghamshire County Council,1111/1001,Children and Young People,CYP,Transport Related,CCA,24/01/2019,10-16074,660,Acorn Contracts
Nottinghamshire County Council,1111/1001,Children and Young People,CYP,Transport Related,CCA,24/01/2019,10-16075,2565,Arrow Specialised Transport Ltd
Nottinghamshire County Council,1111/1001,Children and Young People,CYP,Transport Related,CCA,24/01/2019,10-16076,2184,Arrow Specialised Transport Ltd
Nottinghamshire County Council,1111/1001,Children and Young People,CYP,Transport Related,CCA,24/01/2019,10-16077,"2,352.00",Arrow Specialised Transport Ltd
Nottinghamshire County Council,1111/1001,Children and Young People,CYP,Transport Related,CCA,24/01/2019,10-16078,2443.2,Arrow Specialised Transport Ltd
Nottinghamshire County Council,1111/1001,Children and Young People,CYP,Transport Related,CCA,24/01/2019,10-16079,1397.25,Arrow Specialised Transport Ltd
Nottinghamshire County Council,1111/1001,Children and Young People,CYP,Transport Related,CCA,24/01/2019,10-16081,1697.5,Arrow Specialised Transport Ltd
Nottinghamshire County Council,1111/1001,Children and Young People,CYP,Transport Related,CCA,24/01/2019,10-16082,2649.45,Arrow Specialised Transport Ltd
Nottinghamshire County Council,1111/1001,Children and Young People,CYP,Transport Related,CCA,24/01/2019,10-16083,1797.3,Arrow Specialised Transport Ltd
Nottinghamshire County Council,1111/1001,Children and Young People,CYP,Transport Related,CCA,24/01/2019,10-16084,2725.2,Arrow Specialised Transport Ltd
Nottinghamshire County Council,1111/1001,Children and Young People,CYP,Transport Related,CCA,24/01/2019,10-16085,2497.95,Arrow Specialised Transport Ltd
Nottinghamshire County Council,1111/1001,Children and Young People,CYP,Transport Related,CCA,24/01/2019,10-16086,"2,057.70",Arrow Specialised Transport Ltd
Nottinghamshire County Council,1111/1001,Children and Young People,CYP,Transport Related,CCA,24/01/2019,10-16092,4035,Stagecoach Services Ltd
Nottinghamshire County Council,1111/1001,Children and Young People,CYP,Transport Related,CCA,24/01/2019,10-16094,825,Shiny Sky Ltd T/A A2b Cars
Nottinghamshire County Council,1111/1001,Children and Young People,CYP,Transport Related,CCA,24/01/2019,10-16095,"1,833.15",Shiny Sky Ltd T/A A2b Cars
Nottinghamshire County Council,1111/1001,Children and Young People,CYP,Transport Related,CCA,25/01/2019,10-16124,"2,705.50",Tiger European Uk Ltd
Nottinghamshire County Council,1111/1001,Children and Young People,CYP,Transport Related,CCA,25/01/2019,10-16125,"2,115.55",Tiger European Uk Ltd
Nottinghamshire County Council,1111/1001,Children and Young People,CYP,Transport Related,CCA,25/01/2019,10-16126,5025,Tiger European Uk Ltd
Nottinghamshire County Council,1111/1001,Children and Young People,CYP,Transport Related,CCA,25/01/2019,10-16127,2726.25,Tiger European Uk Ltd
Nottinghamshire County Council,1111/1001,Children and Young People,CYP,Transport Related,CCA,25/01/2019,10-16128,"2,204.80",Tiger European Uk Ltd
Nottinghamshire County Council,1111/1001,Children and Young People,CYP,Transport Related,CCA,25/01/2019,10-16129,"5,175.00",Tiger European Uk Ltd
Nottinghamshire County Council,1111/1001,Children and Young People,CYP,Transport Related,CCA,25/01/2019,10-16130,"1,705.50",Tiger European Uk Ltd
Nottinghamshire County Council,1111/1001,Children and Young People,CYP,Transport Related,CCA,25/01/2019,10-16133,"1,680.00",Tiger European Uk Ltd
Nottinghamshire County Council,1111/1001,Children and Young People,CYP,Transport Related,CCA,25/01/2019,10-16134,"2,625.00",Tiger European Uk Ltd
Nottinghamshire County Council,1111/1001,Children and Young People,CYP,Transport Related,CCA,25/01/2019,10-16146,622.12,Alpha Cars
Nottinghamshire County Council,1111/1001,Children and Young People,CYP,Transport Related,CCA,25/01/2019,10-16147,904.96,Alpha Cars
Nottinghamshire County Council,1111/1001,Children and Young People,CYP,Transport Related,CCA,25/01/2019,10-16148,"1,999.20",Arrow Specialised Transport Ltd
Nottinghamshire County Council,1111/1001,Children and Young People,CYP,Transport Related,CCA,29/01/2019,10-16550,720,6 Five 2s
Nottinghamshire County Council,1111/1001,Children and Young People,CYP,Transport Related,CCA,29/01/2019,10-16551,744,Galaxy Cabs Ltd
Nottinghamshire County Council,1111/1001,Children and Young People,CYP,Transport Related,CCA,29/01/2019,10-16552,675,Shiny Sky Ltd T/A A2b Cars
Nottinghamshire County Council,1111/1001,Children and Young People,CYP,Transport Related,CCA,29/01/2019,10-16577,"1,474.06",6 Five 2s
Nottinghamshire County Council,1111/1001,Children and Young People,CYP,Transport Related,CCA,29/01/2019,10-16578,570,Nottingham Cars Ltd
Nottinghamshire County Council,1111/1001,Children and Young People,CYP,Transport Related,CCA,30/01/2019,10-12461,"1,852.20",Marks Specialised Transport Ltd
Nottinghamshire County Council,1111/1001,Children and Young People,CYP,Transport Related,CCA,31/01/2019,10-16856,"1,060.00",6 Five 2s
Nottinghamshire County Council,1111/1001,Children and Young People,CYP,Transport Related,CCA,31/01/2019,10-16858,"3,233.00",Nottingham City Transport Ltd
Nottinghamshire County Council,1111/1001,Children and Young People,CYP,Transport Related,CCA,31/01/2019,10-16859,1094.52,MSP Case Management Ltd
Nottinghamshire County Council,1111/1001,Children and Young People,CYP,Transport Related,CDA,09/01/2019,10-11828,378.75,Bridges Transport Ltd
Nottinghamshire County Council,1111/1001,Children and Young People,CYP,Transport Related,CDA,09/01/2019,10-11870,"4,368.00",Marshalls Of Sutton On Trent Ltd
Nottinghamshire County Council,1111/1001,Children and Young People,CYP,Transport Related,CDA,09/01/2019,10-11872,"2,100.00",Nottingham Minibuses & Coaches
Nottinghamshire County Council,1111/1001,Children and Young People,CYP,Transport Related,CDA,09/01/2019,10-11873,"1,950.00",Nottingham Minibuses & Coaches
Nottinghamshire County Council,1111/1001,Children and Young People,CYP,Transport Related,CDA,09/01/2019,10-11874,"1,425.00",Nottingham Minibuses & Coaches
Nottinghamshire County Council,1111/1001,Children and Young People,CYP,Transport Related,CDA,09/01/2019,10-11875,1875,Nottingham Minibuses & Coaches
Nottinghamshire County Council,1111/1001,Children and Young People,CYP,Transport Related,CDA,09/01/2019,10-11887,4793.6,Paul S Winson Coaches
Nottinghamshire County Council,1111/1001,Children and Young People,CYP,Transport Related,CDA,09/01/2019,10-11892,1087.5,Sean's Taxi Services
Nottinghamshire County Council,1111/1001,Children and Young People,CYP,Transport Related,CDA,09/01/2019,10-11894,705,Fastlane Cabs
Nottinghamshire County Council,1111/1001,Children and Young People,CYP,Transport Related,CDA,09/01/2019,10-11998,308,Abacus Cars
Nottinghamshire County Council,1111/1001,Children and Young People,CYP,Transport Related,CDA,09/01/2019,10-12015,"1,449.00",Nottingham Minibuses & Coaches
Nottinghamshire County Council,1111/1001,Children and Young People,CYP,Transport Related,CDA,09/01/2019,10-12016,1414,Nottingham Minibuses & Coaches
Nottinghamshire County Council,1111/1001,Children and Young People,CYP,Transport Related,CDA,09/01/2019,10-12017,1300,Nottingham Minibuses & Coaches
Nottinghamshire County Council,1111/1001,Children and Young People,CYP,Transport Related,CDA,09/01/2019,10-12018,8280,Nottingham Minibuses & Coaches
Nottinghamshire County Council,1111/1001,Children and Young People,CYP,Transport Related,CDA,09/01/2019,10-12022,693,Rio Cabs
Nottinghamshire County Council,1111/1001,Children and Young People,CYP,Transport Related,CDA,10/01/2019,10-12096,653.4,Galaxy Cabs Ltd
Nottinghamshire County Council,1111/1001,Children and Young People,CYP,Transport Related,CDA,10/01/2019,10-12168,2184,C W Moxon Ltd
Nottinghamshire County Council,1111/1001,Children and Young People,CYP,Transport Related,CDA,10/01/2019,10-12181,900,Abacus Taxi & Courier Services
Nottinghamshire County Council,1111/1001,Children and Young People,CYP,Transport Related,CDA,11/01/2019,10-11988,441.25,Arrow Specialised Transport Ltd
Nottinghamshire County Council,1111/1001,Children and Young People,CYP,Transport Related,CDA,11/01/2019,10-12203,1168.8,Taxicover Uk Ltd
Nottinghamshire County Council,1111/1001,Children and Young People,CYP,Transport Related,CDA,11/01/2019,10-12230,1722,Johnson Bros Tours Ltd
Nottinghamshire County Council,1111/1001,Children and Young People,CYP,Transport Related,CDA,11/01/2019,10-12240,"1,215.00",Ng11 Cars
Nottinghamshire County Council,1111/1001,Children and Young People,CYP,Transport Related,CDA,11/01/2019,10-12265,"2,706.00",AOT Coaches
Nottinghamshire County Council,1111/1001,Children and Young People,CYP,Transport Related,CDA,11/01/2019,10-12293,"3,150.00",C W Moxon Ltd
Nottinghamshire County Council,1111/1001,Children and Young People,CYP,Transport Related,CDA,11/01/2019,10-12295,8652,C W Moxon Ltd
Nottinghamshire County Council,1111/1001,Children and Young People,CYP,Transport Related,CDA,11/01/2019,10-12301,585,Eastwood Cars (UK) Ltd
Nottinghamshire County Council,1111/1001,Children and Young People,CYP,Transport Related,CDA,11/01/2019,10-12323,560.55,Forest Cars
Nottinghamshire County Council,1111/1001,Children and Young People,CYP,Transport Related,CDA,11/01/2019,10-12334,660,Forest Cars
Nottinghamshire County Council,1111/1001,Children and Young People,CYP,Transport Related,CDA,14/01/2019,10-12363,3360,Johnson Bros Tours Ltd
Nottinghamshire County Council,1111/1001,Children and Young People,CYP,Transport Related,CDA,14/01/2019,10-12364,"1,425.00",Johnson Bros Tours Ltd
Nottinghamshire County Council,1111/1001,Children and Young People,CYP,Transport Related,CDA,14/01/2019,10-12367,648,200 Cars Ltd
Nottinghamshire County Council,1111/1001,Children and Young People,CYP,Transport Related,CDA,14/01/2019,10-12373,336,Alpha Cars
Nottinghamshire County Council,1111/1001,Children and Young People,CYP,Transport Related,CDA,14/01/2019,10-12380,197.47,F4Control Ltd (t/a First4care)
Nottinghamshire County Council,1111/1001,Children and Young People,CYP,Transport Related,CDA,14/01/2019,10-12398,9900,Silverdale Tours Nottm Ltd
Nottinghamshire County Council,1111/1001,Children and Young People,CYP,Transport Related,CDA,14/01/2019,10-12433,"1,074.64",P & P Taxis
Nottinghamshire County Council,1111/1001,Children and Young People,CYP,Transport Related,CDA,14/01/2019,10-12445,156.28,Ace Cars
Nottinghamshire County Council,1111/1001,Children and Young People,CYP,Transport Related,CDA,14/01/2019,10-12454,290.55,Ace Cars
Nottinghamshire County Council,1111/1001,Children and Young People,CYP,Transport Related,CDA,14/01/2019,10-12465,297.5,Nottingham Cars Ltd
Nottinghamshire County Council,1111/1001,Children and Young People,CYP,Transport Related,CDA,16/01/2019,10-12717,1320.2,SM Travel Yorkshire Ltd
Nottinghamshire County Council,1111/1001,Children and Young People,CYP,Transport Related,CDA,17/01/2019,10-12839,2460,Forest Cars
Nottinghamshire County Council,1111/1001,Children and Young People,CYP,Transport Related,CDA,24/01/2019,10-16093,750,Kettlewell Retford Ltd
Nottinghamshire County Council,1111/1001,Children and Young People,CYP,Transport Related,CDA,25/01/2019,10-16131,1593,Tiger European Uk Ltd
Nottinghamshire County Council,1111/1001,Children and Young People,CYP,Transport Related,CDA,25/01/2019,10-16132,"1,155.00",Tiger European Uk Ltd
Nottinghamshire County Council,1111/1001,Children and Young People,CYP,Transport Related,CDA,29/01/2019,10-16553,1225.9,SM Travel Yorkshire Ltd
Nottinghamshire County Council,1111/1001,Children and Young People,CYP,Transport Related,CEA,11/01/2019,10-10689,2917.41,Reed Employment Plc
Nottinghamshire County Council,1111/1001,Children and Young People,CYP,Transport Related,CEA,18/01/2019,10-10684,1243.56,Reed Employment Plc
Nottinghamshire County Council,1111/1001,Children and Young People,CYP,Transport Related,CEA,25/01/2019,10-12723,"1,914.67",Reed Employment Plc
Nottinghamshire County Council,1111/1001,Children and Young People,CYP,Supplies & Services,DAA,11/01/2019,10-17083,650.9,Itc First Aid Ltd
Nottinghamshire County Council,1111/1001,Children and Young People,CYP,Supplies & Services,DAA,15/01/2019,10-17028,2000,Gemma Books Ltd
Nottinghamshire County Council,1111/1001,Children and Young People,CYP,Supplies & Services,DAA,16/01/2019,10-12784,859.1,Calzados Boreal S.L
Nottinghamshire County Council,1111/1001,Children and Young People,CYP,Supplies & Services,DAA,18/01/2019,10-17150,"1,537.50",Reliance High-Tech Ltd
Nottinghamshire County Council,1111/1001,Children and Young People,CYP,Supplies & Services,DCA,15/01/2019,10-17173,703.2,Clean Sheet Laundry Ltd
Nottinghamshire County Council,1111/1001,Children and Young People,CYP,Supplies & Services,DCA,31/01/2019,10-17521,576.62,Clean Sheet Laundry Ltd
Nottinghamshire County Council,1111/1001,Children and Young People,CYP,Supplies & Services,DEA,03/01/2019,10-10042,4734.84,Gedling Borough Council (Bus Rates
Nottinghamshire County Council,1111/1001,Children and Young People,CYP,Supplies & Services,DEA,03/01/2019,10-16871,1205.85,APW Consultancy Service Ltd
Nottinghamshire County Council,1111/1001,Children and Young People,CYP,Supplies & Services,DEA,03/01/2019,10-16872,1790,Kids
Nottinghamshire County Council,1111/1001,Children and Young People,CYP,Supplies & Services,DEA,07/01/2019,10-16933,781.74,ARC Property Services Partnership L
Nottinghamshire County Council,1111/1001,Children and Young People,CYP,Supplies & Services,DEA,09/01/2019,10-16883,1125,H Daft Consultant in Social Care Lt
Nottinghamshire County Council,1111/1001,Children and Young People,CYP,Supplies & Services,DEA,10/01/2019,10-17085,900,FML Education Consultancy Ltd
Nottinghamshire County Council,1111/1001,Children and Young People,CYP,Supplies & Services,DEA,11/01/2019,10-12200,48970.83,Foxwood Academy
Nottinghamshire County Council,1111/1001,Children and Young People,CYP,Supplies & Services,DEA,11/01/2019,10-17071,1000,[Redacted]
Nottinghamshire County Council,1111/1001,Children and Young People,CYP,Supplies & Services,DEA,11/01/2019,10-17096,600.1,Lextox Drug & Alcohol Testing
Nottinghamshire County Council,1111/1001,Children and Young People,CYP,Supplies & Services,DEA,14/01/2019,10-17166,"1,600.00",Sylnar Ltd
Nottinghamshire County Council,1111/1001,Children and Young People,CYP,Supplies & Services,DEA,15/01/2019,10-17027,2937.5,Adoption Plus Ltd
Nottinghamshire County Council,1111/1001,Children and Young People,CYP,Supplies & Services,DEA,15/01/2019,10-17176,"1,000.00",E Learning Team Ltd
Nottinghamshire County Council,1111/1001,Children and Young People,CYP,Supplies & Services,DEA,15/01/2019,10-17179,"6,296.10",Bevan Brittan
Nottinghamshire County Council,1111/1001,Children and Young People,CYP,Supplies & Services,DEA,15/01/2019,10-17180,8775,[Redacted]
Nottinghamshire County Council,1111/1001,Children and Young People,CYP,Supplies & Services,DEA,15/01/2019,10-17182,"4,050.00",ShortsCo Ltd
Nottinghamshire County Council,1111/1001,Children and Young People,CYP,Supplies & Services,DEA,15/01/2019,10-17200,"5,400.00",[Redacted]
Nottinghamshire County Council,1111/1001,Children and Young People,CYP,Supplies & Services,DEA,17/01/2019,10-17219,685.68,Regional Foster Placements Ltd
Nottinghamshire County Council,1111/1001,Children and Young People,CYP,Supplies & Services,DEA,17/01/2019,10-17251,"2,600.00",The Together Trust Ltd
Nottinghamshire County Council,1111/1001,Children and Young People,CYP,Supplies & Services,DEA,17/01/2019,10-17257,1790,Kids
Nottinghamshire County Council,1111/1001,Children and Young People,CYP,Supplies & Services,DEA,18/01/2019,10-17211,1350,CPD Education Ltd
Nottinghamshire County Council,1111/1001,Children and Young People,CYP,Supplies & Services,DEA,18/01/2019,10-17218,1350,CPD Education Ltd
Nottinghamshire County Council,1111/1001,Children and Young People,CYP,Supplies & Services,DEA,18/01/2019,10-17243,1350,CPD Education Ltd
Nottinghamshire County Council,1111/1001,Children and Young People,CYP,Supplies & Services,DEA,21/01/2019,10-17265,"1,553.50",Childrens Sensory Therapy Ltd
Nottinghamshire County Council,1111/1001,Children and Young People,CYP,Supplies & Services,DEA,21/01/2019,10-17318,3375,[Redacted]
Nottinghamshire County Council,1111/1001,Children and Young People,CYP,Supplies & Services,DEA,22/01/2019,10-17354,"1,619.00",Childrens Sensory Therapy Ltd
Nottinghamshire County Council,1111/1001,Children and Young People,CYP,Supplies & Services,DEA,22/01/2019,10-17355,3483.66,Childrens Sensory Therapy Ltd
Nottinghamshire County Council,1111/1001,Children and Young People,CYP,Supplies & Services,DEA,22/01/2019,10-17356,1472.5,Childrens Sensory Therapy Ltd
Nottinghamshire County Council,1111/1001,Children and Young People,CYP,Supplies & Services,DEA,25/01/2019,10-17281,"1,110.00",Slack & Co Floorcoverings
Nottinghamshire County Council,1111/1001,Children and Young People,CYP,Supplies & Services,DEA,25/01/2019,10-17445,614.4,Complement Genomics Ltd
Nottinghamshire County Council,1111/1001,Children and Young People,CYP,Supplies & Services,DEA,28/01/2019,10-15890,25305.5,Beech Academy
Nottinghamshire County Council,1111/1001,Children and Young People,CYP,Supplies & Services,DEA,28/01/2019,10-17133,745,Talking Life
Nottinghamshire County Council,1111/1001,Children and Young People,CYP,Supplies & Services,DEA,28/01/2019,10-17294,745,Talking Life
Nottinghamshire County Council,1111/1001,Children and Young People,CYP,Supplies & Services,DEA,29/01/2019,10-16910,"1,085.00",Creative Connections
Nottinghamshire County Council,1111/1001,Children and Young People,CYP,Supplies & Services,DEA,29/01/2019,10-17439,"6,750.00",[Redacted]
Nottinghamshire County Council,1111/1001,Children and Young People,CYP,Supplies & Services,DEA,29/01/2019,10-17475,"1,200.00",Anthony Collins Solicitors Llp
Nottinghamshire County Council,1111/1001,Children and Young People,CYP,Supplies & Services,DEA,29/01/2019,10-17477,"1,490.00",Anna Pinkerton Ltd
Nottinghamshire County Council,1111/1001,Children and Young People,CYP,Supplies & Services,DEA,30/01/2019,10-17154,618.75,Chris Few Consultancy Ltd
Nottinghamshire County Council,1111/1001,Children and Young People,CYP,Supplies & Services,DEA,30/01/2019,10-17210,2925,Wendy Wheldon Consultancy & Trainin
Nottinghamshire County Council,1111/1001,Children and Young People,CYP,Supplies & Services,DEA,30/01/2019,10-17315,"1,100.00",[Redacted]
Nottinghamshire County Council,1111/1001,Children and Young People,CYP,Supplies & Services,DEA,30/01/2019,10-17327,3215.7,Shonette Bason Ltd
Nottinghamshire County Council,1111/1001,Children and Young People,CYP,Supplies & Services,DEA,30/01/2019,10-17490,1558,Childrens Sensory Therapy Ltd
Nottinghamshire County Council,1111/1001,Children and Young People,CYP,Supplies & Services,DEA,30/01/2019,10-17494,1790,Kids
Nottinghamshire County Council,1111/1001,Children and Young People,CYP,Supplies & Services,DEA,31/01/2019,10-17482,1571,Childrens Sensory Therapy Ltd
Nottinghamshire County Council,1111/1001,Children and Young People,CYP,Supplies & Services,DEA,31/01/2019,10-17511,1950,Carter Brown - The Expert Service L
Nottinghamshire County Council,1111/1001,Children and Young People,CYP,Supplies & Services,DEA,31/01/2019,10-17517,1470,Childrens Sensory Therapy Ltd
Nottinghamshire County Council,1111/1001,Children and Young People,CYP,Supplies & Services,DEA,31/01/2019,10-17519,1460,Childrens Sensory Therapy Ltd
Nottinghamshire County Council,1111/1001,Children and Young People,CYP,Supplies & Services,DFA,22/01/2019,10-17370,"5,000.00",Servelec Social Care Ltd
Nottinghamshire County Council,1111/1001,Children and Young People,CYP,Supplies & Services,DFA,25/01/2019,10-16979,1658.11,Specialist Computer Centres
Nottinghamshire County Council,1111/1001,Children and Young People,CYP,Supplies & Services,DGA,25/01/2019,10-16139,635.4,[Redacted]
Nottinghamshire County Council,1111/1001,Children and Young People,CYP,Supplies & Services,DHA,15/01/2019,10-12634,"2,000.00",JMN Property Solutions Ltd
Nottinghamshire County Council,1111/1001,Children and Young People,CYP,Supplies & Services,DKA,10/01/2019,10-16943,"4,200.00",Gas Street Works Ltd
Nottinghamshire County Council,1111/1001,Children and Young People,CYP,Third Party Payments,EBA,03/01/2019,10-10047,"11,862.77",Transform Schools
Nottinghamshire County Council,1111/1001,Children and Young People,CYP,Third Party Payments,EBA,28/01/2019,10-17455,3250,Signis Ltd
Nottinghamshire County Council,1111/1001,Children and Young People,CYP,Third Party Payments,EBA,29/01/2019,10-11897,1497725.71,Transform Schools
Nottinghamshire County Council,1111/1001,Children and Young People,CYP,Third Party Payments,EBA,29/01/2019,10-15891,"19,435.00",East Leake Schools Ltd
Nottinghamshire County Council,1111/1001,Children and Young People,CYP,Third Party Payments,EBA,29/01/2019,10-15892,"9,798.48",East Leake Schools Ltd
Nottinghamshire County Council,1111/1001,Children and Young People,CYP,Third Party Payments,EBA,29/01/2019,10-15893,"14,850.00",East Leake Schools Ltd
Nottinghamshire County Council,1111/1001,Children and Young People,CYP,Third Party Payments,EBA,29/01/2019,10-15911,"233,774.41",East Leake Schools Ltd
Nottinghamshire County Council,1111/1001,Children and Young People,CYP,Third Party Payments,EBA,30/01/2019,10-17363,"121,500.00",Framework Housing Association
Nottinghamshire County Council,1111/1001,Children and Young People,CYP,Third Party Payments,EBA,30/01/2019,10-17367,202500,Framework Housing Association
Nottinghamshire County Council,1111/1001,Children and Young People,CYP,Third Party Payments,EDA,03/01/2019,10-10038,24500,Kirkby Woodhouse Academy School
Nottinghamshire County Council,1111/1001,Children and Young People,CYP,Third Party Payments,EDA,08/01/2019,10-10693,"96,426.00",Redgate Primary Academy
Nottinghamshire County Council,1111/1001,Children and Young People,CYP,Third Party Payments,EDA,08/01/2019,10-10694,8334,Beech Academy
Nottinghamshire County Council,1111/1001,Children and Young People,CYP,Third Party Payments,EDA,08/01/2019,10-10695,1800,Yeoman Park Academy
Nottinghamshire County Council,1111/1001,Children and Young People,CYP,Third Party Payments,EDA,08/01/2019,10-10696,"204,892.00",Yeoman Park Academy
Nottinghamshire County Council,1111/1001,Children and Young People,CYP,Third Party Payments,EDA,08/01/2019,10-10697,"119,398.00",Beech Academy
Nottinghamshire County Council,1111/1001,Children and Young People,CYP,Third Party Payments,EDA,08/01/2019,10-10698,160816,Foxwood Academy
Nottinghamshire County Council,1111/1001,Children and Young People,CYP,Third Party Payments,EDA,08/01/2019,10-10699,667.8,Alderman Pounder Academy(Flying Hig
Nottinghamshire County Council,1111/1001,Children and Young People,CYP,Third Party Payments,EDA,08/01/2019,10-10702,"1,001.70",Barnby Road Academy Prim & Nursery
Nottinghamshire County Council,1111/1001,Children and Young People,CYP,Third Party Payments,EDA,08/01/2019,10-10703,667.8,Flying High Trust Beeston Fields Pr
Nottinghamshire County Council,1111/1001,Children and Young People,CYP,Third Party Payments,EDA,08/01/2019,10-10704,779.1,Birklands Primary (Academy)
Nottinghamshire County Council,1111/1001,Children and Young People,CYP,Third Party Payments,EDA,08/01/2019,10-10705,667.8,Bishop Alexander LEAD Academy
Nottinghamshire County Council,1111/1001,Children and Young People,CYP,Third Party Payments,EDA,08/01/2019,10-10706,667.8,Central Infant Academy
Nottinghamshire County Council,1111/1001,Children and Young People,CYP,Third Party Payments,EDA,08/01/2019,10-10707,890.4,The Flying High Academy
Nottinghamshire County Council,1111/1001,Children and Young People,CYP,Third Party Payments,EDA,08/01/2019,10-10708,"1,224.30",Greenwood Primary & Nursery School
Nottinghamshire County Council,1111/1001,Children and Young People,CYP,Third Party Payments,EDA,08/01/2019,10-10709,890.4,Keyworth Primary & Nursery School
Nottinghamshire County Council,1111/1001,Children and Young People,CYP,Third Party Payments,EDA,08/01/2019,10-11072,890.4,Leamington Primary & Nursery Academ
Nottinghamshire County Council,1111/1001,Children and Young People,CYP,Third Party Payments,EDA,08/01/2019,10-11174,1025.55,Mansfield Primary Academy
Nottinghamshire County Council,1111/1001,Children and Young People,CYP,Third Party Payments,EDA,08/01/2019,10-11414,1558.2,Netherfield Primary School (Academy
Nottinghamshire County Council,1111/1001,Children and Young People,CYP,Third Party Payments,EDA,08/01/2019,10-11533,556.5,Norbridge Academy Trust
Nottinghamshire County Council,1111/1001,Children and Young People,CYP,Third Party Payments,EDA,08/01/2019,10-11706,667.8,Worksop Priory CE Primary Academy
Nottinghamshire County Council,1111/1001,Children and Young People,CYP,Third Party Payments,EDA,08/01/2019,10-11707,890.4,Kirkby Woodhouse Academy School
Nottinghamshire County Council,1111/1001,Children and Young People,CYP,Third Party Payments,EDA,08/01/2019,10-11708,1113,Serlby Park Academy
Nottinghamshire County Council,1111/1001,Children and Young People,CYP,Third Party Payments,EDA,08/01/2019,10-11709,1446.9,Sparken Hill Academy
Nottinghamshire County Council,1111/1001,Children and Young People,CYP,Third Party Payments,EDA,08/01/2019,10-11710,667.8,St Josephs Catholic Primary Sch Aca
Nottinghamshire County Council,1111/1001,Children and Young People,CYP,Third Party Payments,EDA,08/01/2019,10-11711,556.5,St Peters C of E Academy Mansfield
Nottinghamshire County Council,1111/1001,Children and Young People,CYP,Third Party Payments,EDA,08/01/2019,10-11712,667.8,St Philip Neri with St Bede Vol Aca
Nottinghamshire County Council,1111/1001,Children and Young People,CYP,Third Party Payments,EDA,08/01/2019,10-11713,556.5,Sunnyside Spencer Academy
Nottinghamshire County Council,1111/1001,Children and Young People,CYP,Third Party Payments,EDA,08/01/2019,10-11714,667.8,Samuel Barlow Primary Academy
Nottinghamshire County Council,1111/1001,Children and Young People,CYP,Third Party Payments,EDA,08/01/2019,10-11715,556.5,The Bramble Academy
Nottinghamshire County Council,1111/1001,Children and Young People,CYP,Third Party Payments,EDA,08/01/2019,10-11716,556.5,Candleby Lane School
Nottinghamshire County Council,1111/1001,Children and Young People,CYP,Third Party Payments,EDA,08/01/2019,10-11717,1669.5,Sir Donald Bailey Academy
Nottinghamshire County Council,1111/1001,Children and Young People,CYP,Third Party Payments,EDA,08/01/2019,10-11718,556.5,West Park Academy
Nottinghamshire County Council,1111/1001,Children and Young People,CYP,Third Party Payments,EDA,08/01/2019,10-11719,652.96,Tuxford Primary Academy
Nottinghamshire County Council,1111/1001,Children and Young People,CYP,Third Party Payments,EDA,08/01/2019,10-11720,890.4,Wainwright Primary Academy
Nottinghamshire County Council,1111/1001,Children and Young People,CYP,Third Party Payments,EDA,08/01/2019,10-11721,890.4,Thrumpton Primary Academy
Nottinghamshire County Council,1111/1001,Children and Young People,CYP,Third Party Payments,EDA,08/01/2019,10-11722,"11,022.90",Alderman Pounder Academy(Flying Hig
Nottinghamshire County Council,1111/1001,Children and Young People,CYP,Third Party Payments,EDA,08/01/2019,10-11723,"4,567.50",Arnbrook Primary Academy
Nottinghamshire County Council,1111/1001,Children and Young People,CYP,Third Party Payments,EDA,08/01/2019,10-11724,"5,420.10",Awsworth Primary & Nursery Sch (Aca
Nottinghamshire County Council,1111/1001,Children and Young People,CYP,Third Party Payments,EDA,08/01/2019,10-11725,6394.5,Flying High Trust Bilsthorpe High A
Nottinghamshire County Council,1111/1001,Children and Young People,CYP,Third Party Payments,EDA,08/01/2019,10-11726,"8,586.90",Birklands Primary (Academy)
Nottinghamshire County Council,1111/1001,Children and Young People,CYP,Third Party Payments,EDA,08/01/2019,10-11727,10413.9,Bracken Lane Primary Academy
Nottinghamshire County Council,1111/1001,Children and Young People,CYP,Third Party Payments,EDA,08/01/2019,10-11728,"3,593.10",St Peters C of E Academy
Nottinghamshire County Council,1111/1001,Children and Young People,CYP,Third Party Payments,EDA,08/01/2019,10-11729,7308,Flintham Primary Academy School
Nottinghamshire County Council,1111/1001,Children and Young People,CYP,Third Party Payments,EDA,08/01/2019,10-11730,11875.5,Greenwood Primary & Nursery School
Nottinghamshire County Council,1111/1001,Children and Young People,CYP,Third Party Payments,EDA,08/01/2019,10-11731,"3,654.00",Holy Trinity Catholic Voluntary Aca
Nottinghamshire County Council,1111/1001,Children and Young People,CYP,Third Party Payments,EDA,08/01/2019,10-11732,"5,724.60",Keyworth Primary & Nursery School
Nottinghamshire County Council,1111/1001,Children and Young People,CYP,Third Party Payments,EDA,08/01/2019,10-11733,4080.3,KImberely Primary & Nursery School
Nottinghamshire County Council,1111/1001,Children and Young People,CYP,Third Party Payments,EDA,08/01/2019,10-11734,"18,270.00",Netherfield Primary School (Academy
Nottinghamshire County Council,1111/1001,Children and Young People,CYP,Third Party Payments,EDA,08/01/2019,10-11735,26491.5,Norbridge Academy Trust
Nottinghamshire County Council,1111/1001,Children and Young People,CYP,Third Party Payments,EDA,08/01/2019,10-11736,12789,Peafield Lane Academy
Nottinghamshire County Council,1111/1001,Children and Young People,CYP,Third Party Payments,EDA,08/01/2019,10-11737,4567.5,Worksop Priory CE Primary Academy
Nottinghamshire County Council,1111/1001,Children and Young People,CYP,Third Party Payments,EDA,08/01/2019,10-11738,5481,Robert Mellors Primary & Nursery Ac
Nottinghamshire County Council,1111/1001,Children and Young People,CYP,Third Party Payments,EDA,08/01/2019,10-11739,"13,702.50",Heymann Primary School
Nottinghamshire County Council,1111/1001,Children and Young People,CYP,Third Party Payments,EDA,08/01/2019,10-11740,7734.3,Sacred Heart Catholic Voluntary Aca
Nottinghamshire County Council,1111/1001,Children and Young People,CYP,Third Party Payments,EDA,08/01/2019,10-11741,10962,Serlby Park Academy
Nottinghamshire County Council,1111/1001,Children and Young People,CYP,Third Party Payments,EDA,08/01/2019,10-11742,6394.5,Samuel Barlow Primary Academy
Nottinghamshire County Council,1111/1001,Children and Young People,CYP,Third Party Payments,EDA,08/01/2019,10-11743,"12,399.24",St Johns CE Academy
Nottinghamshire County Council,1111/1001,Children and Young People,CYP,Third Party Payments,EDA,08/01/2019,10-11744,"3,654.00",St Joseph's RC Primary Academy
Nottinghamshire County Council,1111/1001,Children and Young People,CYP,Third Party Payments,EDA,08/01/2019,10-11745,2436,St Patricks Catholic Voluntary Acad
Nottinghamshire County Council,1111/1001,Children and Young People,CYP,Third Party Payments,EDA,08/01/2019,10-11746,913.5,St Peters C of E Academy Mansfield
Nottinghamshire County Council,1111/1001,Children and Young People,CYP,Third Party Payments,EDA,08/01/2019,10-11747,"1,705.20",Sunnyside Spencer Academy
Nottinghamshire County Council,1111/1001,Children and Young People,CYP,Third Party Payments,EDA,08/01/2019,10-11748,10413.9,Candleby Lane School
Nottinghamshire County Council,1111/1001,Children and Young People,CYP,Third Party Payments,EDA,08/01/2019,10-11749,5481,The Parkgate Academy
Nottinghamshire County Council,1111/1001,Children and Young People,CYP,Third Party Payments,EDA,08/01/2019,10-11750,9135,Sir Donald Bailey Academy
Nottinghamshire County Council,1111/1001,Children and Young People,CYP,Third Party Payments,EDA,08/01/2019,10-11751,3654,West Park Academy
Nottinghamshire County Council,1111/1001,Children and Young People,CYP,Third Party Payments,EDA,08/01/2019,10-11752,4323.9,Tuxford Primary Academy
Nottinghamshire County Council,1111/1001,Children and Young People,CYP,Third Party Payments,EDA,08/01/2019,10-11753,"2,436.00",Wainwright Primary Academy
Nottinghamshire County Council,1111/1001,Children and Young People,CYP,Third Party Payments,EDA,08/01/2019,10-11754,7308,Thrumpton Primary Academy
Nottinghamshire County Council,1111/1001,Children and Young People,CYP,Third Party Payments,EDA,08/01/2019,10-11755,"6,871.50",Alderman Pounder Academy(Flying Hig
Nottinghamshire County Council,1111/1001,Children and Young People,CYP,Third Party Payments,EDA,08/01/2019,10-11756,6871.5,Flying High Trust Bilsthorpe High A
Nottinghamshire County Council,1111/1001,Children and Young People,CYP,Third Party Payments,EDA,08/01/2019,10-11757,1145.25,Birklands Primary (Academy)
Nottinghamshire County Council,1111/1001,Children and Young People,CYP,Third Party Payments,EDA,08/01/2019,10-11758,"9,162.00",Netherfield Primary School (Academy
Nottinghamshire County Council,1111/1001,Children and Young People,CYP,Third Party Payments,EDA,08/01/2019,10-11759,"1,450.65",Worksop Priory CE Primary Academy
Nottinghamshire County Council,1111/1001,Children and Young People,CYP,Third Party Payments,EDA,08/01/2019,10-11760,12597.75,Robert Mellors Primary & Nursery Ac
Nottinghamshire County Council,1111/1001,Children and Young People,CYP,Third Party Payments,EDA,08/01/2019,10-11761,"25,577.25",Sir Donald Bailey Academy
Nottinghamshire County Council,1111/1001,Children and Young People,CYP,Third Party Payments,EDA,08/01/2019,10-11762,"1,145.25",William Gladstone C of E Primary Ac
Nottinghamshire County Council,1111/1001,Children and Young People,CYP,Third Party Payments,EDA,08/01/2019,10-11763,3206.7,Tuxford Primary Academy
Nottinghamshire County Council,1111/1001,Children and Young People,CYP,Third Party Payments,EDA,08/01/2019,10-11764,615,St Patricks Catholic Voluntary Acad
Nottinghamshire County Council,1111/1001,Children and Young People,CYP,Third Party Payments,EDA,08/01/2019,10-11765,615,Alderman Pounder Academy(Flying Hig
Nottinghamshire County Council,1111/1001,Children and Young People,CYP,Third Party Payments,EDA,08/01/2019,10-11766,615,Robert Mellors Primary & Nursery Ac
Nottinghamshire County Council,1111/1001,Children and Young People,CYP,Third Party Payments,EDA,08/01/2019,10-11767,"5,712.00",Yeoman Park Academy
Nottinghamshire County Council,1111/1001,Children and Young People,CYP,Third Party Payments,EDA,08/01/2019,10-11768,3283,Redgate Primary Academy
Nottinghamshire County Council,1111/1001,Children and Young People,CYP,Third Party Payments,EDA,08/01/2019,10-11769,4596,Beech Academy
Nottinghamshire County Council,1111/1001,Children and Young People,CYP,Third Party Payments,EDA,08/01/2019,10-11770,7025,Foxwood Academy
Nottinghamshire County Council,1111/1001,Children and Young People,CYP,Third Party Payments,EDA,16/01/2019,10-12794,21375.9,Hillside Academy
Nottinghamshire County Council,1111/1001,Children and Young People,CYP,Third Party Payments,EDA,16/01/2019,10-12795,"2,014.65",Candleby Lane School
Nottinghamshire County Council,1111/1001,Children and Young People,CYP,Third Party Payments,EDA,17/01/2019,10-17276,7400,Quarrydale Academy
Nottinghamshire County Council,1111/1001,Children and Young People,CYP,Third Party Payments,EDA,18/01/2019,10-12854,"3,745.35",Serlby Park Academy
Nottinghamshire County Council,1111/1001,Children and Young People,CYP,Third Party Payments,EDA,18/01/2019,10-12855,12706.79,Candleby Lane School
Nottinghamshire County Council,1111/1001,Children and Young People,CYP,Third Party Payments,EDA,18/01/2019,10-12856,12332.25,Barnby Road Academy Prim & Nursery
Nottinghamshire County Council,1111/1001,Children and Young People,CYP,Third Party Payments,EDA,18/01/2019,10-12857,"4,293.45",Tuxford Primary Academy
Nottinghamshire County Council,1111/1001,Children and Young People,CYP,Third Party Payments,EDA,18/01/2019,10-12859,"3,288.60",Samuel Barlow Primary Academy
Nottinghamshire County Council,1111/1001,Children and Young People,CYP,Third Party Payments,EDA,18/01/2019,10-12860,3562.65,Wainwright Primary Academy
Nottinghamshire County Council,1111/1001,Children and Young People,CYP,Third Party Payments,EDA,18/01/2019,10-12861,1644.3,Heymann Primary School
Nottinghamshire County Council,1111/1001,Children and Young People,CYP,Third Party Payments,EDA,18/01/2019,10-12862,"10,322.55",Bishop Alexander LEAD Academy
Nottinghamshire County Council,1111/1001,Children and Young People,CYP,Third Party Payments,EDA,18/01/2019,10-12863,"2,009.70",Thrumpton Primary Academy
Nottinghamshire County Council,1111/1001,Children and Young People,CYP,Third Party Payments,EDA,18/01/2019,10-12864,"1,370.25",Kingston Park Academy
Nottinghamshire County Council,1111/1001,Children and Young People,CYP,Third Party Payments,EDA,18/01/2019,10-12865,"14,195.79",Kirkby Woodhouse Academy School
Nottinghamshire County Council,1111/1001,Children and Young People,CYP,Third Party Payments,EDA,18/01/2019,10-12866,"6,759.90",Peafield Lane Academy
Nottinghamshire County Council,1111/1001,Children and Young People,CYP,Third Party Payments,EDA,18/01/2019,10-12867,27405,Mapplewells Primary & Nursery Acada
Nottinghamshire County Council,1111/1001,Children and Young People,CYP,Third Party Payments,EDA,18/01/2019,10-12868,6485.85,Birklands Primary (Academy)
Nottinghamshire County Council,1111/1001,Children and Young People,CYP,Third Party Payments,EDA,18/01/2019,10-12869,"4,476.15",Haddon Primary School (Academy)
Nottinghamshire County Council,1111/1001,Children and Young People,CYP,Third Party Payments,EDA,18/01/2019,10-12870,13885.2,Central Infant Academy
Nottinghamshire County Council,1111/1001,Children and Young People,CYP,Third Party Payments,EDA,18/01/2019,10-12871,6303.15,Sunnyside Spencer Academy
Nottinghamshire County Council,1111/1001,Children and Young People,CYP,Third Party Payments,EDA,18/01/2019,10-12872,34713,Alderman Pounder Academy(Flying Hig
Nottinghamshire County Council,1111/1001,Children and Young People,CYP,Third Party Payments,EDA,18/01/2019,10-12873,3233.79,Bracken Lane Primary Academy
Nottinghamshire County Council,1111/1001,Children and Young People,CYP,Third Party Payments,EDA,18/01/2019,10-12874,9591.75,Norbridge Academy Trust
Nottinghamshire County Council,1111/1001,Children and Young People,CYP,Third Party Payments,EDA,18/01/2019,10-12875,10962,Flintham Primary Academy School
Nottinghamshire County Council,1111/1001,Children and Young People,CYP,Third Party Payments,EDA,18/01/2019,10-12876,16534.35,The Parkgate Academy
Nottinghamshire County Council,1111/1001,Children and Young People,CYP,Third Party Payments,EDA,18/01/2019,10-12877,"13,885.20",Greenwood Primary & Nursery School
Nottinghamshire County Council,1111/1001,Children and Young People,CYP,Third Party Payments,EDA,18/01/2019,10-12878,2557.8,West Park Academy
Nottinghamshire County Council,1111/1001,Children and Young People,CYP,Third Party Payments,EDA,18/01/2019,10-12879,12807.27,Keyworth Primary & Nursery School
Nottinghamshire County Council,1111/1001,Children and Young People,CYP,Third Party Payments,EDA,18/01/2019,10-12880,"17,082.45",Sparken Hill Academy
Nottinghamshire County Council,1111/1001,Children and Young People,CYP,Third Party Payments,EDA,18/01/2019,10-12881,"12,423.60",Flying High Trust Beeston Fields Pr
Nottinghamshire County Council,1111/1001,Children and Young People,CYP,Third Party Payments,EDA,18/01/2019,10-12882,"29,780.10",St Johns CE Academy
Nottinghamshire County Council,1111/1001,Children and Young People,CYP,Third Party Payments,EDA,18/01/2019,10-12883,3561.74,St Peters C of E Academy
Nottinghamshire County Council,1111/1001,Children and Young People,CYP,Third Party Payments,EDA,18/01/2019,10-12884,21741.3,Sir Donald Bailey Academy
Nottinghamshire County Council,1111/1001,Children and Young People,CYP,Third Party Payments,EDA,18/01/2019,10-12885,"2,740.50",Burntstump Seely CofE Primary Acade
Nottinghamshire County Council,1111/1001,Children and Young People,CYP,Third Party Payments,EDA,18/01/2019,10-12886,"4,019.40",St Swithuns C of E Primary Academy
Nottinghamshire County Council,1111/1001,Children and Young People,CYP,Third Party Payments,EDA,18/01/2019,10-12887,"8,678.25",Sacred Heart Catholic Voluntary Aca
Nottinghamshire County Council,1111/1001,Children and Young People,CYP,Third Party Payments,EDA,18/01/2019,10-12888,"1,552.95",St Joseph's RC Primary Academy
Nottinghamshire County Council,1111/1001,Children and Young People,CYP,Third Party Payments,EDA,18/01/2019,10-12889,"1,370.25",Holy Trinity Catholic Voluntary Aca
Nottinghamshire County Council,1111/1001,Children and Young People,CYP,Third Party Payments,EDA,18/01/2019,10-12890,4476.15,St Patricks Catholic Voluntary Acad
Nottinghamshire County Council,1111/1001,Children and Young People,CYP,Third Party Payments,EDA,18/01/2019,10-12891,8678.25,St Philip Neri with St Bede Vol Aca
Nottinghamshire County Council,1111/1001,Children and Young People,CYP,Third Party Payments,EDA,18/01/2019,10-12892,"4,567.50",St Josephs Catholic Primary Sch Aca
Nottinghamshire County Council,1111/1001,Children and Young People,CYP,Third Party Payments,EDA,18/01/2019,10-12893,11601.45,Awsworth Primary & Nursery Sch (Aca
Nottinghamshire County Council,1111/1001,Children and Young People,CYP,Third Party Payments,EDA,18/01/2019,10-12894,2009.7,Arnbrook Primary Academy
Nottinghamshire County Council,1111/1001,Children and Young People,CYP,Third Party Payments,EDA,18/01/2019,10-12895,"13,976.55",Netherfield Primary School (Academy
Nottinghamshire County Council,1111/1001,Children and Young People,CYP,Third Party Payments,EDA,18/01/2019,10-12896,"12,880.35",Hillside Academy
Nottinghamshire County Council,1111/1001,Children and Young People,CYP,Third Party Payments,EDA,18/01/2019,10-12897,15803.55,The Flying High Academy
Nottinghamshire County Council,1111/1001,Children and Young People,CYP,Third Party Payments,EDA,30/01/2019,10-16649,"3,600.00",Harworth C Of E Primary School
Nottinghamshire County Council,1111/1001,Children and Young People,CYP,Third Party Payments,EFA,03/01/2019,10-16877,"23,377.20",Real Education Ltd
Nottinghamshire County Council,1111/1001,Children and Young People,CYP,Third Party Payments,EFA,04/01/2019,10-10411,"14,250.00",Keys Care Ltd (Head Office)
Nottinghamshire County Council,1111/1001,Children and Young People,CYP,Third Party Payments,EFA,04/01/2019,10-16905,3240,Pollyteach Ltd
Nottinghamshire County Council,1111/1001,Children and Young People,CYP,Third Party Payments,EFA,07/01/2019,10-16911,"7,800.00",Fresh Start in Education Ltd
Nottinghamshire County Council,1111/1001,Children and Young People,CYP,Third Party Payments,EFA,07/01/2019,10-16912,"2,475.00",Good Apple Education Company Ltd
Nottinghamshire County Council,1111/1001,Children and Young People,CYP,Third Party Payments,EFA,08/01/2019,10-16955,"19,398.50",Teaching Personnel Ltd
Nottinghamshire County Council,1111/1001,Children and Young People,CYP,Third Party Payments,EFA,08/01/2019,10-16984,"6,720.00",Pollyteach Ltd
Nottinghamshire County Council,1111/1001,Children and Young People,CYP,Third Party Payments,EFA,09/01/2019,10-16997,"8,525.00",CAST Angling Projects
Nottinghamshire County Council,1111/1001,Children and Young People,CYP,Third Party Payments,EFA,10/01/2019,10-17068,7800,Fresh Start in Education Ltd
Nottinghamshire County Council,1111/1001,Children and Young People,CYP,Third Party Payments,EFA,11/01/2019,10-17089,888,Crisp Vocational Provision Ltd
Nottinghamshire County Council,1111/1001,Children and Young People,CYP,Third Party Payments,EFA,14/01/2019,10-17168,23377.2,Real Education Ltd
Nottinghamshire County Council,1111/1001,Children and Young People,CYP,Third Party Payments,EFA,14/01/2019,10-17172,1156.75,A Place To Call Our Own Ltd
Nottinghamshire County Council,1111/1001,Children and Young People,CYP,Third Party Payments,EFA,15/01/2019,10-17199,23377.2,Real Education Ltd
Nottinghamshire County Council,1111/1001,Children and Young People,CYP,Third Party Payments,EFA,17/01/2019,10-16947,"18,759.38",Nova Centric Ltd
Nottinghamshire County Council,1111/1001,Children and Young People,CYP,Third Party Payments,EFA,17/01/2019,10-17246,37233.8,Real Education Ltd
Nottinghamshire County Council,1111/1001,Children and Young People,CYP,Third Party Payments,EFA,18/01/2019,10-17084,888,Crisp Vocational Provision Ltd
Nottinghamshire County Council,1111/1001,Children and Young People,CYP,Third Party Payments,EFA,21/01/2019,10-17307,2360,Rainbow Horses Learning Centre
Nottinghamshire County Council,1111/1001,Children and Young People,CYP,Third Party Payments,EFA,21/01/2019,10-17308,1380,CAST Angling Projects
Nottinghamshire County Council,1111/1001,Children and Young People,CYP,Third Party Payments,EFA,22/01/2019,10-17292,1500,First Class Tailored Solutions Ltd
Nottinghamshire County Council,1111/1001,Children and Young People,CYP,Third Party Payments,EFA,22/01/2019,10-17365,4918,Alternative Programme Education Ltd
Nottinghamshire County Council,1111/1001,Children and Young People,CYP,Third Party Payments,EFA,22/01/2019,10-17366,4918,Alternative Programme Education Ltd
Nottinghamshire County Council,1111/1001,Children and Young People,CYP,Third Party Payments,EFA,22/01/2019,10-17378,4918,Alternative Programme Education Ltd
Nottinghamshire County Council,1111/1001,Children and Young People,CYP,Third Party Payments,EFA,22/01/2019,10-17379,960,Alternative Programme Education Ltd
Nottinghamshire County Council,1111/1001,Children and Young People,CYP,Third Party Payments,EFA,22/01/2019,10-17380,1475,Alternative Programme Education Ltd
Nottinghamshire County Council,1111/1001,Children and Young People,CYP,Third Party Payments,EFA,22/01/2019,10-17381,"1,475.00",Alternative Programme Education Ltd
Nottinghamshire County Council,1111/1001,Children and Young People,CYP,Third Party Payments,EFA,22/01/2019,10-17382,"1,475.00",Alternative Programme Education Ltd
Nottinghamshire County Council,1111/1001,Children and Young People,CYP,Third Party Payments,EFA,22/01/2019,10-17383,960,Alternative Programme Education Ltd
Nottinghamshire County Council,1111/1001,Children and Young People,CYP,Third Party Payments,EFA,22/01/2019,10-17384,960,Alternative Programme Education Ltd
Nottinghamshire County Council,1111/1001,Children and Young People,CYP,Third Party Payments,EFA,22/01/2019,10-17385,"8,525.00",CAST Angling Projects
Nottinghamshire County Council,1111/1001,Children and Young People,CYP,Third Party Payments,EFA,22/01/2019,10-17386,"7,800.00",Fresh Start in Education Ltd
Nottinghamshire County Council,1111/1001,Children and Young People,CYP,Third Party Payments,EFA,22/01/2019,10-17388,"13,513.00",First Class Tailored Solutions Ltd
Nottinghamshire County Council,1111/1001,Children and Young People,CYP,Third Party Payments,EFA,23/01/2019,10-17286,20831,Catch 22
Nottinghamshire County Council,1111/1001,Children and Young People,CYP,Third Party Payments,EFA,28/01/2019,10-17447,"202,190.76",Hope House School Ltd
Nottinghamshire County Council,1111/1001,Children and Young People,CYP,Third Party Payments,EFA,30/01/2019,10-16869,2457.5,Prime8 Education
Nottinghamshire County Council,1111/1001,Children and Young People,CYP,Third Party Payments,EFA,30/01/2019,10-17426,937.5,National Teaching & Advisory Servic
Nottinghamshire County Council,1111/1001,Children and Young People,CYP,Third Party Payments,EFA,30/01/2019,10-17493,23377.2,Real Education Ltd
Nottinghamshire County Council,1111/1001,Children and Young People,CYP,Third Party Payments,EFA,31/01/2019,10-17514,1380,CAST Angling Projects
Nottinghamshire County Council,1111/1001,Children and Young People,CYP,Third Party Payments,EGA,02/01/2019,10-10053,"4,338.18",Rainbow Day Nursery
Nottinghamshire County Council,1111/1001,Children and Young People,CYP,Third Party Payments,EGA,02/01/2019,10-10054,"8,891.44",Rainbows Day Nursery
Nottinghamshire County Council,1111/1001,Children and Young People,CYP,Third Party Payments,EGA,02/01/2019,10-10055,1602.32,Jubilee House Christian School
Nottinghamshire County Council,1111/1001,Children and Young People,CYP,Third Party Payments,EGA,02/01/2019,10-10056,"9,579.39",Jumacare Ltd T/A Church House Nurse
Nottinghamshire County Council,1111/1001,Children and Young People,CYP,Third Party Payments,EGA,02/01/2019,10-10057,929.57,[Redacted]
Nottinghamshire County Council,1111/1001,Children and Young People,CYP,Third Party Payments,EGA,02/01/2019,10-10058,5416.1,PSLA Newstead Childcare (HO)
Nottinghamshire County Council,1111/1001,Children and Young People,CYP,Third Party Payments,EGA,02/01/2019,10-10059,6579.34,PSLA Newstead Childcare (HO)
Nottinghamshire County Council,1111/1001,Children and Young People,CYP,Third Party Payments,EGA,02/01/2019,10-10060,12634.88,Tiny World Mansfield
Nottinghamshire County Council,1111/1001,Children and Young People,CYP,Third Party Payments,EGA,02/01/2019,10-10061,"5,689.24",Toddlers University (Bee)
Nottinghamshire County Council,1111/1001,Children and Young People,CYP,Third Party Payments,EGA,02/01/2019,10-10062,7180.25,Tollerton Playgroup
Nottinghamshire County Council,1111/1001,Children and Young People,CYP,Third Party Payments,EGA,02/01/2019,10-10063,4288.29,Ranskill Nursery
Nottinghamshire County Council,1111/1001,Children and Young People,CYP,Third Party Payments,EGA,02/01/2019,10-10064,878.13,[Redacted]
Nottinghamshire County Council,1111/1001,Children and Young People,CYP,Third Party Payments,EGA,02/01/2019,10-10065,650.21,Ravenshead Out Of School Club
Nottinghamshire County Council,1111/1001,Children and Young People,CYP,Third Party Payments,EGA,02/01/2019,10-10066,"4,559.06",Ravenshead Pre-School Playgroup
Nottinghamshire County Council,1111/1001,Children and Young People,CYP,Third Party Payments,EGA,02/01/2019,10-10067,1910.21,[Redacted]
Nottinghamshire County Council,1111/1001,Children and Young People,CYP,Third Party Payments,EGA,02/01/2019,10-10068,4450.4,Rushcliffe Pre-School (Nottingham)
Nottinghamshire County Council,1111/1001,Children and Young People,CYP,Third Party Payments,EGA,02/01/2019,10-10069,"13,934.75",Ruddington Nursery & Pre-School
Nottinghamshire County Council,1111/1001,Children and Young People,CYP,Third Party Payments,EGA,02/01/2019,10-10070,2756.55,Townrow Tiny Tots Day Nursery Ltd
Nottinghamshire County Council,1111/1001,Children and Young People,CYP,Third Party Payments,EGA,02/01/2019,10-10071,3669.93,Townrow Tiny Tots Day Nursery Ltd
Nottinghamshire County Council,1111/1001,Children and Young People,CYP,Third Party Payments,EGA,02/01/2019,10-10072,2378.97,Townrow Tiny Tots Day Nursery Ltd
Nottinghamshire County Council,1111/1001,Children and Young People,CYP,Third Party Payments,EGA,02/01/2019,10-10073,7461.14,Treetops Nursery
Nottinghamshire County Council,1111/1001,Children and Young People,CYP,Third Party Payments,EGA,02/01/2019,10-10074,12067.61,Treetops Nursery (Clipstone)
Nottinghamshire County Council,1111/1001,Children and Young People,CYP,Third Party Payments,EGA,02/01/2019,10-10075,"3,306.61",Trowell Pre School
Nottinghamshire County Council,1111/1001,Children and Young People,CYP,Third Party Payments,EGA,02/01/2019,10-10076,619.25,Vickys Childminding
Nottinghamshire County Council,1111/1001,Children and Young People,CYP,Third Party Payments,EGA,02/01/2019,10-10077,"1,707.26",Kylees Childminding Services
Nottinghamshire County Council,1111/1001,Children and Young People,CYP,Third Party Payments,EGA,02/01/2019,10-10078,3699.14,Upton Crickets Day Nursery
Nottinghamshire County Council,1111/1001,Children and Young People,CYP,Third Party Payments,EGA,02/01/2019,10-10079,743.1,[Redacted]
Nottinghamshire County Council,1111/1001,Children and Young People,CYP,Third Party Payments,EGA,02/01/2019,10-10080,"1,290.96",Sharons Childminding
Nottinghamshire County Council,1111/1001,Children and Young People,CYP,Third Party Payments,EGA,02/01/2019,10-10081,"25,297.97",Village Day Nursery
Nottinghamshire County Council,1111/1001,Children and Young People,CYP,Third Party Payments,EGA,02/01/2019,10-10082,5649.56,Walesby School Playgroup
Nottinghamshire County Council,1111/1001,Children and Young People,CYP,Third Party Payments,EGA,02/01/2019,10-10083,517.77,[Redacted]
Nottinghamshire County Council,1111/1001,Children and Young People,CYP,Third Party Payments,EGA,02/01/2019,10-10084,550.44,[Redacted]
Nottinghamshire County Council,1111/1001,Children and Young People,CYP,Third Party Payments,EGA,02/01/2019,10-10085,3623.1,Watnall Pre-School Playgroup
Nottinghamshire County Council,1111/1001,Children and Young People,CYP,Third Party Payments,EGA,02/01/2019,10-10086,"11,751.73",Weaverthorpe Pre-School Playgroup
Nottinghamshire County Council,1111/1001,Children and Young People,CYP,Third Party Payments,EGA,02/01/2019,10-10087,602.68,[Redacted]
Nottinghamshire County Council,1111/1001,Children and Young People,CYP,Third Party Payments,EGA,02/01/2019,10-10088,8267.79,West Bridgford Out Of School Care L
Nottinghamshire County Council,1111/1001,Children and Young People,CYP,Third Party Payments,EGA,02/01/2019,10-10089,"3,956.09",West Street Pre-School
Nottinghamshire County Council,1111/1001,Children and Young People,CYP,Third Party Payments,EGA,02/01/2019,10-10090,10072.26,Westbourne House Nursery School
Nottinghamshire County Council,1111/1001,Children and Young People,CYP,Third Party Payments,EGA,02/01/2019,10-10091,12142.04,Westdale Pre-School
Nottinghamshire County Council,1111/1001,Children and Young People,CYP,Third Party Payments,EGA,02/01/2019,10-10092,724.19,[Redacted]
Nottinghamshire County Council,1111/1001,Children and Young People,CYP,Third Party Payments,EGA,02/01/2019,10-10093,619.25,[Redacted]
Nottinghamshire County Council,1111/1001,Children and Young People,CYP,Third Party Payments,EGA,02/01/2019,10-10094,"11,149.65",Whitehouse Day Nursery
Nottinghamshire County Council,1111/1001,Children and Young People,CYP,Third Party Payments,EGA,02/01/2019,10-10095,5167.31,Mulberry Bush Day Nursery
Nottinghamshire County Council,1111/1001,Children and Young People,CYP,Third Party Payments,EGA,02/01/2019,10-10096,866.95,[Redacted]
Nottinghamshire County Council,1111/1001,Children and Young People,CYP,Third Party Payments,EGA,02/01/2019,10-10097,770.62,[Redacted]
Nottinghamshire County Council,1111/1001,Children and Young People,CYP,Third Party Payments,EGA,02/01/2019,10-10098,4662.4,Willow Brook Pre-School
Nottinghamshire County Council,1111/1001,Children and Young People,CYP,Third Party Payments,EGA,02/01/2019,10-10099,"13,381.14",Rocking Horse Nursery Butlers Hill
Nottinghamshire County Council,1111/1001,Children and Young People,CYP,Third Party Payments,EGA,02/01/2019,10-10100,777.5,[Redacted]
Nottinghamshire County Council,1111/1001,Children and Young People,CYP,Third Party Payments,EGA,02/01/2019,10-10101,4800.02,Ryan House Day Nursery
Nottinghamshire County Council,1111/1001,Children and Young People,CYP,Third Party Payments,EGA,02/01/2019,10-10102,3748.04,Windmill Kindergarten Playgroup
Nottinghamshire County Council,1111/1001,Children and Young People,CYP,Third Party Payments,EGA,02/01/2019,10-10103,"20,379.60",Safe Haven Day Nursery
Nottinghamshire County Council,1111/1001,Children and Young People,CYP,Third Party Payments,EGA,02/01/2019,10-10104,936.57,Windmills Childcare
Nottinghamshire County Council,1111/1001,Children and Young People,CYP,Third Party Payments,EGA,02/01/2019,10-10105,"1,940.30",Salterford House School
Nottinghamshire County Council,1111/1001,Children and Young People,CYP,Third Party Payments,EGA,02/01/2019,10-10106,"11,535.68",Wishing Well Day Nursery
Nottinghamshire County Council,1111/1001,Children and Young People,CYP,Third Party Payments,EGA,02/01/2019,10-10107,"3,323.28",Saville House School
Nottinghamshire County Council,1111/1001,Children and Young People,CYP,Third Party Payments,EGA,02/01/2019,10-10108,8258.29,Wolds Day Nursery @ Stragglethorpe
Nottinghamshire County Council,1111/1001,Children and Young People,CYP,Third Party Payments,EGA,02/01/2019,10-10109,5783.09,Wollaton Village Day Nurseries
Nottinghamshire County Council,1111/1001,Children and Young People,CYP,Third Party Payments,EGA,02/01/2019,10-10110,"10,014.99",Secret Garden Childcare Ltd
Nottinghamshire County Council,1111/1001,Children and Young People,CYP,Third Party Payments,EGA,02/01/2019,10-10111,15160.86,Wollaton Village Day Nurseries Ltd.
Nottinghamshire County Council,1111/1001,Children and Young People,CYP,Third Party Payments,EGA,02/01/2019,10-10112,645.48,[Redacted]
Nottinghamshire County Council,1111/1001,Children and Young People,CYP,Third Party Payments,EGA,02/01/2019,10-10113,7811.99,Woodborough Village Pre School
Nottinghamshire County Council,1111/1001,Children and Young People,CYP,Third Party Payments,EGA,02/01/2019,10-10114,26901.07,Woodthorpe Day Nursery Ltd
Nottinghamshire County Council,1111/1001,Children and Young People,CYP,Third Party Payments,EGA,02/01/2019,10-10115,7499.75,Worksop College
Nottinghamshire County Council,1111/1001,Children and Young People,CYP,Third Party Payments,EGA,02/01/2019,10-10116,7176.05,Young Rascals Day Nursery
Nottinghamshire County Council,1111/1001,Children and Young People,CYP,Third Party Payments,EGA,02/01/2019,10-10117,4724.38,Zoe's Childcare Ltd
Nottinghamshire County Council,1111/1001,Children and Young People,CYP,Third Party Payments,EGA,02/01/2019,10-10118,"2,198.79",Zoes Childcare Ltd
Nottinghamshire County Council,1111/1001,Children and Young People,CYP,Third Party Payments,EGA,02/01/2019,10-10119,619.25,[Redacted]
Nottinghamshire County Council,1111/1001,Children and Young People,CYP,Third Party Payments,EGA,02/01/2019,10-10120,1032.08,Samsam Little Minders
Nottinghamshire County Council,1111/1001,Children and Young People,CYP,Third Party Payments,EGA,02/01/2019,10-10121,8188.69,Shaping Futures Day Nursery
Nottinghamshire County Council,1111/1001,Children and Young People,CYP,Third Party Payments,EGA,02/01/2019,10-10122,"16,654.87",Shaping Futures Day Nursery
Nottinghamshire County Council,1111/1001,Children and Young People,CYP,Third Party Payments,EGA,02/01/2019,10-10123,"16,087.06",Serendipity's Day Nursery
Nottinghamshire County Council,1111/1001,Children and Young People,CYP,Third Party Payments,EGA,02/01/2019,10-10124,"14,014.44",Serendipity's Day Nursery
Nottinghamshire County Council,1111/1001,Children and Young People,CYP,Third Party Payments,EGA,02/01/2019,10-10126,1290.96,Small People Ltd
Nottinghamshire County Council,1111/1001,Children and Young People,CYP,Third Party Payments,EGA,02/01/2019,10-10127,6195.92,Smarties Private Day Nursery
Nottinghamshire County Council,1111/1001,Children and Young People,CYP,Third Party Payments,EGA,02/01/2019,10-10128,2779.13,Southfields Pre-School
Nottinghamshire County Council,1111/1001,Children and Young People,CYP,Third Party Payments,EGA,02/01/2019,10-10129,4465.89,Sparkle Daycare
Nottinghamshire County Council,1111/1001,Children and Young People,CYP,Third Party Payments,EGA,02/01/2019,10-10130,1993.47,Speckled Frogs Pre-School
Nottinghamshire County Council,1111/1001,Children and Young People,CYP,Third Party Payments,EGA,02/01/2019,10-10131,"8,338.77",Stapleford Day Nursery
Nottinghamshire County Council,1111/1001,Children and Young People,CYP,Third Party Payments,EGA,02/01/2019,10-10132,550.44,[Redacted]
Nottinghamshire County Council,1111/1001,Children and Young People,CYP,Third Party Payments,EGA,02/01/2019,10-10133,"8,706.06",Treetops Nurseries Ltd
Nottinghamshire County Council,1111/1001,Children and Young People,CYP,Third Party Payments,EGA,02/01/2019,10-10134,825.66,[Redacted]
Nottinghamshire County Council,1111/1001,Children and Young People,CYP,Third Party Payments,EGA,02/01/2019,10-10135,724.19,[Redacted]
Nottinghamshire County Council,1111/1001,Children and Young People,CYP,Third Party Payments,EGA,02/01/2019,10-10136,"4,321.83",Thrumpton Kids Clubs
Nottinghamshire County Council,1111/1001,Children and Young People,CYP,Third Party Payments,EGA,02/01/2019,10-10137,"1,032.08",[Redacted]
Nottinghamshire County Council,1111/1001,Children and Young People,CYP,Third Party Payments,EGA,02/01/2019,10-10138,605.48,Country Bumpkins Childcare
Nottinghamshire County Council,1111/1001,Children and Young People,CYP,Third Party Payments,EGA,02/01/2019,10-10139,"9,328.96",Staunton Montessori Nursery School
Nottinghamshire County Council,1111/1001,Children and Young People,CYP,Third Party Payments,EGA,02/01/2019,10-10140,6710.22,Tiny Talkers Day Nursery
Nottinghamshire County Council,1111/1001,Children and Young People,CYP,Third Party Payments,EGA,02/01/2019,10-10141,5735.8,St Giles Pre-school
Nottinghamshire County Council,1111/1001,Children and Young People,CYP,Third Party Payments,EGA,02/01/2019,10-10142,"7,689.83",Tiny Teddies Day Nursery
Nottinghamshire County Council,1111/1001,Children and Young People,CYP,Third Party Payments,EGA,02/01/2019,10-10143,6208.39,St Johns Playgroup
Nottinghamshire County Council,1111/1001,Children and Young People,CYP,Third Party Payments,EGA,02/01/2019,10-10144,"4,409.57",Tiny Tots Playgroup
Nottinghamshire County Council,1111/1001,Children and Young People,CYP,Third Party Payments,EGA,02/01/2019,10-10145,6866.44,St Mary's Pre-School
Nottinghamshire County Council,1111/1001,Children and Young People,CYP,Third Party Payments,EGA,02/01/2019,10-10146,619.25,Sunbeams Pre-School
Nottinghamshire County Council,1111/1001,Children and Young People,CYP,Third Party Payments,EGA,02/01/2019,10-10147,2015.15,[Redacted]
Nottinghamshire County Council,1111/1001,Children and Young People,CYP,Third Party Payments,EGA,02/01/2019,10-10148,"3,407.58",Jesters Childcare Ltd
Nottinghamshire County Council,1111/1001,Children and Young People,CYP,Third Party Payments,EGA,02/01/2019,10-10149,"9,303.03",Sunnydale Nursery Ltd
Nottinghamshire County Council,1111/1001,Children and Young People,CYP,Third Party Payments,EGA,02/01/2019,10-10150,3205.04,Sutton Bonington Playgroup
Nottinghamshire County Council,1111/1001,Children and Young People,CYP,Third Party Payments,EGA,02/01/2019,10-10151,567.64,Taylor -Made Childcare
Nottinghamshire County Council,1111/1001,Children and Young People,CYP,Third Party Payments,EGA,02/01/2019,10-10152,10538.35,Lambley Day Nursery Ltd
Nottinghamshire County Council,1111/1001,Children and Young People,CYP,Third Party Payments,EGA,02/01/2019,10-10153,639.89,[Redacted]
Nottinghamshire County Council,1111/1001,Children and Young People,CYP,Third Party Payments,EGA,02/01/2019,10-10154,11048.4,The Enchanted Garden Day Nursery
Nottinghamshire County Council,1111/1001,Children and Young People,CYP,Third Party Payments,EGA,02/01/2019,10-10155,14031.57,The Learning Tree Day Nursery 2
Nottinghamshire County Council,1111/1001,Children and Young People,CYP,Third Party Payments,EGA,02/01/2019,10-10156,"18,384.80",The Learning Tree Nursery
Nottinghamshire County Council,1111/1001,Children and Young People,CYP,Third Party Payments,EGA,02/01/2019,10-10157,825.66,Gemmas Little Gems
Nottinghamshire County Council,1111/1001,Children and Young People,CYP,Third Party Payments,EGA,02/01/2019,10-10158,"4,908.92",The Lime Trees Group CIC (HO)
Nottinghamshire County Council,1111/1001,Children and Young People,CYP,Third Party Payments,EGA,02/01/2019,10-10159,4423.33,Kimberley Pre-School Playgroup
Nottinghamshire County Council,1111/1001,Children and Young People,CYP,Third Party Payments,EGA,02/01/2019,10-10160,4862.98,The Lime Trees Group CIC (HO)
Nottinghamshire County Council,1111/1001,Children and Young People,CYP,Third Party Payments,EGA,02/01/2019,10-10161,8895.54,Killisick Pre-School
Nottinghamshire County Council,1111/1001,Children and Young People,CYP,Third Party Payments,EGA,02/01/2019,10-10162,"10,875.15",Kidzgrove
Nottinghamshire County Council,1111/1001,Children and Young People,CYP,Third Party Payments,EGA,02/01/2019,10-10163,"6,510.67",The Lime Trees Group CIC (HO)
Nottinghamshire County Council,1111/1001,Children and Young People,CYP,Third Party Payments,EGA,02/01/2019,10-10164,8952.29,The Lime Trees Group CIC (HO)
Nottinghamshire County Council,1111/1001,Children and Young People,CYP,Third Party Payments,EGA,02/01/2019,10-10165,20424.62,The Orange Tree Day Nursery
Nottinghamshire County Council,1111/1001,Children and Young People,CYP,Third Party Payments,EGA,02/01/2019,10-10166,3933.97,Jelly Beans Day Nursery Ltd
Nottinghamshire County Council,1111/1001,Children and Young People,CYP,Third Party Payments,EGA,02/01/2019,10-10167,"23,434.69",The Rocking Horse Child Care Centre
Nottinghamshire County Council,1111/1001,Children and Young People,CYP,Third Party Payments,EGA,02/01/2019,10-10168,"2,040.93",Inham Park Pre School Playgroup
Nottinghamshire County Council,1111/1001,Children and Young People,CYP,Third Party Payments,EGA,02/01/2019,10-10169,11986.47,The Secret Garden Private Day Nurse
Nottinghamshire County Council,1111/1001,Children and Young People,CYP,Third Party Payments,EGA,02/01/2019,10-10170,"6,235.38",The West Bridgford Day Nursery
Nottinghamshire County Council,1111/1001,Children and Young People,CYP,Third Party Payments,EGA,02/01/2019,10-10171,9790.11,Wolds Childcare Ltd
Nottinghamshire County Council,1111/1001,Children and Young People,CYP,Third Party Payments,EGA,02/01/2019,10-10172,6140.97,Wellin Lane Playgroup
Nottinghamshire County Council,1111/1001,Children and Young People,CYP,Third Party Payments,EGA,02/01/2019,10-10173,1910.21,[Redacted]
Nottinghamshire County Council,1111/1001,Children and Young People,CYP,Third Party Payments,EGA,02/01/2019,10-10174,825.66,[Redacted]
Nottinghamshire County Council,1111/1001,Children and Young People,CYP,Third Party Payments,EGA,02/01/2019,10-10175,671.72,Sunnybank Childminding
Nottinghamshire County Council,1111/1001,Children and Young People,CYP,Third Party Payments,EGA,02/01/2019,10-10176,547.87,[Redacted]
Nottinghamshire County Council,1111/1001,Children and Young People,CYP,Third Party Payments,EGA,02/01/2019,10-10177,"15,733.58",Hucknall Day Nursery
Nottinghamshire County Council,1111/1001,Children and Young People,CYP,Third Party Payments,EGA,02/01/2019,10-10179,"4,885.15",Horsendale Playgroup
Nottinghamshire County Council,1111/1001,Children and Young People,CYP,Third Party Payments,EGA,02/01/2019,10-10180,825.66,[Redacted]
Nottinghamshire County Council,1111/1001,Children and Young People,CYP,Third Party Payments,EGA,02/01/2019,10-10181,"8,953.03",Hollies Day Nursery (Loughborough R
Nottinghamshire County Council,1111/1001,Children and Young People,CYP,Third Party Payments,EGA,02/01/2019,10-10182,7600.52,Honey Pot Day Private Day Nursery L
Nottinghamshire County Council,1111/1001,Children and Young People,CYP,Third Party Payments,EGA,02/01/2019,10-10183,"13,727.52",Hollies Day Nurseries Limited
Nottinghamshire County Council,1111/1001,Children and Young People,CYP,Third Party Payments,EGA,02/01/2019,10-10184,11979.03,Hollies Day Nurseries
Nottinghamshire County Council,1111/1001,Children and Young People,CYP,Third Party Payments,EGA,02/01/2019,10-10185,"1,094.58",[Redacted]
Nottinghamshire County Council,1111/1001,Children and Young People,CYP,Third Party Payments,EGA,02/01/2019,10-10186,1125.83,[Redacted]
Nottinghamshire County Council,1111/1001,Children and Young People,CYP,Third Party Payments,EGA,02/01/2019,10-10187,"2,015.15",Gognas Day Nursery Ltd
Nottinghamshire County Council,1111/1001,Children and Young People,CYP,Third Party Payments,EGA,02/01/2019,10-10188,903.08,[Redacted]
Nottinghamshire County Council,1111/1001,Children and Young People,CYP,Third Party Payments,EGA,02/01/2019,10-10189,8035.83,Highfields School & Nursery
Nottinghamshire County Council,1111/1001,Children and Young People,CYP,Third Party Payments,EGA,02/01/2019,10-10190,1651.32,Hickling Pre-School
Nottinghamshire County Council,1111/1001,Children and Young People,CYP,Third Party Payments,EGA,02/01/2019,10-10191,19184.09,Grosvenor House Day Nursery
Nottinghamshire County Council,1111/1001,Children and Young People,CYP,Third Party Payments,EGA,02/01/2019,10-10192,3512.52,Hermitage Pre-School
Nottinghamshire County Council,1111/1001,Children and Young People,CYP,Third Party Payments,EGA,02/01/2019,10-10193,887.59,[Redacted]
Nottinghamshire County Council,1111/1001,Children and Young People,CYP,Third Party Payments,EGA,02/01/2019,10-10194,591.73,Kays Childminding
Nottinghamshire County Council,1111/1001,Children and Young People,CYP,Third Party Payments,EGA,02/01/2019,10-10195,"3,815.73",Haywood Road Pre-School Playgroup
Nottinghamshire County Council,1111/1001,Children and Young People,CYP,Third Party Payments,EGA,02/01/2019,10-10196,6893.28,Willow Childcare & Training Ltd
Nottinghamshire County Council,1111/1001,Children and Young People,CYP,Third Party Payments,EGA,02/01/2019,10-10197,1084.55,Rachel & Philip's Home From Home Ch
Nottinghamshire County Council,1111/1001,Children and Young People,CYP,Third Party Payments,EGA,02/01/2019,10-10198,671.72,[Redacted]
Nottinghamshire County Council,1111/1001,Children and Young People,CYP,Third Party Payments,EGA,02/01/2019,10-10199,529.8,[Redacted]
Nottinghamshire County Council,1111/1001,Children and Young People,CYP,Third Party Payments,EGA,02/01/2019,10-10200,619.25,[Redacted]
Nottinghamshire County Council,1111/1001,Children and Young People,CYP,Third Party Payments,EGA,02/01/2019,10-10201,1861.2,Yew Tree Childcare
Nottinghamshire County Council,1111/1001,Children and Young People,CYP,Third Party Payments,EGA,02/01/2019,10-10202,2804.67,Happy Munchkins Pre School
Nottinghamshire County Council,1111/1001,Children and Young People,CYP,Third Party Payments,EGA,02/01/2019,10-10203,534.11,L & K's Little Kingdom
Nottinghamshire County Council,1111/1001,Children and Young People,CYP,Third Party Payments,EGA,02/01/2019,10-10204,"10,899.61",Happy Days Childcare Services Ltd
Nottinghamshire County Council,1111/1001,Children and Young People,CYP,Third Party Payments,EGA,02/01/2019,10-10205,715.57,Belvoir House Childminding
Nottinghamshire County Council,1111/1001,Children and Young People,CYP,Third Party Payments,EGA,02/01/2019,10-10206,"13,724.08",Little Bears Day Nursery
Nottinghamshire County Council,1111/1001,Children and Young People,CYP,Third Party Payments,EGA,02/01/2019,10-10207,4406.99,Little Friends Day Nursery
Nottinghamshire County Council,1111/1001,Children and Young People,CYP,Third Party Payments,EGA,02/01/2019,10-10208,"5,595.19",Little Kites Playgroup
Nottinghamshire County Council,1111/1001,Children and Young People,CYP,Third Party Payments,EGA,02/01/2019,10-10209,14118.39,Little Lambs Day Nursery
Nottinghamshire County Council,1111/1001,Children and Young People,CYP,Third Party Payments,EGA,02/01/2019,10-10210,"10,677.70",Little Millers Day Nursery
Nottinghamshire County Council,1111/1001,Children and Young People,CYP,Third Party Payments,EGA,02/01/2019,10-10211,12556.93,Little Nippers Pre-School
Nottinghamshire County Council,1111/1001,Children and Young People,CYP,Third Party Payments,EGA,02/01/2019,10-10212,16734.27,Little Oaks Nursery
Nottinghamshire County Council,1111/1001,Children and Young People,CYP,Third Party Payments,EGA,02/01/2019,10-10213,"6,615.68",Little Baths Ltd T/A Little PLums D
Nottinghamshire County Council,1111/1001,Children and Young People,CYP,Third Party Payments,EGA,02/01/2019,10-10214,"1,914.87",Little Toes Day Nursery
Nottinghamshire County Council,1111/1001,Children and Young People,CYP,Third Party Payments,EGA,02/01/2019,10-10215,"1,961.39",Little Wrens Day Nursery & Pre Scho
Nottinghamshire County Council,1111/1001,Children and Young People,CYP,Third Party Payments,EGA,02/01/2019,10-10216,"5,699.81",Learning Ladder Childcare Ltd
Nottinghamshire County Council,1111/1001,Children and Young People,CYP,Third Party Payments,EGA,02/01/2019,10-10217,15844.02,Leen Mills Pre School Playgroup
Nottinghamshire County Council,1111/1001,Children and Young People,CYP,Third Party Payments,EGA,02/01/2019,10-10218,"12,080.18",Leos Childrens Nurseries Ltd
Nottinghamshire County Council,1111/1001,Children and Young People,CYP,Third Party Payments,EGA,02/01/2019,10-10219,8383.79,Leo's Childrens Nurseries Ltd
Nottinghamshire County Council,1111/1001,Children and Young People,CYP,Third Party Payments,EGA,03/01/2019,10-10040,"1,096.20",Nottinghamshire Healthcare Nhs F Tr
Nottinghamshire County Council,1111/1001,Children and Young People,CYP,Third Party Payments,EGA,03/01/2019,10-10041,1487.7,Sherwood East Childrens Centre (RNN
Nottinghamshire County Council,1111/1001,Children and Young People,CYP,Third Party Payments,EGA,03/01/2019,10-10220,671.72,[Redacted]
Nottinghamshire County Council,1111/1001,Children and Young People,CYP,Third Party Payments,EGA,03/01/2019,10-10221,"10,108.40",Lime Trees Day Nursery Ltd (Carlton
Nottinghamshire County Council,1111/1001,Children and Young People,CYP,Third Party Payments,EGA,03/01/2019,10-10222,6430.7,Little Acorns Shireoaks
Nottinghamshire County Council,1111/1001,Children and Young People,CYP,Third Party Payments,EGA,03/01/2019,10-10223,"3,831.60",Little Adventures Forest School Ltd
Nottinghamshire County Council,1111/1001,Children and Young People,CYP,Third Party Payments,EGA,03/01/2019,10-10224,7354.61,Little Beans Childcare Ltd
Nottinghamshire County Council,1111/1001,Children and Young People,CYP,Third Party Payments,EGA,03/01/2019,10-10225,10420.96,Longdale Nursery School
Nottinghamshire County Council,1111/1001,Children and Young People,CYP,Third Party Payments,EGA,03/01/2019,10-10226,"5,232.89",Lowater Street Play  & Pre School
Nottinghamshire County Council,1111/1001,Children and Young People,CYP,Third Party Payments,EGA,03/01/2019,10-10227,9617.27,Cherubs (Sutton In Ashfield) Childm
Nottinghamshire County Council,1111/1001,Children and Young People,CYP,Third Party Payments,EGA,03/01/2019,10-10228,9204.03,Cherubs Childcare Centre (Mansfield
Nottinghamshire County Council,1111/1001,Children and Young People,CYP,Third Party Payments,EGA,03/01/2019,10-10229,11818.46,Cherubs Childcare Centre Ladybrook
Nottinghamshire County Council,1111/1001,Children and Young People,CYP,Third Party Payments,EGA,03/01/2019,10-10230,20222.82,Cherubs Childrens Centre Wynndale
Nottinghamshire County Council,1111/1001,Children and Young People,CYP,Third Party Payments,EGA,03/01/2019,10-10231,24024.17,Cherubs Day Nursery
Nottinghamshire County Council,1111/1001,Children and Young People,CYP,Third Party Payments,EGA,03/01/2019,10-10232,"4,387.19",Chetwynd Little Troopers Nursery &
Nottinghamshire County Council,1111/1001,Children and Young People,CYP,Third Party Payments,EGA,03/01/2019,10-10233,4694.06,Child First (Welbeck) (Childminding
Nottinghamshire County Council,1111/1001,Children and Young People,CYP,Third Party Payments,EGA,03/01/2019,10-10234,16356.68,Children 1st @ Breedon House (Plumt
Nottinghamshire County Council,1111/1001,Children and Young People,CYP,Third Party Payments,EGA,03/01/2019,10-10235,22405.59,Children 1st @ Breedon House (Toton
Nottinghamshire County Council,1111/1001,Children and Young People,CYP,Third Party Payments,EGA,03/01/2019,10-10236,"7,761.04",Children 1st @ Breedon House (Toton
Nottinghamshire County Council,1111/1001,Children and Young People,CYP,Third Party Payments,EGA,03/01/2019,10-10237,"9,024.62",Children 1st @ Newark Centre
Nottinghamshire County Council,1111/1001,Children and Young People,CYP,Third Party Payments,EGA,03/01/2019,10-10238,"6,815.13",Childrens House Childcare Ltd
Nottinghamshire County Council,1111/1001,Children and Young People,CYP,Third Party Payments,EGA,03/01/2019,10-10239,4653.39,Christchurch Hall Pre-School Playgr
Nottinghamshire County Council,1111/1001,Children and Young People,CYP,Third Party Payments,EGA,03/01/2019,10-10240,6619.54,Claremont Early Years Ltd
Nottinghamshire County Council,1111/1001,Children and Young People,CYP,Third Party Payments,EGA,03/01/2019,10-10241,3874.42,Collingham & District Pre-School
Nottinghamshire County Council,1111/1001,Children and Young People,CYP,Third Party Payments,EGA,03/01/2019,10-10242,2318.07,Costock Pre School
Nottinghamshire County Council,1111/1001,Children and Young People,CYP,Third Party Payments,EGA,03/01/2019,10-10243,13481.13,Coteswood House School
Nottinghamshire County Council,1111/1001,Children and Young People,CYP,Third Party Payments,EGA,03/01/2019,10-10244,"8,914.65",Country Kids Day Nursery
Nottinghamshire County Council,1111/1001,Children and Young People,CYP,Third Party Payments,EGA,03/01/2019,10-10245,"8,731.94",Cranmer Pre-School
Nottinghamshire County Council,1111/1001,Children and Young People,CYP,Third Party Payments,EGA,03/01/2019,10-10246,"5,321.31",Creative Hands Childcare
Nottinghamshire County Council,1111/1001,Children and Young People,CYP,Third Party Payments,EGA,03/01/2019,10-10247,11038.05,Daisies Day Nursery
Nottinghamshire County Council,1111/1001,Children and Young People,CYP,Third Party Payments,EGA,03/01/2019,10-10248,19812.99,Daisies Day Nursery
Nottinghamshire County Council,1111/1001,Children and Young People,CYP,Third Party Payments,EGA,03/01/2019,10-10249,"19,532.70",Discovery Day Nursery
Nottinghamshire County Council,1111/1001,Children and Young People,CYP,Third Party Payments,EGA,03/01/2019,10-10250,"5,373.72",Early Learners Centre Day Nursery
Nottinghamshire County Council,1111/1001,Children and Young People,CYP,Third Party Payments,EGA,03/01/2019,10-10251,19831.92,East Leake Day Nursery & Pre-School
Nottinghamshire County Council,1111/1001,Children and Young People,CYP,Third Party Payments,EGA,03/01/2019,10-10252,"9,440.36",East Leake Pre-School Playgroup
Nottinghamshire County Council,1111/1001,Children and Young People,CYP,Third Party Payments,EGA,03/01/2019,10-10253,11390.29,Edwalton Day Nursery
Nottinghamshire County Council,1111/1001,Children and Young People,CYP,Third Party Payments,EGA,03/01/2019,10-10254,2817.91,Elston Pre-school
Nottinghamshire County Council,1111/1001,Children and Young People,CYP,Third Party Payments,EGA,03/01/2019,10-10255,"21,922.18",Fernwood Day Nursery Ltd
Nottinghamshire County Council,1111/1001,Children and Young People,CYP,Third Party Payments,EGA,03/01/2019,10-10256,5429.06,Fledglings Playgroup
Nottinghamshire County Council,1111/1001,Children and Young People,CYP,Third Party Payments,EGA,03/01/2019,10-10257,880.71,[Redacted]
Nottinghamshire County Council,1111/1001,Children and Young People,CYP,Third Party Payments,EGA,03/01/2019,10-10258,671.72,[Redacted]
Nottinghamshire County Council,1111/1001,Children and Young People,CYP,Third Party Payments,EGA,03/01/2019,10-10259,11880.99,Fun Farm Day Nursery
Nottinghamshire County Council,1111/1001,Children and Young People,CYP,Third Party Payments,EGA,03/01/2019,10-10260,14061.4,Good Foundations Day Nursery
Nottinghamshire County Council,1111/1001,Children and Young People,CYP,Third Party Payments,EGA,03/01/2019,10-10261,"3,434.52",Gotham Pre-School Playgroup
Nottinghamshire County Council,1111/1001,Children and Young People,CYP,Third Party Payments,EGA,03/01/2019,10-10262,"10,763.28",Granby House Nursery
Nottinghamshire County Council,1111/1001,Children and Young People,CYP,Third Party Payments,EGA,03/01/2019,10-10263,671.72,Green Tot Childcare
Nottinghamshire County Council,1111/1001,Children and Young People,CYP,Third Party Payments,EGA,03/01/2019,10-10264,619.25,[Redacted]
Nottinghamshire County Council,1111/1001,Children and Young People,CYP,Third Party Payments,EGA,03/01/2019,10-10265,825.66,[Redacted]
Nottinghamshire County Council,1111/1001,Children and Young People,CYP,Third Party Payments,EGA,03/01/2019,10-10266,1713.82,[Redacted]
Nottinghamshire County Council,1111/1001,Children and Young People,CYP,Third Party Payments,EGA,03/01/2019,10-10267,560.57,[Redacted]
Nottinghamshire County Council,1111/1001,Children and Young People,CYP,Third Party Payments,EGA,03/01/2019,10-10268,894.47,[Redacted]
Nottinghamshire County Council,1111/1001,Children and Young People,CYP,Third Party Payments,EGA,03/01/2019,10-10269,529.8,[Redacted]
Nottinghamshire County Council,1111/1001,Children and Young People,CYP,Third Party Payments,EGA,03/01/2019,10-10270,6465.99,St Peter's Early Years
Nottinghamshire County Council,1111/1001,Children and Young People,CYP,Third Party Payments,EGA,03/01/2019,10-10271,825.66,[Redacted]
Nottinghamshire County Council,1111/1001,Children and Young People,CYP,Third Party Payments,EGA,03/01/2019,10-10272,1523.61,Mini-me Childcare
Nottinghamshire County Council,1111/1001,Children and Young People,CYP,Third Party Payments,EGA,03/01/2019,10-10273,589.15,Ruthies Childcare
Nottinghamshire County Council,1111/1001,Children and Young People,CYP,Third Party Payments,EGA,03/01/2019,10-10274,763.74,Butterflies Childminding Services
Nottinghamshire County Council,1111/1001,Children and Young People,CYP,Third Party Payments,EGA,03/01/2019,10-10275,521.13,Almond Tree Childminding
Nottinghamshire County Council,1111/1001,Children and Young People,CYP,Third Party Payments,EGA,03/01/2019,10-10276,"1,241.96",[Redacted]
Nottinghamshire County Council,1111/1001,Children and Young People,CYP,Third Party Payments,EGA,03/01/2019,10-10277,671.72,Little Tots
Nottinghamshire County Council,1111/1001,Children and Young People,CYP,Third Party Payments,EGA,03/01/2019,10-10278,10691.11,PSLA Newstead Childcare (HO)
Nottinghamshire County Council,1111/1001,Children and Young People,CYP,Third Party Payments,EGA,03/01/2019,10-10281,10709.61,Millfield Nursery School
Nottinghamshire County Council,1111/1001,Children and Young People,CYP,Third Party Payments,EGA,03/01/2019,10-10282,"19,448.56",Oceans Day Nursery
Nottinghamshire County Council,1111/1001,Children and Young People,CYP,Third Party Payments,EGA,03/01/2019,10-10283,"11,664.24",Homestead Day Nursery Ltd
Nottinghamshire County Council,1111/1001,Children and Young People,CYP,Third Party Payments,EGA,03/01/2019,10-10284,15902.33,Carlton & Gedling Day Nursery
Nottinghamshire County Council,1111/1001,Children and Young People,CYP,Third Party Payments,EGA,03/01/2019,10-10285,"5,655.38",[Redacted]
Nottinghamshire County Council,1111/1001,Children and Young People,CYP,Third Party Payments,EGA,03/01/2019,10-10286,619.25,[Redacted]
Nottinghamshire County Council,1111/1001,Children and Young People,CYP,Third Party Payments,EGA,03/01/2019,10-10287,671.72,Helping Hands Daycare
Nottinghamshire County Council,1111/1001,Children and Young People,CYP,Third Party Payments,EGA,03/01/2019,10-10288,11861.19,All Aboard Nursery Ltd
Nottinghamshire County Council,1111/1001,Children and Young People,CYP,Third Party Payments,EGA,03/01/2019,10-10289,619.25,Jelly Tots
Nottinghamshire County Council,1111/1001,Children and Young People,CYP,Third Party Payments,EGA,03/01/2019,10-10290,2292.94,Allsorts Playgroup
Nottinghamshire County Council,1111/1001,Children and Young People,CYP,Third Party Payments,EGA,03/01/2019,10-10291,"6,706.36",Alphabet House Day Nursery
Nottinghamshire County Council,1111/1001,Children and Young People,CYP,Third Party Payments,EGA,03/01/2019,10-10292,"4,595.58",Alphabet House Day Nursery (Chilwel
Nottinghamshire County Council,1111/1001,Children and Young People,CYP,Third Party Payments,EGA,03/01/2019,10-10293,"9,908.97",Alphabet House Day Nursery
Nottinghamshire County Council,1111/1001,Children and Young People,CYP,Third Party Payments,EGA,03/01/2019,10-10294,"13,060.08",Alphabet House Day Nursery WB
Nottinghamshire County Council,1111/1001,Children and Young People,CYP,Third Party Payments,EGA,03/01/2019,10-10295,"14,442.77",Alphabet House Nursery
Nottinghamshire County Council,1111/1001,Children and Young People,CYP,Third Party Payments,EGA,03/01/2019,10-10296,8026.54,Alphabet House Day Nursery Worksop
Nottinghamshire County Council,1111/1001,Children and Young People,CYP,Third Party Payments,EGA,03/01/2019,10-10297,"11,720.12",Applegarth Day Nurseries Ltd
Nottinghamshire County Council,1111/1001,Children and Young People,CYP,Third Party Payments,EGA,03/01/2019,10-10298,7437.87,Appleton Childcare Ltd
Nottinghamshire County Council,1111/1001,Children and Young People,CYP,Third Party Payments,EGA,03/01/2019,10-10299,"15,521.22",Arnold House Day Nursery
Nottinghamshire County Council,1111/1001,Children and Young People,CYP,Third Party Payments,EGA,03/01/2019,10-10300,3276.7,Arnold St Mary's Pre-School
Nottinghamshire County Council,1111/1001,Children and Young People,CYP,Third Party Payments,EGA,03/01/2019,10-10301,"1,376.10",Little House Of Horrors
Nottinghamshire County Council,1111/1001,Children and Young People,CYP,Third Party Payments,EGA,03/01/2019,10-10302,"9,183.34",Attenborough Church Pre-School
Nottinghamshire County Council,1111/1001,Children and Young People,CYP,Third Party Payments,EGA,03/01/2019,10-10303,13141.86,Aunty Sue's Day Care Ltd
Nottinghamshire County Council,1111/1001,Children and Young People,CYP,Third Party Payments,EGA,03/01/2019,10-10304,4794.08,Awsworth Schoolhouse Day Nursery
Nottinghamshire County Council,1111/1001,Children and Young People,CYP,Third Party Payments,EGA,03/01/2019,10-10305,809.33,Little Angels Childcare
Nottinghamshire County Council,1111/1001,Children and Young People,CYP,Third Party Payments,EGA,03/01/2019,10-10306,15704.96,Balderton Pre-School
Nottinghamshire County Council,1111/1001,Children and Young People,CYP,Third Party Payments,EGA,03/01/2019,10-10307,14380.74,Balderton Village Day Nursery
Nottinghamshire County Council,1111/1001,Children and Young People,CYP,Third Party Payments,EGA,03/01/2019,10-10308,671.72,Imogen Barnett (Immy's House)
Nottinghamshire County Council,1111/1001,Children and Young People,CYP,Third Party Payments,EGA,03/01/2019,10-10309,"9,616.37",Beacon Hill Day Nursery
Nottinghamshire County Council,1111/1001,Children and Young People,CYP,Third Party Payments,EGA,03/01/2019,10-10310,8820.41,Beeston Nursery
Nottinghamshire County Council,1111/1001,Children and Young People,CYP,Third Party Payments,EGA,03/01/2019,10-10311,768.04,The Cornerhouse Childminding
Nottinghamshire County Council,1111/1001,Children and Young People,CYP,Third Party Payments,EGA,03/01/2019,10-10312,"7,811.80",Bircotes Pre-School
Nottinghamshire County Council,1111/1001,Children and Young People,CYP,Third Party Payments,EGA,03/01/2019,10-10313,22548.78,Bizzy Kidz
Nottinghamshire County Council,1111/1001,Children and Young People,CYP,Third Party Payments,EGA,03/01/2019,10-10314,619.25,[Redacted]
Nottinghamshire County Council,1111/1001,Children and Young People,CYP,Third Party Payments,EGA,03/01/2019,10-10315,1808.73,Pretty Windows Ltd
Nottinghamshire County Council,1111/1001,Children and Young People,CYP,Third Party Payments,EGA,03/01/2019,10-10316,10894.85,Bright Sparks Day Nursery
Nottinghamshire County Council,1111/1001,Children and Young People,CYP,Third Party Payments,EGA,03/01/2019,10-10317,"12,007.71",Bright Stars Childcare
Nottinghamshire County Council,1111/1001,Children and Young People,CYP,Third Party Payments,EGA,03/01/2019,10-10318,"16,580.32",Cared 4 Ltd T/A Brookhill House Day
Nottinghamshire County Council,1111/1001,Children and Young People,CYP,Third Party Payments,EGA,03/01/2019,10-10319,15833.76,Brooklyn Day Nursery
Nottinghamshire County Council,1111/1001,Children and Young People,CYP,Third Party Payments,EGA,03/01/2019,10-10320,"1,317.20",Making Memories Childminding
Nottinghamshire County Council,1111/1001,Children and Young People,CYP,Third Party Payments,EGA,03/01/2019,10-10321,6003.94,Bullpit Road Nursery
Nottinghamshire County Council,1111/1001,Children and Young People,CYP,Third Party Payments,EGA,03/01/2019,10-10322,"21,471.29",Busy Bees (Daybrook)
Nottinghamshire County Council,1111/1001,Children and Young People,CYP,Third Party Payments,EGA,03/01/2019,10-10323,8193.84,Crossdale Busy Bees Pre-School
Nottinghamshire County Council,1111/1001,Children and Young People,CYP,Third Party Payments,EGA,03/01/2019,10-10324,"9,462.42",Busy Bees Nursery
Nottinghamshire County Council,1111/1001,Children and Young People,CYP,Third Party Payments,EGA,03/01/2019,10-10325,8788.05,Buttercross Pre School
Nottinghamshire County Council,1111/1001,Children and Young People,CYP,Third Party Payments,EGA,03/01/2019,10-10326,8522.32,Carlton Preschool Playgroup
Nottinghamshire County Council,1111/1001,Children and Young People,CYP,Third Party Payments,EGA,03/01/2019,10-10327,"3,129.39",Carousel Under 5'S Playgroup
Nottinghamshire County Council,1111/1001,Children and Young People,CYP,Third Party Payments,EGA,03/01/2019,10-10328,534.2,[Redacted]
Nottinghamshire County Council,1111/1001,Children and Young People,CYP,Third Party Payments,EGA,03/01/2019,10-10329,"1,032.08",[Redacted]
Nottinghamshire County Council,1111/1001,Children and Young People,CYP,Third Party Payments,EGA,03/01/2019,10-10330,915.11,New Beginnings Quality Childcare
Nottinghamshire County Council,1111/1001,Children and Young People,CYP,Third Party Payments,EGA,03/01/2019,10-10331,6776.27,Cedar House Day Nursery
Nottinghamshire County Council,1111/1001,Children and Young People,CYP,Third Party Payments,EGA,03/01/2019,10-10332,878.13,[Redacted]
Nottinghamshire County Council,1111/1001,Children and Young People,CYP,Third Party Payments,EGA,03/01/2019,10-10333,8830.31,Cheeky Monkeys Day Nursery
Nottinghamshire County Council,1111/1001,Children and Young People,CYP,Third Party Payments,EGA,03/01/2019,10-10334,"13,391.05",Mapperley Day Nursery
Nottinghamshire County Council,1111/1001,Children and Young People,CYP,Third Party Payments,EGA,03/01/2019,10-10335,8859.25,Ashfield Plaza Day Nursery
Nottinghamshire County Council,1111/1001,Children and Young People,CYP,Third Party Payments,EGA,03/01/2019,10-10336,6949.31,Lowdham & Epperstone Pre-School
Nottinghamshire County Council,1111/1001,Children and Young People,CYP,Third Party Payments,EGA,03/01/2019,10-10337,"7,556.67",Luan's Little People
Nottinghamshire County Council,1111/1001,Children and Young People,CYP,Third Party Payments,EGA,03/01/2019,10-10338,7565.94,Luan's Little People Ltd
Nottinghamshire County Council,1111/1001,Children and Young People,CYP,Third Party Payments,EGA,03/01/2019,10-10339,"1,096.20",Kidzgrove
Nottinghamshire County Council,1111/1001,Children and Young People,CYP,Third Party Payments,EGA,03/01/2019,10-10340,16892.92,Serendipity's Day Nursery
Nottinghamshire County Council,1111/1001,Children and Young People,CYP,Third Party Payments,EGA,03/01/2019,10-10341,4889.91,Serendipity's Day Nursery
Nottinghamshire County Council,1111/1001,Children and Young People,CYP,Third Party Payments,EGA,03/01/2019,10-10342,"12,987.81",Scottswood Pdn Ltd
Nottinghamshire County Council,1111/1001,Children and Young People,CYP,Third Party Payments,EGA,03/01/2019,10-10343,878.13,[Redacted]
Nottinghamshire County Council,1111/1001,Children and Young People,CYP,Third Party Payments,EGA,03/01/2019,10-10344,825.66,[Redacted]
Nottinghamshire County Council,1111/1001,Children and Young People,CYP,Third Party Payments,EGA,03/01/2019,10-10345,517.77,[Redacted]
Nottinghamshire County Council,1111/1001,Children and Young People,CYP,Third Party Payments,EGA,03/01/2019,10-10346,724.19,[Redacted]
Nottinghamshire County Council,1111/1001,Children and Young People,CYP,Third Party Payments,EGA,03/01/2019,10-10347,619.25,Claire's Childminding
Nottinghamshire County Council,1111/1001,Children and Young People,CYP,Third Party Payments,EGA,03/01/2019,10-10348,674.29,[Redacted]
Nottinghamshire County Council,1111/1001,Children and Young People,CYP,Third Party Payments,EGA,03/01/2019,10-10349,3082.47,Misson Pre-School
Nottinghamshire County Council,1111/1001,Children and Young People,CYP,Third Party Payments,EGA,03/01/2019,10-10350,776.66,Tinas Childminding
Nottinghamshire County Council,1111/1001,Children and Young People,CYP,Third Party Payments,EGA,03/01/2019,10-10351,736.22,[Redacted]
Nottinghamshire County Council,1111/1001,Children and Young People,CYP,Third Party Payments,EGA,03/01/2019,10-10352,4382.93,Netherfield Pre School Ltd
Nottinghamshire County Council,1111/1001,Children and Young People,CYP,Third Party Payments,EGA,03/01/2019,10-10353,6519.06,Noahs Ark Playgroup
Nottinghamshire County Council,1111/1001,Children and Young People,CYP,Third Party Payments,EGA,03/01/2019,10-10354,4690.38,North Muskham Playgroup
Nottinghamshire County Council,1111/1001,Children and Young People,CYP,Third Party Payments,EGA,03/01/2019,10-10355,871.25,[Redacted]
Nottinghamshire County Council,1111/1001,Children and Young People,CYP,Third Party Payments,EGA,03/01/2019,10-10356,631.41,Fionas Childminding Services
Nottinghamshire County Council,1111/1001,Children and Young People,CYP,Third Party Payments,EGA,03/01/2019,10-10357,3872.88,Old Cooperative Day Nursery
Nottinghamshire County Council,1111/1001,Children and Young People,CYP,Third Party Payments,EGA,03/01/2019,10-10358,25258.36,The Orchard Day Nursery
Nottinghamshire County Council,1111/1001,Children and Young People,CYP,Third Party Payments,EGA,03/01/2019,10-10359,"1,899.02",Orchard School Nursery
Nottinghamshire County Council,1111/1001,Children and Young People,CYP,Third Party Payments,EGA,03/01/2019,10-10360,894.47,[Redacted]
Nottinghamshire County Council,1111/1001,Children and Young People,CYP,Third Party Payments,EGA,03/01/2019,10-10361,"1,857.74",Jammie Dodgers Childminding Group
Nottinghamshire County Council,1111/1001,Children and Young People,CYP,Third Party Payments,EGA,03/01/2019,10-10362,1486.19,Little House Childcare of Brinsley
Nottinghamshire County Council,1111/1001,Children and Young People,CYP,Third Party Payments,EGA,03/01/2019,10-10363,739.34,Sweet Pea's Childminding
Nottinghamshire County Council,1111/1001,Children and Young People,CYP,Third Party Payments,EGA,03/01/2019,10-10364,12702.74,Papermoon Day Nursery
Nottinghamshire County Council,1111/1001,Children and Young People,CYP,Third Party Payments,EGA,03/01/2019,10-10365,"21,627.23",Papermoon Day Nursery
Nottinghamshire County Council,1111/1001,Children and Young People,CYP,Third Party Payments,EGA,03/01/2019,10-10366,12001.77,Papermoon Day Nursery
Nottinghamshire County Council,1111/1001,Children and Young People,CYP,Third Party Payments,EGA,03/01/2019,10-10367,1197,Wolds Childcare Ltd
Nottinghamshire County Council,1111/1001,Children and Young People,CYP,Third Party Payments,EGA,03/01/2019,10-10368,32526.95,Papermoon Day Nursery Sutton In Ash
Nottinghamshire County Council,1111/1001,Children and Young People,CYP,Third Party Payments,EGA,03/01/2019,10-10369,"8,095.36",Cherubs Childrens Centre Pleasley
Nottinghamshire County Council,1111/1001,Children and Young People,CYP,Third Party Payments,EGA,03/01/2019,10-10370,10465.68,Cherubs Ryton Park
Nottinghamshire County Council,1111/1001,Children and Young People,CYP,Third Party Payments,EGA,03/01/2019,10-10371,5983.46,Pea Pod Day Nursery Ltd
Nottinghamshire County Council,1111/1001,Children and Young People,CYP,Third Party Payments,EGA,03/01/2019,10-10372,845.02,Kate's Childminding
Nottinghamshire County Council,1111/1001,Children and Young People,CYP,Third Party Payments,EGA,03/01/2019,10-10373,516.78,[Redacted]
Nottinghamshire County Council,1111/1001,Children and Young People,CYP,Third Party Payments,EGA,03/01/2019,10-10374,"20,546.96",Phoenix Park Nursery Ltd
Nottinghamshire County Council,1111/1001,Children and Young People,CYP,Third Party Payments,EGA,03/01/2019,10-10375,"4,452.82",Luan's Little People Ltd
Nottinghamshire County Council,1111/1001,Children and Young People,CYP,Third Party Payments,EGA,03/01/2019,10-10376,878.13,[Redacted]
Nottinghamshire County Council,1111/1001,Children and Young People,CYP,Third Party Payments,EGA,03/01/2019,10-10377,1800.9,Treetops Nursery
Nottinghamshire County Council,1111/1001,Children and Young People,CYP,Third Party Payments,EGA,03/01/2019,10-10378,"4,031.98",Pippins Pre-School
Nottinghamshire County Council,1111/1001,Children and Young People,CYP,Third Party Payments,EGA,03/01/2019,10-10379,1096.2,Sunnybank Childminding
Nottinghamshire County Council,1111/1001,Children and Young People,CYP,Third Party Payments,EGA,03/01/2019,10-10380,784.38,[Redacted]
Nottinghamshire County Council,1111/1001,Children and Young People,CYP,Third Party Payments,EGA,03/01/2019,10-10381,4041.48,Play Days Cottage
Nottinghamshire County Council,1111/1001,Children and Young People,CYP,Third Party Payments,EGA,03/01/2019,10-10382,"3,343.93",Plumtree School
Nottinghamshire County Council,1111/1001,Children and Young People,CYP,Third Party Payments,EGA,03/01/2019,10-10383,1549.85,Jenny's Jelly Tots
Nottinghamshire County Council,1111/1001,Children and Young People,CYP,Third Party Payments,EGA,03/01/2019,10-10384,6481.15,Portland Place Pre-School
Nottinghamshire County Council,1111/1001,Children and Young People,CYP,Third Party Payments,EGA,03/01/2019,10-10385,7844.65,Pre-School 345
Nottinghamshire County Council,1111/1001,Children and Young People,CYP,Third Party Payments,EGA,03/01/2019,10-10386,534.25,Railway Children Playgroup
Nottinghamshire County Council,1111/1001,Children and Young People,CYP,Third Party Payments,EGA,03/01/2019,10-10387,"3,439.41",Prebend Pre-School Playgroup
Nottinghamshire County Council,1111/1001,Children and Young People,CYP,Third Party Payments,EGA,03/01/2019,10-10388,"6,258.36",Puddleducks Pre-School
Nottinghamshire County Council,1111/1001,Children and Young People,CYP,Third Party Payments,EGA,03/01/2019,10-10389,609,Weaverthorpe Pre-School Playgroup
Nottinghamshire County Council,1111/1001,Children and Young People,CYP,Third Party Payments,EGA,03/01/2019,10-10390,6451.34,Pump Farm Day Nursery
Nottinghamshire County Council,1111/1001,Children and Young People,CYP,Third Party Payments,EGA,03/01/2019,10-10391,1118.94,[Redacted]
Nottinghamshire County Council,1111/1001,Children and Young People,CYP,Third Party Payments,EGA,03/01/2019,10-10392,7040.18,Radcliffe On Trent Pre School Playg
Nottinghamshire County Council,1111/1001,Children and Young People,CYP,Third Party Payments,EGA,03/01/2019,10-10393,"11,777.74",Railway Children Playgroup
Nottinghamshire County Council,1111/1001,Children and Young People,CYP,Third Party Payments,EGA,03/01/2019,10-10394,819,Busy Bees (Daybrook)
Nottinghamshire County Council,1111/1001,Children and Young People,CYP,Third Party Payments,EGA,03/01/2019,10-10395,"7,979.10",PSLA Newstead Childcare (HO)
Nottinghamshire County Council,1111/1001,Children and Young People,CYP,Third Party Payments,EGA,03/01/2019,10-10398,1121.25,Phoenix Park Nursery Ltd
Nottinghamshire County Council,1111/1001,Children and Young People,CYP,Third Party Payments,EGA,03/01/2019,10-10399,"1,096.20",Phoenix Park Nursery Ltd
Nottinghamshire County Council,1111/1001,Children and Young People,CYP,Third Party Payments,EGA,03/01/2019,10-10400,1096.2,Fernwood Day Nursery Ltd
Nottinghamshire County Council,1111/1001,Children and Young People,CYP,Third Party Payments,EGA,03/01/2019,10-10401,548.1,PSLA Newstead Childcare (HO)
Nottinghamshire County Council,1111/1001,Children and Young People,CYP,Third Party Payments,EGA,03/01/2019,10-10402,2378.97,Townrow Tiny Tots Day Nursery Ltd
Nottinghamshire County Council,1111/1001,Children and Young People,CYP,Third Party Payments,EGA,03/01/2019,10-10403,3669.93,Townrow Tiny Tots Day Nursery Ltd
Nottinghamshire County Council,1111/1001,Children and Young People,CYP,Third Party Payments,EGA,03/01/2019,10-10404,"2,756.55",Townrow Tiny Tots Day Nursery Ltd
Nottinghamshire County Council,1111/1001,Children and Young People,CYP,Third Party Payments,EGA,03/01/2019,10-10405,"4,450.40",Rushcliffe Pre-School (Nottingham)
Nottinghamshire County Council,1111/1001,Children and Young People,CYP,Third Party Payments,EGA,03/01/2019,10-16879,"10,286.47",Acacia Hall (Kisimul)
Nottinghamshire County Council,1111/1001,Children and Young People,CYP,Third Party Payments,EGA,04/01/2019,10-10415,"13,256.07",Carnarvon Pre-School
Nottinghamshire County Council,1111/1001,Children and Young People,CYP,Third Party Payments,EGA,04/01/2019,10-16893,"861,741.00",Nottinghamshire Healthcare Nhs F Tr
Nottinghamshire County Council,1111/1001,Children and Young People,CYP,Third Party Payments,EGA,04/01/2019,10-16909,996.5,Spectrum Wasp
Nottinghamshire County Council,1111/1001,Children and Young People,CYP,Third Party Payments,EGA,07/01/2019,10-16890,15996,HMO North East Ltd T/A Forever Care
Nottinghamshire County Council,1111/1001,Children and Young People,CYP,Third Party Payments,EGA,07/01/2019,10-16894,26994,East Midlands Care Matters (Head Of
Nottinghamshire County Council,1111/1001,Children and Young People,CYP,Third Party Payments,EGA,07/01/2019,10-16920,"12,142.80",Care 4 Children Residential Service
Nottinghamshire County Council,1111/1001,Children and Young People,CYP,Third Party Payments,EGA,07/01/2019,10-16934,"18,821.34",Care 4 Children Residential Service
Nottinghamshire County Council,1111/1001,Children and Young People,CYP,Third Party Payments,EGA,07/01/2019,10-16935,17492.99,Care 4 Children Residential Service
Nottinghamshire County Council,1111/1001,Children and Young People,CYP,Third Party Payments,EGA,07/01/2019,10-16936,"17,492.99",Care 4 Children Residential Service
Nottinghamshire County Council,1111/1001,Children and Young People,CYP,Third Party Payments,EGA,07/01/2019,10-16937,18214.2,Care 4 Children Residential Service
Nottinghamshire County Council,1111/1001,Children and Young People,CYP,Third Party Payments,EGA,07/01/2019,10-16938,"16,928.70",Care 4 Children Residential Service
Nottinghamshire County Council,1111/1001,Children and Young People,CYP,Third Party Payments,EGA,07/01/2019,10-16939,"16,928.70",Care 4 Children Residential Service
Nottinghamshire County Council,1111/1001,Children and Young People,CYP,Third Party Payments,EGA,07/01/2019,10-16940,18821.34,Care 4 Children Residential Service
Nottinghamshire County Council,1111/1001,Children and Young People,CYP,Third Party Payments,EGA,07/01/2019,10-16941,17492.99,Care 4 Children Residential Service
Nottinghamshire County Council,1111/1001,Children and Young People,CYP,Third Party Payments,EGA,07/01/2019,10-16942,17492.99,Care 4 Children Residential Service
Nottinghamshire County Council,1111/1001,Children and Young People,CYP,Third Party Payments,EGA,09/01/2019,10-11985,582.27,Orchard Childminding
Nottinghamshire County Council,1111/1001,Children and Young People,CYP,Third Party Payments,EGA,09/01/2019,10-11986,873.6,Bullpit Road Nursery
Nottinghamshire County Council,1111/1001,Children and Young People,CYP,Third Party Payments,EGA,09/01/2019,10-16989,23346.36,Sorteria House (Children In Mind)
Nottinghamshire County Council,1111/1001,Children and Young People,CYP,Third Party Payments,EGA,09/01/2019,10-16992,"2,668.14",Three Circles Fostering Ltd
Nottinghamshire County Council,1111/1001,Children and Young People,CYP,Third Party Payments,EGA,09/01/2019,10-17015,"7,152.14",Acorn Fostering Services Ltd
Nottinghamshire County Council,1111/1001,Children and Young People,CYP,Third Party Payments,EGA,09/01/2019,10-17020,"3,040.00",Truly Care Services Ltd
Nottinghamshire County Council,1111/1001,Children and Young People,CYP,Third Party Payments,EGA,09/01/2019,10-17022,3340.26,Integrated Services Programme
Nottinghamshire County Council,1111/1001,Children and Young People,CYP,Third Party Payments,EGA,10/01/2019,10-17060,"10,602.00",Integrated Services Programme
Nottinghamshire County Council,1111/1001,Children and Young People,CYP,Third Party Payments,EGA,10/01/2019,10-17069,706.25,Sensory Learning & Play CIC
Nottinghamshire County Council,1111/1001,Children and Young People,CYP,Third Party Payments,EGA,10/01/2019,10-17086,19535.88,Capstone Foster Care Ltd
Nottinghamshire County Council,1111/1001,Children and Young People,CYP,Third Party Payments,EGA,11/01/2019,10-12192,522.92,Childcare @ Heathers House
Nottinghamshire County Council,1111/1001,Children and Young People,CYP,Third Party Payments,EGA,11/01/2019,10-12193,4679.88,Leahurst Road Pre-School
Nottinghamshire County Council,1111/1001,Children and Young People,CYP,Third Party Payments,EGA,11/01/2019,10-12194,548.1,[Redacted]
Nottinghamshire County Council,1111/1001,Children and Young People,CYP,Third Party Payments,EGA,11/01/2019,10-17081,"6,142.43",IBC Quality Solutions Ltd
Nottinghamshire County Council,1111/1001,Children and Young People,CYP,Third Party Payments,EGA,11/01/2019,10-17092,"1,546.13",Sensory Learning & Play CIC
Nottinghamshire County Council,1111/1001,Children and Young People,CYP,Third Party Payments,EGA,11/01/2019,10-17093,573.5,Sensory Learning & Play CIC
